Workbook

Sheet 星取り表98
B1: =+データ１!$B$2 -> 2021/2/21 | C1: =+データ１!$B$4 -> 2021年
B2: =+データ１!B6 -> スーパーリ－グ 第１５回大会 Aブロック ２０２１ | C2: =+IF(B3="","",+B3) -> 有馬スワローズ | F2: =+IF(B5="","",+B5) -> 城北メッツ | I2: =+IF(B7="","",+B7) -> 東山エイターズ | L2: =+IF(B9="","",+B9) -> 本村クラブ | O2: =+IF(B11="","",+B11) -> 文京パワーズ | R2: =+IF(B13="","",+B13) -> 亀戸合同 | U2: =+IF(B15="","",+B15) -> エンジェルス | X2: 勝 | Y2: 負 | Z2: 分 | AA2: 勝点 | AB2: 失点 | AC2: 得点 | AD2: 順位決定要素 | AE2: 順位
A3: 1 | B3: =IF(データ２!B2="","",VLOOKUP(A3,データ２!$A$2:$B$216,2)) -> 有馬スワローズ | C3: ＊ | F3: A | G3: - | H3: 1 | I3: A | J3: - | K3: 2 | L3: A | M3: - | N3: 3 | O3: A | P3: - | Q3: 4 | U3: A | V3: - | W3: 6 | X3: =COUNTIF(C3:W4,"○") -> 1 | Y3: =COUNTIF(C3:W4,"●") -> 0 | Z3: =COUNTIF(C3:W4,"△") -> 0 | AA3: =+X3*3+Z3*1 -> 3 | AB3: =+E4+H4+K4+N4+Q4+T4+W4 -> 4 | AC3: =C4+F4+I4+L4+O4+R4+U4 -> 5 | AD3: =+RANK(AA3,$AA$3:$AA$16,0)*100+RANK(AB3,$AB$3:$AB$16,1)*10+RANK(AC3,$AC$3:$AC$16,0) -> 142 | AE3: =+RANK(AD3,$AD$3:$AD$16,1) -> 2
G4: - | J4: - | M4: - | P4: - | R4: 5 | S4: ○ | T4: 4 | V4: -
A5: 2 | B5: =IF(データ２!B4="","",VLOOKUP(A5,データ２!$A$2:$B$216,2)) -> 城北メッツ | C5: A | D5: - | E5: 1 | F5: ＊ | I5: A | J5: - | K5: 7 | L5: A | M5: - | N5: 8 | R5: A | S5: - | T5: 10 | U5: A | V5: - | W5: 11 | X5: =COUNTIF(C5:W6,"○") -> 1 | Y5: =COUNTIF(C5:W6,"●") -> 0 | Z5: =COUNTIF(C5:W6,"△") -> 0 | AA5: =+X5*3+Z5*1 -> 3 | AB5: =+E6+H6+K6+N6+Q6+T6+W6 -> 4 | AC5: =C6+F6+I6+L6+O6+R6+U6 -> 13 | AD5: =+RANK(AA5,$AA$3:$AA$16,0)*100+RANK(AB5,$AB$3:$AB$16,1)*10+RANK(AC5,$AC$3:$AC$16,0) -> 141 | AE5: =+RANK(AD5,$AD$3:$AD$16,1) -> 1
D6: - | J6: - | M6: - | O6: 13 | P6: ○ | Q6: 4 | S6: - | V6: -
A7: 3 | B7: =IF(データ２!B6="","",VLOOKUP(A7,データ２!$A$2:$B$216,2)) -> 東山エイターズ | C7: A | D7: - | E7: 2 | F7: A | G7: - | H7: 7 | I7: ＊ | L7: A | M7: - | N7: 12 | O7: A | P7: - | Q7: 13 | R7: A | S7: - | T7: 14 | U7: A | V7: - | W7: 15 | X7: =COUNTIF(C7:W8,"○") -> 0 | Y7: =COUNTIF(C7:W8,"●") -> 0 | Z7: =COUNTIF(C7:W8,"△") -> 0 | AA7: =+X7*3+Z7*1 -> 0 | AB7: =+E8+H8+K8+N8+Q8+T8+W8 -> 0 | AC7: =C8+F8+I8+L8+O8+R8+U8 -> 0 | AD7: =+RANK(AA7,$AA$3:$AA$16,0)*100+RANK(AB7,$AB$3:$AB$16,1)*10+RANK(AC7,$AC$3:$AC$16,0) -> 315 | AE7: =+RANK(AD7,$AD$3:$AD$16,1) -> 3
D8: - | G8: - | M8: - | P8: - | S8: - | V8: -
A9: 4 | B9: =IF(データ２!B8="","",VLOOKUP(A9,データ２!$A$2:$B$216,2)) -> 本村クラブ | C9: A | D9: - | E9: 3 | F9: A | G9: - | H9: 8 | I9: A | J9: - | K9: 12 | L9: ＊ | O9: A | P9: - | Q9: 16 | R9: A | S9: - | T9: 17 | U9: A | V9: - | W9: 18 | X9: =COUNTIF(C9:W10,"○") -> 0 | Y9: =COUNTIF(C9:W10,"●") -> 0 | Z9: =COUNTIF(C9:W10,"△") -> 0 | AA9: =+X9*3+Z9*1 -> 0 | AB9: =+E10+H10+K10+N10+Q10+T10+W10 -> 0 | AC9: =C10+F10+I10+L10+O10+R10+U10 -> 0 | AD9: =+RANK(AA9,$AA$3:$AA$16,0)*100+RANK(AB9,$AB$3:$AB$16,1)*10+RANK(AC9,$AC$3:$AC$16,0) -> 315 | AE9: =+RANK(AD9,$AD$3:$AD$16,1) -> 3
D10: - | G10: - | J10: - | P10: - | S10: - | V10: -
A11: 5 | B11: =IF(データ２!B10="","",VLOOKUP(A11,データ２!$A$2:$B$216,2)) -> 文京パワーズ | C11: A | D11: - | E11: 4 | I11: A | J11: - | K11: 13 | L11: A | M11: - | N11: 16 | O11: ＊ | R11: A | S11: - | T11: 19 | U11: A | V11: - | W11: 20 | X11: =COUNTIF(C11:W12,"○") -> 0 | Y11: =COUNTIF(C11:W12,"●") -> 1 | Z11: =COUNTIF(C11:W12,"△") -> 0 | AA11: =+X11*3+Z11*1 -> 0 | AB11: =+E12+H12+K12+N12+Q12+T12+W12 -> 13 | AC11: =C12+F12+I12+L12+O12+R12+U12 -> 4 | AD11: =+RANK(AA11,$AA$3:$AA$16,0)*100+RANK(AB11,$AB$3:$AB$16,1)*10+RANK(AC11,$AC$3:$AC$16,0) -> 373 | AE11: =+RANK(AD11,$AD$3:$AD$16,1) -> 7
D12: - | F12: 4 | G12: ● | H12: 13 | J12: - | M12: - | S12: - | V12: -
A13: 6 | B13: =IF(データ２!B12="","",VLOOKUP(A13,データ２!$A$2:$B$216,2)) -> 亀戸合同 | F13: A | G13: - | H13: 10 | I13: A | J13: - | K13: 14 | L13: A | M13: - | N13: 17 | O13: A | P13: - | Q13: 19 | R13: ＊ | U13: A | V13: - | W13: 21 | X13: =COUNTIF(C13:W14,"○") -> 0 | Y13: =COUNTIF(C13:W14,"●") -> 1 | Z13: =COUNTIF(C13:W14,"△") -> 0 | AA13: =+X13*3+Z13*1 -> 0 | AB13: =+E14+H14+K14+N14+Q14+T14+W14 -> 5 | AC13: 4 | AD13: =+RANK(AA13,$AA$3:$AA$16,0)*100+RANK(AB13,$AB$3:$AB$16,1)*10+RANK(AC13,$AC$3:$AC$16,0) -> 363 | AE13: =+RANK(AD13,$AD$3:$AD$16,1) -> 6
C14: 4 | D14: ● | E14: 5 | G14: - | J14: - | M14: - | P14: - | V14: -
A15: 7 | B15: =IF(データ２!B14="","",VLOOKUP(A15,データ２!$A$2:$B$216,2)) -> エンジェルス | C15: A | D15: - | E15: 6 | F15: A | G15: - | H15: 11 | I15: A | J15: - | K15: 15 | L15: A | M15: - | N15: 18 | O15: A | P15: - | Q15: 20 | R15: A | S15: - | T15: 21 | U15: ＊ | X15: =COUNTIF(C15:W16,"○") -> 0 | Y15: =COUNTIF(C15:W16,"●") -> 0 | Z15: =COUNTIF(C15:W16,"△") -> 0 | AA15: =+X15*3+Z15*1 -> 0 | AB15: =+E16+H16+K16+N16+Q16+T16+W16 -> 0 | AC15: 0 | AD15: =+RANK(AA15,$AA$3:$AA$16,0)*100+RANK(AB15,$AB$3:$AB$16,1)*10+RANK(AC15,$AC$3:$AC$16,0) -> 315 | AE15: =+RANK(AD15,$AD$3:$AD$16,1) -> 3
D16: - | G16: - | J16: - | M16: - | P16: - | S16: -
B18: =+データ１!$B$2 -> 2021/2/21 | C18: =+データ１!$B$4 -> 2021年
B19: =+データ１!B8 -> スーパーリ－グ 第１５回大会 Ｂブロック ２０２１ | C19: =+IF(B20="","",+B20) -> 高島エイト | F19: =+IF(B22="","",+B22) -> 番町エンジェルス | I19: =+IF(B24="","",+B24) -> 桃五少年野球クラブ | L19: =+IF(B26="","",+B26) -> 港南メッツ | O19: =+IF(B28="","",+B28) -> 西千タイガース | R19: =+IF(B30="","",+B30) -> 七北クラブ | U19: =+IF(B32="","",+B32) -> 馬込ジャガーズ | X19: 勝 | Y19: 負 | Z19: 分 | AA19: 勝点 | AB19: 失点 | AC19: 得点 | AD19: 順位決定要素 | AE19: 順位
A20: 8 | B20: =IF(データ２!B16="","",VLOOKUP(A20,データ２!$A$2:$B$216,2)) -> 高島エイト | C20: ＊ | F20: B | G20: - | H20: 1 | I20: B | J20: - | K20: 2 | L20: B | M20: - | N20: 3 | R20: B | S20: - | T20: 5 | U20: B | V20: - | W20: 6 | X20: =COUNTIF(C20:W21,"○") -> 0 | Y20: =COUNTIF(C20:W21,"●") -> 1 | Z20: =COUNTIF(C20:W21,"△") -> 0 | AA20: =+X20*3+Z20*1 -> 0 | AB20: =+E21+H21+K21+N21+Q21+T21+W21 -> 5 | AC20: =C21+F21+I21+L21+O21+R21+U21 -> 2 | AD20: =+RANK(AA20,$AA$20:$AA$33,0)*100+RANK(AB20,$AB$20:$AB$33,1)*10+RANK(AC20,$AC$20:$AC$33,0) -> 253 | AE20: =+RANK(AD20,$AD$20:$AD$33,1) -> 6
G21: - | J21: - | M21: - | O21: 2 | P21: ● | Q21: 5 | S21: - | V21: -
A22: 9 | B22: =IF(データ２!B18="","",VLOOKUP(A22,データ２!$A$2:$B$216,2)) -> 番町エンジェルス | C22: B | D22: - | E22: 1 | F22: ＊ | I22: B | J22: - | K22: 7 | L22: B | M22: - | N22: 8 | O22: B | P22: - | Q22: 9 | R22: B | S22: - | T22: 10 | U22: B | V22: - | W22: 11 | X22: =COUNTIF(C22:W23,"○") -> 0 | Y22: =COUNTIF(C22:W23,"●") -> 0 | Z22: =COUNTIF(C22:W23,"△") -> 0 | AA22: =+X22*3+Z22*1 -> 0 | AB22: =+E23+H23+K23+N23+Q23+T23+W23 -> 0 | AC22: =C23+F23+I23+L23+O23+R23+U23 -> 0 | AD22: =+RANK(AA22,$AA$20:$AA$33,0)*100+RANK(AB22,$AB$20:$AB$33,1)*10+RANK(AC22,$AC$20:$AC$33,0) -> 214 | AE22: =+RANK(AD22,$AD$20:$AD$33,1) -> 2
D23: - | J23: - | M23: - | P23: - | S23: - | V23: -
A24: 10 | B24: =IF(データ２!B20="","",VLOOKUP(A24,データ２!$A$2:$B$216,2)) -> 桃五少年野球クラブ | C24: B | D24: - | E24: 2 | F24: B | G24: - | H24: 7 | I24: ＊ | L24: B | M24: - | N24: 12 | O24: B | P24: - | Q24: 13 | R24: B | S24: - | T24: 14 | U24: B | V24: - | W24: 15 | X24: =COUNTIF(C24:W25,"○") -> 0 | Y24: =COUNTIF(C24:W25,"●") -> 0 | Z24: =COUNTIF(C24:W25,"△") -> 0 | AA24: =+X24*3+Z24*1 -> 0 | AB24: =+E25+H25+K25+N25+Q25+T25+W25 -> 0 | AC24: =C25+F25+I25+L25+O25+R25+U25 -> 0 | AD24: =+RANK(AA24,$AA$20:$AA$33,0)*100+RANK(AB24,$AB$20:$AB$33,1)*10+RANK(AC24,$AC$20:$AC$33,0) -> 214 | AE24: =+RANK(AD24,$AD$20:$AD$33,1) -> 2
D25: - | G25: - | M25: - | P25: - | S25: - | V25: -
A26: 11 | B26: =IF(データ２!B22="","",VLOOKUP(A26,データ２!$A$2:$B$216,2)) -> 港南メッツ | C26: B | D26: - | E26: 3 | F26: B | G26: - | H26: 8 | I26: B | J26: - | K26: 12 | L26: ＊ | O26: B | P26: - | Q26: 16 | R26: B | S26: - | T26: 17 | U26: B | V26: - | W26: 18 | X26: =COUNTIF(C26:W27,"○") -> 0 | Y26: =COUNTIF(C26:W27,"●") -> 0 | Z26: =COUNTIF(C26:W27,"△") -> 0 | AA26: =+X26*3+Z26*1 -> 0 | AB26: =+E27+H27+K27+N27+Q27+T27+W27 -> 0 | AC26: =C27+F27+I27+L27+O27+R27+U27 -> 0 | AD26: =+RANK(AA26,$AA$20:$AA$33,0)*100+RANK(AB26,$AB$20:$AB$33,1)*10+RANK(AC26,$AC$20:$AC$33,0) -> 214 | AE26: =+RANK(AD26,$AD$20:$AD$33,1) -> 2
D27: - | G27: - | J27: - | P27: - | S27: - | V27: -
A28: 12 | B28: =IF(データ２!B24="","",VLOOKUP(A28,データ２!$A$2:$B$216,2)) -> 西千タイガース | F28: B | G28: - | H28: 9 | I28: B | J28: - | K28: 13 | L28: B | M28: - | N28: 16 | O28: ＊ | U28: B | V28: - | W28: 20 | X28: =COUNTIF(C28:W29,"○") -> 2 | Y28: =COUNTIF(C28:W29,"●") -> 0 | Z28: =COUNTIF(C28:W29,"△") -> 0 | AA28: =+X28*3+Z28*1 -> 6 | AB28: =+E29+H29+K29+N29+Q29+T29+W29 -> 5 | AC28: =C29+F29+I29+L29+O29+R29+U29 -> 11 | AD28: =+RANK(AA28,$AA$20:$AA$33,0)*100+RANK(AB28,$AB$20:$AB$33,1)*10+RANK(AC28,$AC$20:$AC$33,0) -> 151 | AE28: =+RANK(AD28,$AD$20:$AD$33,1) -> 1
C29: 5 | D29: ○ | E29: 2 | G29: - | J29: - | M29: - | R29: 6 | S29: ○ | T29: 3 | V29: -
A30: 13 | B30: =IF(データ２!B26="","",VLOOKUP(A30,データ２!$A$2:$B$216,2)) -> 七北クラブ | C30: B | D30: - | E30: 5 | F30: B | G30: - | H30: 10 | I30: B | J30: - | K30: 14 | L30: B | M30: - | N30: 17 | R30: ＊ | U30: B | V30: - | W30: 21 | X30: =COUNTIF(C30:W31,"○") -> 0 | Y30: =COUNTIF(C30:W31,"●") -> 1 | Z30: =COUNTIF(C30:W31,"△") -> 0 | AA30: =+X30*3+Z30*1 -> 0 | AB30: =+E31+H31+K31+N31+Q31+T31+W31 -> 6 | AC30: 3 | AD30: =+RANK(AA30,$AA$20:$AA$33,0)*100+RANK(AB30,$AB$20:$AB$33,1)*10+RANK(AC30,$AC$20:$AC$33,0) -> 272 | AE30: =+RANK(AD30,$AD$20:$AD$33,1) -> 7
D31: - | G31: - | J31: - | M31: - | O31: 3 | P31: ● | Q31: 6 | V31: -
A32: 14 | B32: =IF(データ２!B28="","",VLOOKUP(A32,データ２!$A$2:$B$216,2)) -> 馬込ジャガーズ | C32: B | D32: - | E32: 6 | F32: B | G32: - | H32: 11 | I32: B | J32: - | K32: 15 | L32: B | M32: - | N32: 18 | O32: B | P32: - | Q32: 20 | R32: B | S32: - | T32: 21 | U32: ＊ | X32: =COUNTIF(C32:W33,"○") -> 0 | Y32: =COUNTIF(C32:W33,"●") -> 0 | Z32: =COUNTIF(C32:W33,"△") -> 0 | AA32: =+X32*3+Z32*1 -> 0 | AB32: =+E33+H33+K33+N33+Q33+T33+W33 -> 0 | AC32: 0 | AD32: =+RANK(AA32,$AA$20:$AA$33,0)*100+RANK(AB32,$AB$20:$AB$33,1)*10+RANK(AC32,$AC$20:$AC$33,0) -> 214 | AE32: =+RANK(AD32,$AD$20:$AD$33,1) -> 2
D33: - | G33: - | J33: - | M33: - | P33: - | S33: -
B35: =+データ１!$B$2 -> 2021/2/21 | C35: =+データ１!$B$4 -> 2021年
B36: =+データ１!B10 -> スーパーリ－グ 第１５回大会 Ｃブロック ２０２１ | C36: =+IF(B37="","",+B37) -> 葛飾アニマルズ | F36: =+IF(B39="","",+B39) -> マッハブレーブス | I36: =+IF(B41="","",+B41) -> 久我山イーグルス | L36: =+IF(B43="","",+B43) -> 高輪台ファイターズ | O36: =+IF(B45="","",+B45) -> 新宿ドリーム | R36: =+IF(B47="","",+B47) -> 大島タイガース | U36: =+IF(B49="","",+B49) -> 東伊興シャインズ | X36: 勝 | Y36: 負 | Z36: 分 | AA36: 勝点 | AB36: 失点 | AC36: 得点 | AD36: 順位決定要素 | AE36: 順位
A37: 15 | B37: =IF(データ２!B30="","",VLOOKUP(A37,データ２!$A$2:$B$216,2)) -> 葛飾アニマルズ | C37: ＊ | F37: C | G37: - | H37: 1 | I37: C | J37: - | K37: 2 | L37: C | M37: - | N37: 3 | O37: C | P37: - | Q37: 4 | R37: C | S37: - | T37: 5 | U37: C | V37: - | W37: 6 | X37: =COUNTIF(C37:W38,"○") -> 0 | Y37: =COUNTIF(C37:W38,"●") -> 0 | Z37: =COUNTIF(C37:W38,"△") -> 0 | AA37: =+X37*3+Z37*1 -> 0 | AB37: =+E38+H38+K38+N38+Q38+T38+W38 -> 0 | AC37: =C38+F38+I38+L38+O38+R38+U38 -> 0 | AD37: =+RANK(AA37,$AA$37:$AA$50,0)*100+RANK(AB37,$AB$37:$AB$50,1)*10+RANK(AC37,$AC$37:$AC$50,0) -> 111 | AE37: =+RANK(AD37,$AD$37:$AD$50,1) -> 1
G38: - | J38: - | M38: - | P38: - | S38: - | V38: -
A39: 16 | B39: =IF(データ２!B32="","",VLOOKUP(A39,データ２!$A$2:$B$216,2)) -> マッハブレーブス | C39: C | D39: - | E39: 1 | F39: ＊ | I39: C | J39: - | K39: 7 | L39: C | M39: - | N39: 8 | O39: C | P39: - | Q39: 9 | R39: C | S39: - | T39: 10 | U39: C | V39: - | W39: 11 | X39: =COUNTIF(C39:W40,"○") -> 0 | Y39: =COUNTIF(C39:W40,"●") -> 0 | Z39: =COUNTIF(C39:W40,"△") -> 0 | AA39: =+X39*3+Z39*1 -> 0 | AB39: =+E40+H40+K40+N40+Q40+T40+W40 -> 0 | AC39: =C40+F40+I40+L40+O40+R40+U40 -> 0 | AD39: =+RANK(AA39,$AA$37:$AA$50,0)*100+RANK(AB39,$AB$37:$AB$50,1)*10+RANK(AC39,$AC$37:$AC$50,0) -> 111 | AE39: =+RANK(AD39,$AD$37:$AD$50,1) -> 1
D40: - | J40: - | M40: - | P40: - | S40: - | V40: -
A41: 17 | B41: =IF(データ２!B34="","",VLOOKUP(A41,データ２!$A$2:$B$216,2)) -> 久我山イーグルス | C41: C | D41: - | E41: 2 | F41: C | G41: - | H41: 7 | I41: ＊ | L41: C | M41: - | N41: 12 | O41: C | P41: - | Q41: 13 | R41: C | S41: - | T41: 14 | U41: C | V41: - | W41: 15 | X41: =COUNTIF(C41:W42,"○") -> 0 | Y41: =COUNTIF(C41:W42,"●") -> 0 | Z41: =COUNTIF(C41:W42,"△") -> 0 | AA41: =+X41*3+Z41*1 -> 0 | AB41: =+E42+H42+K42+N42+Q42+T42+W42 -> 0 | AC41: =C42+F42+I42+L42+O42+R42+U42 -> 0 | AD41: =+RANK(AA41,$AA$37:$AA$50,0)*100+RANK(AB41,$AB$37:$AB$50,1)*10+RANK(AC41,$AC$37:$AC$50,0) -> 111 | AE41: =+RANK(AD41,$AD$37:$AD$50,1) -> 1
D42: - | G42: - | M42: - | P42: - | S42: - | V42: -
A43: 18 | B43: =IF(データ２!B36="","",VLOOKUP(A43,データ２!$A$2:$B$216,2)) -> 高輪台ファイターズ | C43: C | D43: - | E43: 3 | F43: C | G43: - | H43: 8 | I43: C | J43: - | K43: 12 | L43: ＊ | O43: C | P43: - | Q43: 16 | R43: C | S43: - | T43: 17 | U43: C | V43: - | W43: 18 | X43: =COUNTIF(C43:W44,"○") -> 0 | Y43: =COUNTIF(C43:W44,"●") -> 0 | Z43: =COUNTIF(C43:W44,"△") -> 0 | AA43: =+X43*3+Z43*1 -> 0 | AB43: =+E44+H44+K44+N44+Q44+T44+W44 -> 0 | AC43: =C44+F44+I44+L44+O44+R44+U44 -> 0 | AD43: =+RANK(AA43,$AA$37:$AA$50,0)*100+RANK(AB43,$AB$37:$AB$50,1)*10+RANK(AC43,$AC$37:$AC$50,0) -> 111 | AE43: =+RANK(AD43,$AD$37:$AD$50,1) -> 1
D44: - | G44: - | J44: - | P44: - | S44: - | V44: -
A45: 19 | B45: =IF(データ２!B38="","",VLOOKUP(A45,データ２!$A$2:$B$216,2)) -> 新宿ドリーム | C45: C | D45: - | E45: 4 | F45: C | G45: - | H45: 9 | I45: C | J45: - | K45: 13 | L45: C | M45: - | N45: 16 | O45: ＊ | R45: C | S45: - | T45: 19 | U45: C | V45: - | W45: 20 | X45: =COUNTIF(C45:W46,"○") -> 0 | Y45: =COUNTIF(C45:W46,"●") -> 0 | Z45: =COUNTIF(C45:W46,"△") -> 0 | AA45: =+X45*3+Z45*1 -> 0 | AB45: =+E46+H46+K46+N46+Q46+T46+W46 -> 0 | AC45: =C46+F46+I46+L46+O46+R46+U46 -> 0 | AD45: =+RANK(AA45,$AA$37:$AA$50,0)*100+RANK(AB45,$AB$37:$AB$50,1)*10+RANK(AC45,$AC$37:$AC$50,0) -> 111 | AE45: =+RANK(AD45,$AD$37:$AD$50,1) -> 1
D46: - | G46: - | J46: - | M46: - | S46: - | V46: -
A47: 20 | B47: =IF(データ２!B40="","",VLOOKUP(A47,データ２!$A$2:$B$216,2)) -> 大島タイガース | C47: C | D47: - | E47: 5 | F47: C | G47: - | H47: 10 | I47: C | J47: - | K47: 14 | L47: C | M47: - | N47: 17 | O47: C | P47: - | Q47: 19 | R47: ＊ | U47: C | V47: - | W47: 21 | X47: =COUNTIF(C47:W48,"○") -> 0 | Y47: =COUNTIF(C47:W48,"●") -> 0 | Z47: =COUNTIF(C47:W48,"△") -> 0 | AA47: =+X47*3+Z47*1 -> 0 | AB47: =+E48+H48+K48+N48+Q48+T48+W48 -> 0 | AC47: 0 | AD47: =+RANK(AA47,$AA$37:$AA$50,0)*100+RANK(AB47,$AB$37:$AB$50,1)*10+RANK(AC47,$AC$37:$AC$50,0) -> 111 | AE47: =+RANK(AD47,$AD$37:$AD$50,1) -> 1
D48: - | G48: - | J48: - | M48: - | P48: - | V48: -
A49: 21 | B49: =IF(データ２!B42="","",VLOOKUP(A49,データ２!$A$2:$B$216,2)) -> 東伊興シャインズ | C49: C | D49: - | E49: 6 | F49: C | G49: - | H49: 11 | I49: C | J49: - | K49: 15 | L49: C | M49: - | N49: 18 | O49: C | P49: - | Q49: 20 | R49: C | S49: - | T49: 21 | U49: ＊ | X49: =COUNTIF(C49:W50,"○") -> 0 | Y49: =COUNTIF(C49:W50,"●") -> 0 | Z49: =COUNTIF(C49:W50,"△") -> 0 | AA49: =+X49*3+Z49*1 -> 0 | AB49: =+E50+H50+K50+N50+Q50+T50+W50 -> 0 | AC49: 0 | AD49: =+RANK(AA49,$AA$37:$AA$50,0)*100+RANK(AB49,$AB$37:$AB$50,1)*10+RANK(AC49,$AC$37:$AC$50,0) -> 111 | AE49: =+RANK(AD49,$AD$37:$AD$50,1) -> 1
D50: - | G50: - | J50: - | M50: - | P50: - | S50: -
B52: =+データ１!$B$2 -> 2021/2/21 | C52: =+データ１!$B$4 -> 2021年
B53: =+データ１!B12 -> スーパーリ－グ 第１５回大会 Ｄブロック ２０２１ | C53: =+IF(B54="","",+B54) -> レッドサンズ | F53: =+IF(B56="","",+B56) -> リトルジャイアンツ | I53: =+IF(B58="","",+B58) -> 目黒インパルス | L53: =+IF(B60="","",+B60) -> 船橋フェニックス | O53: =+IF(B62="","",+B62) -> 品川レインボーズ | R53: =+IF(B64="","",+B64) -> 江東ファイターズ | U53: =+IF(B66="","",+B66) -> ブラザースクラブ | X53: 勝 | Y53: 負 | Z53: 分 | AA53: 勝点 | AB53: 失点 | AC53: 得点 | AD53: 順位決定要素 | AE53: 順位
A54: 22 | B54: =IF(データ２!B44="","",VLOOKUP(A54,データ２!$A$2:$B$216,2)) -> レッドサンズ | C54: ＊ | F54: D | G54: - | H54: 1 | I54: D | J54: - | K54: 2 | L54: D | M54: - | N54: 3 | O54: D | P54: - | Q54: 4 | R54: D | S54: - | T54: 5 | U54: D | V54: - | W54: 6 | X54: =COUNTIF(C54:W55,"○") -> 0 | Y54: =COUNTIF(C54:W55,"●") -> 0 | Z54: =COUNTIF(C54:W55,"△") -> 0 | AA54: =+X54*3+Z54*1 -> 0 | AB54: =+E55+H55+K55+N55+Q55+T55+W55 -> 0 | AC54: =C55+F55+I55+L55+O55+R55+U55 -> 0 | AD54: =+RANK(AA54,$AA$54:$AA$67,0)*100+RANK(AB54,$AB$54:$AB$67,1)*10+RANK(AC54,$AC$54:$AC$67,0) -> 213 | AE54: =+RANK(AD54,$AD$54:$AD$67,1) -> 2
G55: - | J55: - | M55: - | P55: - | S55: - | V55: -
A56: 23 | B56: =IF(データ２!B46="","",VLOOKUP(A56,データ２!$A$2:$B$216,2)) -> リトルジャイアンツ | C56: D | D56: - | E56: 1 | F56: ＊ | I56: D | J56: - | K56: 7 | L56: D | M56: - | N56: 8 | O56: D | P56: - | Q56: 9 | R56: D | S56: - | T56: 10 | U56: D | V56: - | W56: 11 | X56: =COUNTIF(C56:W57,"○") -> 0 | Y56: =COUNTIF(C56:W57,"●") -> 0 | Z56: =COUNTIF(C56:W57,"△") -> 0 | AA56: =+X56*3+Z56*1 -> 0 | AB56: =+E57+H57+K57+N57+Q57+T57+W57 -> 0 | AC56: =C57+F57+I57+L57+O57+R57+U57 -> 0 | AD56: =+RANK(AA56,$AA$54:$AA$67,0)*100+RANK(AB56,$AB$54:$AB$67,1)*10+RANK(AC56,$AC$54:$AC$67,0) -> 213 | AE56: =+RANK(AD56,$AD$54:$AD$67,1) -> 2
D57: - | J57: - | M57: - | P57: - | S57: - | V57: -
A58: 24 | B58: =IF(データ２!B48="","",VLOOKUP(A58,データ２!$A$2:$B$216,2)) -> 目黒インパルス | C58: D | D58: - | E58: 2 | F58: D | G58: - | H58: 7 | I58: ＊ | L58: D | M58: - | N58: 12 | O58: D | P58: - | Q58: 13 | R58: D | S58: - | T58: 14 | U58: D | V58: - | W58: 15 | X58: =COUNTIF(C58:W59,"○") -> 0 | Y58: =COUNTIF(C58:W59,"●") -> 0 | Z58: =COUNTIF(C58:W59,"△") -> 0 | AA58: =+X58*3+Z58*1 -> 0 | AB58: =+E59+H59+K59+N59+Q59+T59+W59 -> 0 | AC58: =C59+F59+I59+L59+O59+R59+U59 -> 0 | AD58: =+RANK(AA58,$AA$54:$AA$67,0)*100+RANK(AB58,$AB$54:$AB$67,1)*10+RANK(AC58,$AC$54:$AC$67,0) -> 213 | AE58: =+RANK(AD58,$AD$54:$AD$67,1) -> 2
D59: - | G59: - | M59: - | P59: - | S59: - | V59: -
A60: 25 | B60: =IF(データ２!B50="","",VLOOKUP(A60,データ２!$A$2:$B$216,2)) -> 船橋フェニックス | C60: D | D60: - | E60: 3 | F60: D | G60: - | H60: 8 | I60: D | J60: - | K60: 12 | L60: ＊ | R60: D | S60: - | T60: 17 | U60: D | V60: - | W60: 18 | X60: =COUNTIF(C60:W61,"○") -> 1 | Y60: =COUNTIF(C60:W61,"●") -> 0 | Z60: =COUNTIF(C60:W61,"△") -> 0 | AA60: =+X60*3+Z60*1 -> 3 | AB60: =+E61+H61+K61+N61+Q61+T61+W61 -> 1 | AC60: =C61+F61+I61+L61+O61+R61+U61 -> 11 | AD60: =+RANK(AA60,$AA$54:$AA$67,0)*100+RANK(AB60,$AB$54:$AB$67,1)*10+RANK(AC60,$AC$54:$AC$67,0) -> 161 | AE60: =+RANK(AD60,$AD$54:$AD$67,1) -> 1
D61: - | G61: - | J61: - | O61: 11 | P61: ○ | Q61: 1 | S61: - | V61: -
A62: 26 | B62: =IF(データ２!B52="","",VLOOKUP(A62,データ２!$A$2:$B$216,2)) -> 品川レインボーズ | C62: D | D62: - | E62: 4 | F62: D | G62: - | H62: 9 | I62: D | J62: - | K62: 13 | O62: ＊ | R62: D | S62: - | T62: 19 | U62: D | V62: - | W62: 20 | X62: =COUNTIF(C62:W63,"○") -> 0 | Y62: =COUNTIF(C62:W63,"●") -> 1 | Z62: =COUNTIF(C62:W63,"△") -> 0 | AA62: =+X62*3+Z62*1 -> 0 | AB62: =+E63+H63+K63+N63+Q63+T63+W63 -> 11 | AC62: =C63+F63+I63+L63+O63+R63+U63 -> 1 | AD62: =+RANK(AA62,$AA$54:$AA$67,0)*100+RANK(AB62,$AB$54:$AB$67,1)*10+RANK(AC62,$AC$54:$AC$67,0) -> 272 | AE62: =+RANK(AD62,$AD$54:$AD$67,1) -> 7
D63: - | G63: - | J63: - | L63: 1 | M63: ● | N63: 11 | S63: - | V63: -
A64: 27 | B64: =IF(データ２!B54="","",VLOOKUP(A64,データ２!$A$2:$B$216,2)) -> 江東ファイターズ | C64: D | D64: - | E64: 5 | F64: D | G64: - | H64: 10 | I64: D | J64: - | K64: 14 | L64: D | M64: - | N64: 17 | O64: D | P64: - | Q64: 19 | R64: ＊ | U64: D | V64: - | W64: 21 | X64: =COUNTIF(C64:W65,"○") -> 0 | Y64: =COUNTIF(C64:W65,"●") -> 0 | Z64: =COUNTIF(C64:W65,"△") -> 0 | AA64: =+X64*3+Z64*1 -> 0 | AB64: =+E65+H65+K65+N65+Q65+T65+W65 -> 0 | AC64: 0 | AD64: =+RANK(AA64,$AA$54:$AA$67,0)*100+RANK(AB64,$AB$54:$AB$67,1)*10+RANK(AC64,$AC$54:$AC$67,0) -> 213 | AE64: =+RANK(AD64,$AD$54:$AD$67,1) -> 2
D65: - | G65: - | J65: - | M65: - | P65: - | V65: -
A66: 28 | B66: =IF(データ２!B56="","",VLOOKUP(A66,データ２!$A$2:$B$216,2)) -> ブラザースクラブ | C66: D | D66: - | E66: 6 | F66: D | G66: - | H66: 11 | I66: D | J66: - | K66: 15 | L66: D | M66: - | N66: 18 | O66: D | P66: - | Q66: 20 | R66: D | S66: - | T66: 21 | U66: ＊ | X66: =COUNTIF(C66:W67,"○") -> 0 | Y66: =COUNTIF(C66:W67,"●") -> 0 | Z66: =COUNTIF(C66:W67,"△") -> 0 | AA66: =+X66*3+Z66*1 -> 0 | AB66: =+E67+H67+K67+N67+Q67+T67+W67 -> 0 | AC66: 0 | AD66: =+RANK(AA66,$AA$54:$AA$67,0)*100+RANK(AB66,$AB$54:$AB$67,1)*10+RANK(AC66,$AC$54:$AC$67,0) -> 213 | AE66: =+RANK(AD66,$AD$54:$AD$67,1) -> 2
D67: - | G67: - | J67: - | M67: - | P67: - | S67: -
B69: =+データ１!$B$2 -> 2021/2/21 | C69: =+データ１!$B$4 -> 2021年
B70: =+データ１!B14 -> スーパーリ－グ 第１５回大会 Ｅブロック ２０２１ | C70: =+IF(B71="","",+B71) -> ゼットタイガー | F70: =+IF(B73="","",+B73) -> ジャパンキングス | I70: =+IF(B75="","",+B75) -> 中央バンディーズ | L70: =+IF(B77="","",+B77) -> ナインスターズ | O70: =+IF(B79="","",+B79) -> 品川ブルーレーシング | R70: =+IF(B81="","",+B81) -> 江東ジョーズ | U70: =+IF(B83="","",+B83) -> 西伊興若潮ジュニア | X70: 勝 | Y70: 負 | Z70: 分 | AA70: 勝点 | AB70: 失点 | AC70: 得点 | AD70: 順位決定要素 | AE70: 順位
A71: 29 | B71: =IF(データ２!B58="","",VLOOKUP(A71,データ２!$A$2:$B$216,2)) -> ゼットタイガー | C71: ＊ | F71: E | G71: - | H71: 1 | I71: E | J71: - | K71: 2 | L71: E | M71: - | N71: 3 | O71: E | P71: - | Q71: 4 | R71: E | S71: - | T71: 5 | U71: E | V71: - | W71: 6 | X71: =COUNTIF(C71:W72,"○") -> 0 | Y71: =COUNTIF(C71:W72,"●") -> 0 | Z71: =COUNTIF(C71:W72,"△") -> 0 | AA71: =+X71*3+Z71*1 -> 0 | AB71: =+E72+H72+K72+N72+Q72+T72+W72 -> 0 | AC71: =C72+F72+I72+L72+O72+R72+U72 -> 0 | AD71: =+RANK(AA71,$AA$71:$AA$84,0)*100+RANK(AB71,$AB$71:$AB$84,1)*10+RANK(AC71,$AC$71:$AC$84,0) -> 111 | AE71: =+RANK(AD71,$AD$71:$AD$84,1) -> 1
G72: - | J72: - | M72: - | P72: - | S72: - | V72: -
A73: 30 | B73: =IF(データ２!B60="","",VLOOKUP(A73,データ２!$A$2:$B$216,2)) -> ジャパンキングス | C73: E | D73: - | E73: 1 | F73: ＊ | I73: E | J73: - | K73: 7 | L73: E | M73: - | N73: 8 | O73: E | P73: - | Q73: 9 | R73: E | S73: - | T73: 10 | U73: E | V73: - | W73: 11 | X73: =COUNTIF(C73:W74,"○") -> 0 | Y73: =COUNTIF(C73:W74,"●") -> 0 | Z73: =COUNTIF(C73:W74,"△") -> 0 | AA73: =+X73*3+Z73*1 -> 0 | AB73: =+E74+H74+K74+N74+Q74+T74+W74 -> 0 | AC73: =C74+F74+I74+L74+O74+R74+U74 -> 0 | AD73: =+RANK(AA73,$AA$71:$AA$84,0)*100+RANK(AB73,$AB$71:$AB$84,1)*10+RANK(AC73,$AC$71:$AC$84,0) -> 111 | AE73: =+RANK(AD73,$AD$71:$AD$84,1) -> 1
D74: - | J74: - | M74: - | P74: - | S74: - | V74: -
A75: 31 | B75: =IF(データ２!B62="","",VLOOKUP(A75,データ２!$A$2:$B$216,2)) -> 中央バンディーズ | C75: E | D75: - | E75: 2 | F75: E | G75: - | H75: 7 | I75: ＊ | L75: E | M75: - | N75: 12 | O75: E | P75: - | Q75: 13 | R75: E | S75: - | T75: 14 | U75: E | V75: - | W75: 15 | X75: =COUNTIF(C75:W76,"○") -> 0 | Y75: =COUNTIF(C75:W76,"●") -> 0 | Z75: =COUNTIF(C75:W76,"△") -> 0 | AA75: =+X75*3+Z75*1 -> 0 | AB75: =+E76+H76+K76+N76+Q76+T76+W76 -> 0 | AC75: =C76+F76+I76+L76+O76+R76+U76 -> 0 | AD75: =+RANK(AA75,$AA$71:$AA$84,0)*100+RANK(AB75,$AB$71:$AB$84,1)*10+RANK(AC75,$AC$71:$AC$84,0) -> 111 | AE75: =+RANK(AD75,$AD$71:$AD$84,1) -> 1
D76: - | G76: - | M76: - | P76: - | S76: - | V76: -
A77: 32 | B77: =IF(データ２!B64="","",VLOOKUP(A77,データ２!$A$2:$B$216,2)) -> ナインスターズ | C77: E | D77: - | E77: 3 | F77: E | G77: - | H77: 8 | I77: E | J77: - | K77: 12 | L77: ＊ | O77: E | P77: - | Q77: 16 | R77: E | S77: - | T77: 17 | U77: E | V77: - | W77: 18 | X77: =COUNTIF(C77:W78,"○") -> 0 | Y77: =COUNTIF(C77:W78,"●") -> 0 | Z77: =COUNTIF(C77:W78,"△") -> 0 | AA77: =+X77*3+Z77*1 -> 0 | AB77: =+E78+H78+K78+N78+Q78+T78+W78 -> 0 | AC77: =C78+F78+I78+L78+O78+R78+U78 -> 0 | AD77: =+RANK(AA77,$AA$71:$AA$84,0)*100+RANK(AB77,$AB$71:$AB$84,1)*10+RANK(AC77,$AC$71:$AC$84,0) -> 111 | AE77: =+RANK(AD77,$AD$71:$AD$84,1) -> 1
D78: - | G78: - | J78: - | P78: - | S78: - | V78: -
A79: 33 | B79: =IF(データ２!B66="","",VLOOKUP(A79,データ２!$A$2:$B$216,2)) -> 品川ブルーレーシング | C79: E | D79: - | E79: 4 | F79: E | G79: - | H79: 9 | I79: E | J79: - | K79: 13 | L79: E | M79: - | N79: 16 | O79: ＊ | R79: E | S79: - | T79: 19 | U79: E | V79: - | W79: 20 | X79: =COUNTIF(C79:W80,"○") -> 0 | Y79: =COUNTIF(C79:W80,"●") -> 0 | Z79: =COUNTIF(C79:W80,"△") -> 0 | AA79: =+X79*3+Z79*1 -> 0 | AB79: =+E80+H80+K80+N80+Q80+T80+W80 -> 0 | AC79: =C80+F80+I80+L80+O80+R80+U80 -> 0 | AD79: =+RANK(AA79,$AA$71:$AA$84,0)*100+RANK(AB79,$AB$71:$AB$84,1)*10+RANK(AC79,$AC$71:$AC$84,0) -> 111 | AE79: =+RANK(AD79,$AD$71:$AD$84,1) -> 1
D80: - | G80: - | J80: - | M80: - | S80: - | V80: -
A81: 34 | B81: =IF(データ２!B68="","",VLOOKUP(A81,データ２!$A$2:$B$216,2)) -> 江東ジョーズ | C81: E | D81: - | E81: 5 | F81: E | G81: - | H81: 10 | I81: E | J81: - | K81: 14 | L81: E | M81: - | N81: 17 | O81: E | P81: - | Q81: 19 | R81: ＊ | U81: E | V81: - | W81: 21 | X81: =COUNTIF(C81:W82,"○") -> 0 | Y81: =COUNTIF(C81:W82,"●") -> 0 | Z81: =COUNTIF(C81:W82,"△") -> 0 | AA81: =+X81*3+Z81*1 -> 0 | AB81: =+E82+H82+K82+N82+Q82+T82+W82 -> 0 | AC81: 0 | AD81: =+RANK(AA81,$AA$71:$AA$84,0)*100+RANK(AB81,$AB$71:$AB$84,1)*10+RANK(AC81,$AC$71:$AC$84,0) -> 111 | AE81: =+RANK(AD81,$AD$71:$AD$84,1) -> 1
D82: - | G82: - | J82: - | M82: - | P82: - | V82: -
A83: 35 | B83: =IF(データ２!B70="","",VLOOKUP(A83,データ２!$A$2:$B$216,2)) -> 西伊興若潮ジュニア | C83: E | D83: - | E83: 6 | F83: E | G83: - | H83: 11 | I83: E | J83: - | K83: 15 | L83: E | M83: - | N83: 18 | O83: E | P83: - | Q83: 20 | R83: E | S83: - | T83: 21 | U83: ＊ | X83: =COUNTIF(C83:W84,"○") -> 0 | Y83: =COUNTIF(C83:W84,"●") -> 0 | Z83: =COUNTIF(C83:W84,"△") -> 0 | AA83: =+X83*3+Z83*1 -> 0 | AB83: =+E84+H84+K84+N84+Q84+T84+W84 -> 0 | AC83: 0 | AD83: =+RANK(AA83,$AA$71:$AA$84,0)*100+RANK(AB83,$AB$71:$AB$84,1)*10+RANK(AC83,$AC$71:$AC$84,0) -> 111 | AE83: =+RANK(AD83,$AD$71:$AD$84,1) -> 1
D84: - | G84: - | J84: - | M84: - | P84: - | S84: -
B86: =+データ１!$B$2 -> 2021/2/21 | C86: =+データ１!$B$4 -> 2021年
B87: =+データ１!B16 -> スーパーリ－グ 第１５回大会 Ｆブロック ２０２１ | C87: =+IF(B88="","",+B88) -> 西田野球クラブ | F87: =+IF(B90="","",+B90) -> 大向ベアーズ | I87: =+IF(B92="","",+B92) -> ヤングホークス | L87: =+IF(B94="","",+B94) -> 烏山ウイングス | O87: =+IF(B96="","",+B96) -> 礫川 | R87: =+IF(B98="","",+B98) -> 東雲メッツ | U87: =+IF(B100="","",+B100) -> ブラックキラーズ | X87: 勝 | Y87: 負 | Z87: 分 | AA87: 勝点 | AB87: 失点 | AC87: 得点 | AD87: 順位決定要素 | AE87: 順位
A88: 36 | B88: =IF(データ２!B72="","",VLOOKUP(A88,データ２!$A$2:$B$216,2)) -> 西田野球クラブ | C88: ＊ | F88: F | G88: - | H88: 1 | I88: F | J88: - | K88: 2 | L88: F | M88: - | N88: 3 | O88: F | P88: - | Q88: 4 | R88: F | S88: - | T88: 5 | U88: F | V88: - | W88: 6 | X88: =COUNTIF(C88:W89,"○") -> 0 | Y88: =COUNTIF(C88:W89,"●") -> 0 | Z88: =COUNTIF(C88:W89,"△") -> 0 | AA88: =+X88*3+Z88*1 -> 0 | AB88: =+E89+H89+K89+N89+Q89+T89+W89 -> 0 | AC88: =C89+F89+I89+L89+O89+R89+U89 -> 0 | AD88: =+RANK(AA88,$AA$88:$AA$101,0)*100+RANK(AB88,$AB$88:$AB$101,1)*10+RANK(AC88,$AC$88:$AC$101,0) -> 111 | AE88: =+RANK(AD88,$AD$88:$AD$101,1) -> 1
G89: - | J89: - | M89: - | P89: - | S89: - | V89: -
A90: 37 | B90: =IF(データ２!B74="","",VLOOKUP(A90,データ２!$A$2:$B$216,2)) -> 大向ベアーズ | C90: F | D90: - | E90: 1 | F90: ＊ | I90: F | J90: - | K90: 7 | L90: F | M90: - | N90: 8 | O90: F | P90: - | Q90: 9 | R90: F | S90: - | T90: 10 | U90: F | V90: - | W90: 11 | X90: =COUNTIF(C90:W91,"○") -> 0 | Y90: =COUNTIF(C90:W91,"●") -> 0 | Z90: =COUNTIF(C90:W91,"△") -> 0 | AA90: =+X90*3+Z90*1 -> 0 | AB90: =+E91+H91+K91+N91+Q91+T91+W91 -> 0 | AC90: =C91+F91+I91+L91+O91+R91+U91 -> 0 | AD90: =+RANK(AA90,$AA$88:$AA$101,0)*100+RANK(AB90,$AB$88:$AB$101,1)*10+RANK(AC90,$AC$88:$AC$101,0) -> 111 | AE90: =+RANK(AD90,$AD$88:$AD$101,1) -> 1
D91: - | J91: - | M91: - | P91: - | S91: - | V91: -
A92: 38 | B92: =IF(データ２!B76="","",VLOOKUP(A92,データ２!$A$2:$B$216,2)) -> ヤングホークス | C92: F | D92: - | E92: 2 | F92: F | G92: - | H92: 7 | I92: ＊ | L92: F | M92: - | N92: 12 | O92: F | P92: - | Q92: 13 | R92: F | S92: - | T92: 14 | U92: F | V92: - | W92: 15 | X92: =COUNTIF(C92:W93,"○") -> 0 | Y92: =COUNTIF(C92:W93,"●") -> 0 | Z92: =COUNTIF(C92:W93,"△") -> 0 | AA92: =+X92*3+Z92*1 -> 0 | AB92: =+E93+H93+K93+N93+Q93+T93+W93 -> 0 | AC92: =C93+F93+I93+L93+O93+R93+U93 -> 0 | AD92: =+RANK(AA92,$AA$88:$AA$101,0)*100+RANK(AB92,$AB$88:$AB$101,1)*10+RANK(AC92,$AC$88:$AC$101,0) -> 111 | AE92: =+RANK(AD92,$AD$88:$AD$101,1) -> 1
D93: - | G93: - | M93: - | P93: - | S93: - | V93: -
A94: 39 | B94: =IF(データ２!B78="","",VLOOKUP(A94,データ２!$A$2:$B$216,2)) -> 烏山ウイングス | C94: F | D94: - | E94: 3 | F94: F | G94: - | H94: 8 | I94: F | J94: - | K94: 12 | L94: ＊ | O94: F | P94: - | Q94: 16 | R94: F | S94: - | T94: 17 | U94: F | V94: - | W94: 18 | X94: =COUNTIF(C94:W95,"○") -> 0 | Y94: =COUNTIF(C94:W95,"●") -> 0 | Z94: =COUNTIF(C94:W95,"△") -> 0 | AA94: =+X94*3+Z94*1 -> 0 | AB94: =+E95+H95+K95+N95+Q95+T95+W95 -> 0 | AC94: =C95+F95+I95+L95+O95+R95+U95 -> 0 | AD94: =+RANK(AA94,$AA$88:$AA$101,0)*100+RANK(AB94,$AB$88:$AB$101,1)*10+RANK(AC94,$AC$88:$AC$101,0) -> 111 | AE94: =+RANK(AD94,$AD$88:$AD$101,1) -> 1
D95: - | G95: - | J95: - | P95: - | S95: - | V95: -
A96: 40 | B96: =IF(データ２!B80="","",VLOOKUP(A96,データ２!$A$2:$B$216,2)) -> 礫川 | C96: F | D96: - | E96: 4 | F96: F | G96: - | H96: 9 | I96: F | J96: - | K96: 13 | L96: F | M96: - | N96: 16 | O96: ＊ | R96: F | S96: - | T96: 19 | U96: F | V96: - | W96: 20 | X96: =COUNTIF(C96:W97,"○") -> 0 | Y96: =COUNTIF(C96:W97,"●") -> 0 | Z96: =COUNTIF(C96:W97,"△") -> 0 | AA96: =+X96*3+Z96*1 -> 0 | AB96: =+E97+H97+K97+N97+Q97+T97+W97 -> 0 | AC96: =C97+F97+I97+L97+O97+R97+U97 -> 0 | AD96: =+RANK(AA96,$AA$88:$AA$101,0)*100+RANK(AB96,$AB$88:$AB$101,1)*10+RANK(AC96,$AC$88:$AC$101,0) -> 111 | AE96: =+RANK(AD96,$AD$88:$AD$101,1) -> 1
D97: - | G97: - | J97: - | M97: - | S97: - | V97: -
A98: 41 | B98: =IF(データ２!B82="","",VLOOKUP(A98,データ２!$A$2:$B$216,2)) -> 東雲メッツ | C98: F | D98: - | E98: 5 | F98: F | G98: - | H98: 10 | I98: F | J98: - | K98: 14 | L98: F | M98: - | N98: 17 | O98: F | P98: - | Q98: 19 | R98: ＊ | U98: F | V98: - | W98: 21 | X98: =COUNTIF(C98:W99,"○") -> 0 | Y98: =COUNTIF(C98:W99,"●") -> 0 | Z98: =COUNTIF(C98:W99,"△") -> 0 | AA98: =+X98*3+Z98*1 -> 0 | AB98: =+E99+H99+K99+N99+Q99+T99+W99 -> 0 | AC98: 0 | AD98: =+RANK(AA98,$AA$88:$AA$101,0)*100+RANK(AB98,$AB$88:$AB$101,1)*10+RANK(AC98,$AC$88:$AC$101,0) -> 111 | AE98: =+RANK(AD98,$AD$88:$AD$101,1) -> 1
D99: - | G99: - | J99: - | M99: - | P99: - | V99: -
A100: 42 | B100: =IF(データ２!B84="","",VLOOKUP(A100,データ２!$A$2:$B$216,2)) -> ブラックキラーズ | C100: F | D100: - | E100: 6 | F100: F | G100: - | H100: 11 | I100: F | J100: - | K100: 15 | L100: F | M100: - | N100: 18 | O100: F | P100: - | Q100: 20 | R100: F | S100: - | T100: 21 | U100: ＊ | X100: =COUNTIF(C100:W101,"○") -> 0 | Y100: =COUNTIF(C100:W101,"●") -> 0 | Z100: =COUNTIF(C100:W101,"△") -> 0 | AA100: =+X100*3+Z100*1 -> 0 | AB100: =+E101+H101+K101+N101+Q101+T101+W101 -> 0 | AC100: 0 | AD100: =+RANK(AA100,$AA$88:$AA$101,0)*100+RANK(AB100,$AB$88:$AB$101,1)*10+RANK(AC100,$AC$88:$AC$101,0) -> 111 | AE100: =+RANK(AD100,$AD$88:$AD$101,1) -> 1
D101: - | G101: - | J101: - | M101: - | P101: - | S101: -
B103: =+データ１!$B$2 -> 2021/2/21 | C103: =+データ１!$B$4 -> 2021年
B104: =+データ１!B18 -> スーパーリ－グ 第１５回大会 Ｇブロック ２０２１ | C104: =+IF(B105="","",+B105) -> 南千住ペガサス | F104: =+IF(B107="","",+B107) -> 金町ジャイアンツ | I104: =+IF(B109="","",+B109) -> 月島ライオンズ | L104: =+IF(B111="","",+B111) -> 墨田スターズ | O104: =+IF(B113="","",+B113) -> 御殿山ファイターズ | R104: =+IF(B115="","",+B115) -> 越中島ブレーブス | U104: =+IF(B117="","",+B117) -> 新田ファイヤーズ | X104: 勝 | Y104: 負 | Z104: 分 | AA104: 勝点 | AB104: 失点 | AC104: 得点 | AD104: 順位決定要素 | AE104: 順位
A105: 43 | B105: =IF(データ２!B86="","",VLOOKUP(A105,データ２!$A$2:$B$216,2)) -> 南千住ペガサス | C105: ＊ | F105: G | G105: - | H105: 1 | L105: G | M105: - | N105: 3 | O105: G | P105: - | Q105: 4 | R105: G | S105: - | T105: 5 | U105: G | V105: - | W105: 6 | X105: =COUNTIF(C105:W106,"○") -> 1 | Y105: =COUNTIF(C105:W106,"●") -> 0 | Z105: =COUNTIF(C105:W106,"△") -> 0 | AA105: =+X105*3+Z105*1 -> 3 | AB105: =+E106+H106+K106+N106+Q106+T106+W106 -> 0 | AC105: =C106+F106+I106+L106+O106+R106+U106 -> 10 | AD105: =+RANK(AA105,$AA$105:$AA$118,0)*100+RANK(AB105,$AB$105:$AB$1118,1)*10+RANK(AC105,$AC$105:$AC$118,0) -> 111 | AE105: =+RANK(AD105,$AD$105:$AD$118,1) -> 1
G106: - | I106: 10 | J106: ○ | K106: 0 | M106: - | P106: - | S106: - | V106: -
A107: 44 | B107: =IF(データ２!B88="","",VLOOKUP(A107,データ２!$A$2:$B$216,2)) -> 金町ジャイアンツ | C107: G | D107: - | E107: 1 | F107: ＊ | I107: G | J107: - | K107: 7 | L107: G | M107: - | N107: 8 | O107: G | P107: - | Q107: 9 | R107: G | S107: - | T107: 10 | U107: G | V107: - | W107: 11 | X107: =COUNTIF(C107:W108,"○") -> 0 | Y107: =COUNTIF(C107:W108,"●") -> 0 | Z107: =COUNTIF(C107:W108,"△") -> 0 | AA107: =+X107*3+Z107*1 -> 0 | AB107: =+E108+H108+K108+N108+Q108+T108+W108 -> 0 | AC107: =C108+F108+I108+L108+O108+R108+U108 -> 0 | AD107: =+RANK(AA107,$AA$105:$AA$118,0)*100+RANK(AB107,$AB$105:$AB$1118,1)*10+RANK(AC107,$AC$105:$AC$118,0) -> 212 | AE107: =+RANK(AD107,$AD$105:$AD$118,1) -> 2
D108: - | J108: - | M108: - | P108: - | S108: - | V108: -
A109: 45 | B109: =IF(データ２!B90="","",VLOOKUP(A109,データ２!$A$2:$B$216,2)) -> 月島ライオンズ | F109: G | G109: - | H109: 7 | I109: ＊ | L109: G | M109: - | N109: 12 | O109: G | P109: - | Q109: 13 | R109: G | S109: - | T109: 14 | U109: G | V109: - | W109: 15 | X109: =COUNTIF(C109:W110,"○") -> 0 | Y109: =COUNTIF(C109:W110,"●") -> 1 | Z109: =COUNTIF(C109:W110,"△") -> 0 | AA109: =+X109*3+Z109*1 -> 0 | AB109: =+E110+H110+K110+N110+Q110+T110+W110 -> 10 | AC109: =C110+F110+I110+L110+O110+R110+U110 -> 0 | AD109: =+RANK(AA109,$AA$105:$AA$118,0)*100+RANK(AB109,$AB$105:$AB$1118,1)*10+RANK(AC109,$AC$105:$AC$118,0) -> 752 | AE109: =+RANK(AD109,$AD$105:$AD$118,1) -> 7
C110: 0 | D110: ● | E110: 10 | G110: - | M110: - | P110: - | S110: - | V110: -
A111: 46 | B111: =IF(データ２!B92="","",VLOOKUP(A111,データ２!$A$2:$B$216,2)) -> 墨田スターズ | C111: G | D111: - | E111: 3 | F111: G | G111: - | H111: 8 | I111: G | J111: - | K111: 12 | L111: ＊ | O111: G | P111: - | Q111: 16 | R111: G | S111: - | T111: 17 | U111: G | V111: - | W111: 18 | X111: =COUNTIF(C111:W112,"○") -> 0 | Y111: =COUNTIF(C111:W112,"●") -> 0 | Z111: =COUNTIF(C111:W112,"△") -> 0 | AA111: =+X111*3+Z111*1 -> 0 | AB111: =+E112+H112+K112+N112+Q112+T112+W112 -> 0 | AC111: =C112+F112+I112+L112+O112+R112+U112 -> 0 | AD111: =+RANK(AA111,$AA$105:$AA$118,0)*100+RANK(AB111,$AB$105:$AB$1118,1)*10+RANK(AC111,$AC$105:$AC$118,0) -> 212 | AE111: =+RANK(AD111,$AD$105:$AD$118,1) -> 2
D112: - | G112: - | J112: - | P112: - | S112: - | V112: -
A113: 47 | B113: =IF(データ２!B94="","",VLOOKUP(A113,データ２!$A$2:$B$216,2)) -> 御殿山ファイターズ | C113: G | D113: - | E113: 4 | F113: G | G113: - | H113: 9 | I113: G | J113: - | K113: 13 | L113: G | M113: - | N113: 16 | O113: ＊ | R113: G | S113: - | T113: 19 | U113: G | V113: - | W113: 20 | X113: =COUNTIF(C113:W114,"○") -> 0 | Y113: =COUNTIF(C113:W114,"●") -> 0 | Z113: =COUNTIF(C113:W114,"△") -> 0 | AA113: =+X113*3+Z113*1 -> 0 | AB113: =+E114+H114+K114+N114+Q114+T114+W114 -> 0 | AC113: =C114+F114+I114+L114+O114+R114+U114 -> 0 | AD113: =+RANK(AA113,$AA$105:$AA$118,0)*100+RANK(AB113,$AB$105:$AB$1118,1)*10+RANK(AC113,$AC$105:$AC$118,0) -> 212 | AE113: =+RANK(AD113,$AD$105:$AD$118,1) -> 2
D114: - | G114: - | J114: - | M114: - | S114: - | V114: -
A115: 48 | B115: =IF(データ２!B96="","",VLOOKUP(A115,データ２!$A$2:$B$216,2)) -> 越中島ブレーブス | C115: G | D115: - | E115: 5 | F115: G | G115: - | H115: 10 | I115: G | J115: - | K115: 14 | L115: G | M115: - | N115: 17 | O115: G | P115: - | Q115: 19 | R115: ＊ | U115: G | V115: - | W115: 21 | X115: =COUNTIF(C115:W116,"○") -> 0 | Y115: =COUNTIF(C115:W116,"●") -> 0 | Z115: =COUNTIF(C115:W116,"△") -> 0 | AA115: =+X115*3+Z115*1 -> 0 | AB115: =+E116+H116+K116+N116+Q116+T116+W116 -> 0 | AC115: 0 | AD115: =+RANK(AA115,$AA$105:$AA$118,0)*100+RANK(AB115,$AB$105:$AB$1118,1)*10+RANK(AC115,$AC$105:$AC$118,0) -> 212 | AE115: =+RANK(AD115,$AD$105:$AD$118,1) -> 2
D116: - | G116: - | J116: - | M116: - | P116: - | V116: -
A117: 49 | B117: =IF(データ２!B98="","",VLOOKUP(A117,データ２!$A$2:$B$216,2)) -> 新田ファイヤーズ | C117: G | D117: - | E117: 6 | F117: G | G117: - | H117: 11 | I117: G | J117: - | K117: 15 | L117: G | M117: - | N117: 18 | O117: G | P117: - | Q117: 20 | R117: G | S117: - | T117: 21 | U117: ＊ | X117: =COUNTIF(C117:W118,"○") -> 0 | Y117: =COUNTIF(C117:W118,"●") -> 0 | Z117: =COUNTIF(C117:W118,"△") -> 0 | AA117: =+X117*3+Z117*1 -> 0 | AB117: =+E118+H118+K118+N118+Q118+T118+W118 -> 0 | AC117: 0 | AD117: =+RANK(AA117,$AA$105:$AA$118,0)*100+RANK(AB117,$AB$105:$AB$1118,1)*10+RANK(AC117,$AC$105:$AC$118,0) -> 212 | AE117: =+RANK(AD117,$AD$105:$AD$118,1) -> 2
D118: - | G118: - | J118: - | M118: - | P118: - | S118: -
B120: =+データ１!$B$2 -> 2021/2/21 | C120: =+データ１!$B$4 -> 2021年
B121: =+データ１!B20 -> スーパーリ－グ 第１５回大会 Ｈブロック ２０２１ | C121: =+IF(B122="","",+B122) -> 大島中央 | F121: =+IF(B124="","",+B124) -> 葛西ファイターズ | I121: =+IF(B126="","",+B126) -> 高井戸東少年野球 | L121: =+IF(B128="","",+B128) -> 扇ターキーズ | O121: =+IF(B130="","",+B130) -> 茗荷谷クラブ | R121: =+IF(B132="","",+B132) -> サンジュニア | U121: =+IF(B134="","",+B134) -> 竹仲 | X121: 勝 | Y121: 負 | Z121: 分 | AA121: 勝点 | AB121: 失点 | AC121: 得点 | AD121: 順位決定要素 | AE121: 順位
A122: 50 | B122: =IF(データ２!B100="","",VLOOKUP(A122,データ２!$A$2:$B$216,2)) -> 大島中央 | C122: ＊ | F122: H | G122: - | H122: 1 | I122: H | J122: - | K122: 2 | L122: H | M122: - | N122: 3 | O122: H | P122: - | Q122: 4 | R122: H | S122: - | T122: 5 | U122: H | V122: - | W122: 6 | X122: =COUNTIF(C122:W123,"○") -> 0 | Y122: =COUNTIF(C122:W123,"●") -> 0 | Z122: =COUNTIF(C122:W123,"△") -> 0 | AA122: =+X122*3+Z122*1 -> 0 | AB122: =+E123+H123+K123+N123+Q123+T123+W123 -> 0 | AC122: =C123+F123+I123+L123+O123+R123+U123 -> 0 | AD122: =+RANK(AA122,$AA$122:$AA$135,0)*100+RANK(AB122,$AB$122:$AB$135,1)*10+RANK(AC122,$AC$122:$AC$135,0) -> 111 | AE122: =+RANK(AD122,$AD$122:$AD$135,1) -> 1
G123: - | J123: - | M123: - | P123: - | S123: - | V123: -
A124: 51 | B124: =IF(データ２!B102="","",VLOOKUP(A124,データ２!$A$2:$B$216,2)) -> 葛西ファイターズ | C124: H | D124: - | E124: 1 | F124: ＊ | I124: H | J124: - | K124: 7 | L124: H | M124: - | N124: 8 | O124: H | P124: - | Q124: 9 | R124: H | S124: - | T124: 10 | U124: H | V124: - | W124: 11 | X124: =COUNTIF(C124:W125,"○") -> 0 | Y124: =COUNTIF(C124:W125,"●") -> 0 | Z124: =COUNTIF(C124:W125,"△") -> 0 | AA124: =+X124*3+Z124*1 -> 0 | AB124: =+E125+H125+K125+N125+Q125+T125+W125 -> 0 | AC124: =C125+F125+I125+L125+O125+R125+U125 -> 0 | AD124: =+RANK(AA124,$AA$122:$AA$135,0)*100+RANK(AB124,$AB$122:$AB$135,1)*10+RANK(AC124,$AC$122:$AC$135,0) -> 111 | AE124: =+RANK(AD124,$AD$122:$AD$135,1) -> 1
D125: - | J125: - | M125: - | P125: - | S125: - | V125: -
A126: 52 | B126: =IF(データ２!B104="","",VLOOKUP(A126,データ２!$A$2:$B$216,2)) -> 高井戸東少年野球 | C126: H | D126: - | E126: 2 | F126: H | G126: - | H126: 7 | I126: ＊ | L126: H | M126: - | N126: 12 | O126: H | P126: - | Q126: 13 | R126: H | S126: - | T126: 14 | U126: H | V126: - | W126: 15 | X126: =COUNTIF(C126:W127,"○") -> 0 | Y126: =COUNTIF(C126:W127,"●") -> 0 | Z126: =COUNTIF(C126:W127,"△") -> 0 | AA126: =+X126*3+Z126*1 -> 0 | AB126: =+E127+H127+K127+N127+Q127+T127+W127 -> 0 | AC126: =C127+F127+I127+L127+O127+R127+U127 -> 0 | AD126: =+RANK(AA126,$AA$122:$AA$135,0)*100+RANK(AB126,$AB$122:$AB$135,1)*10+RANK(AC126,$AC$122:$AC$135,0) -> 111 | AE126: =+RANK(AD126,$AD$122:$AD$135,1) -> 1
D127: - | G127: - | M127: - | P127: - | S127: - | V127: -
A128: 53 | B128: =IF(データ２!B106="","",VLOOKUP(A128,データ２!$A$2:$B$216,2)) -> 扇ターキーズ | C128: H | D128: - | E128: 3 | F128: H | G128: - | H128: 8 | I128: H | J128: - | K128: 12 | L128: ＊ | O128: H | P128: - | Q128: 16 | R128: H | S128: - | T128: 17 | U128: H | V128: - | W128: 18 | X128: =COUNTIF(C128:W129,"○") -> 0 | Y128: =COUNTIF(C128:W129,"●") -> 0 | Z128: =COUNTIF(C128:W129,"△") -> 0 | AA128: =+X128*3+Z128*1 -> 0 | AB128: =+E129+H129+K129+N129+Q129+T129+W129 -> 0 | AC128: =C129+F129+I129+L129+O129+R129+U129 -> 0 | AD128: =+RANK(AA128,$AA$122:$AA$135,0)*100+RANK(AB128,$AB$122:$AB$135,1)*10+RANK(AC128,$AC$122:$AC$135,0) -> 111 | AE128: =+RANK(AD128,$AD$122:$AD$135,1) -> 1
D129: - | G129: - | J129: - | P129: - | S129: - | V129: -
A130: 54 | B130: =IF(データ２!B108="","",VLOOKUP(A130,データ２!$A$2:$B$216,2)) -> 茗荷谷クラブ | C130: H | D130: - | E130: 4 | F130: H | G130: - | H130: 9 | I130: H | J130: - | K130: 13 | L130: H | M130: - | N130: 16 | O130: ＊ | R130: H | S130: - | T130: 19 | U130: H | V130: - | W130: 20 | X130: =COUNTIF(C130:W131,"○") -> 0 | Y130: =COUNTIF(C130:W131,"●") -> 0 | Z130: =COUNTIF(C130:W131,"△") -> 0 | AA130: =+X130*3+Z130*1 -> 0 | AB130: =+E131+H131+K131+N131+Q131+T131+W131 -> 0 | AC130: =C131+F131+I131+L131+O131+R131+U131 -> 0 | AD130: =+RANK(AA130,$AA$122:$AA$135,0)*100+RANK(AB130,$AB$122:$AB$135,1)*10+RANK(AC130,$AC$122:$AC$135,0) -> 111 | AE130: =+RANK(AD130,$AD$122:$AD$135,1) -> 1
D131: - | G131: - | J131: - | M131: - | S131: - | V131: -
A132: 55 | B132: =IF(データ２!B110="","",VLOOKUP(A132,データ２!$A$2:$B$216,2)) -> サンジュニア | C132: H | D132: - | E132: 5 | F132: H | G132: - | H132: 10 | I132: H | J132: - | K132: 14 | L132: H | M132: - | N132: 17 | O132: H | P132: - | Q132: 19 | R132: ＊ | U132: H | V132: - | W132: 21 | X132: =COUNTIF(C132:W133,"○") -> 0 | Y132: =COUNTIF(C132:W133,"●") -> 0 | Z132: =COUNTIF(C132:W133,"△") -> 0 | AA132: =+X132*3+Z132*1 -> 0 | AB132: =+E133+H133+K133+N133+Q133+T133+W133 -> 0 | AC132: 0 | AD132: =+RANK(AA132,$AA$122:$AA$135,0)*100+RANK(AB132,$AB$122:$AB$135,1)*10+RANK(AC132,$AC$122:$AC$135,0) -> 111 | AE132: =+RANK(AD132,$AD$122:$AD$135,1) -> 1
D133: - | G133: - | J133: - | M133: - | P133: - | V133: -
A134: 56 | B134: =IF(データ２!B112="","",VLOOKUP(A134,データ２!$A$2:$B$216,2)) -> 竹仲 | C134: H | D134: - | E134: 6 | F134: H | G134: - | H134: 11 | I134: H | J134: - | K134: 15 | L134: H | M134: - | N134: 18 | O134: H | P134: - | Q134: 20 | R134: H | S134: - | T134: 21 | U134: ＊ | X134: =COUNTIF(C134:W135,"○") -> 0 | Y134: =COUNTIF(C134:W135,"●") -> 0 | Z134: =COUNTIF(C134:W135,"△") -> 0 | AA134: =+X134*3+Z134*1 -> 0 | AB134: =+E135+H135+K135+N135+Q135+T135+W135 -> 0 | AC134: 0 | AD134: =+RANK(AA134,$AA$122:$AA$135,0)*100+RANK(AB134,$AB$122:$AB$135,1)*10+RANK(AC134,$AC$122:$AC$135,0) -> 111 | AE134: =+RANK(AD134,$AD$122:$AD$135,1) -> 1
D135: - | G135: - | J135: - | M135: - | P135: - | S135: -
B137: =+データ１!$B$2 -> 2021/2/21 | C137: =+データ１!$B$4 -> 2021年
B138: =+データ１!B22 -> スーパーリ－グ 第１５回大会 Ｉブロック ２０２１ | C138: =+IF(B139="","",+B139) -> 山野レッドイーグルス | F138: =+IF(B141="","",+B141) -> しらさぎ | I138: =+IF(B143="","",+B143) -> 晴海アポローズ | L138: =+IF(B145="","",+B145) -> 元芝ハヤブサ | O138: =+IF(B147="","",+B147) -> 落一アポロ | R138: =+IF(B149="","",+B149) -> ニュー愛宕 | U138: =+IF(B151="","",+B151) -> レッドファイヤーズ | X138: 勝 | Y138: 負 | Z138: 分 | AA138: 勝点 | AB138: 失点 | AC138: 得点 | AD138: 順位決定要素 | AE138: 順位
A139: 57 | B139: =IF(データ２!B114="","",VLOOKUP(A139,データ２!$A$2:$B$216,2)) -> 山野レッドイーグルス | C139: ＊ | F139: I | G139: - | H139: 1 | I139: I | J139: - | K139: 2 | L139: I | M139: - | N139: 3 | O139: I | P139: - | Q139: 4 | R139: I | S139: - | T139: 5 | U139: I | V139: - | W139: 6 | X139: =COUNTIF(C139:W140,"○") -> 0 | Y139: =COUNTIF(C139:W140,"●") -> 0 | Z139: =COUNTIF(C139:W140,"△") -> 0 | AA139: =+X139*3+Z139*1 -> 0 | AB139: =+E140+H140+K140+N140+Q140+T140+W140 -> 0 | AC139: =C140+F140+I140+L140+O140+R140+U140 -> 0 | AD139: =+RANK(AA139,$AA$139:$AA$152,0)*100+RANK(AB139,$AB$139:$AB$152,1)*10+RANK(AC139,$AC$139:$AC$152,0) -> 213 | AE139: =+RANK(AD139,$AD$139:$AD$152,1) -> 2
G140: - | J140: - | M140: - | P140: - | S140: - | V140: -
A141: 58 | B141: =IF(データ２!B116="","",VLOOKUP(A141,データ２!$A$2:$B$216,2)) -> しらさぎ | C141: I | D141: - | E141: 1 | F141: ＊ | I141: I | J141: - | K141: 7 | L141: I | M141: - | N141: 8 | O141: I | P141: - | Q141: 9 | R141: I | S141: - | T141: 10 | U141: I | V141: - | W141: 11 | X141: =COUNTIF(C141:W142,"○") -> 0 | Y141: =COUNTIF(C141:W142,"●") -> 0 | Z141: =COUNTIF(C141:W142,"△") -> 0 | AA141: =+X141*3+Z141*1 -> 0 | AB141: =+E142+H142+K142+N142+Q142+T142+W142 -> 0 | AC141: =C142+F142+I142+L142+O142+R142+U142 -> 0 | AD141: =+RANK(AA141,$AA$139:$AA$152,0)*100+RANK(AB141,$AB$139:$AB$152,1)*10+RANK(AC141,$AC$139:$AC$152,0) -> 213 | AE141: =+RANK(AD141,$AD$139:$AD$152,1) -> 2
D142: - | J142: - | M142: - | P142: - | S142: - | V142: -
A143: 59 | B143: =IF(データ２!B118="","",VLOOKUP(A143,データ２!$A$2:$B$216,2)) -> 晴海アポローズ | C143: I | D143: - | E143: 2 | F143: I | G143: - | H143: 7 | I143: ＊ | L143: I | M143: - | N143: 12 | R143: I | S143: - | T143: 14 | U143: I | V143: - | W143: 15 | X143: =COUNTIF(C143:W144,"○") -> 0 | Y143: =COUNTIF(C143:W144,"●") -> 1 | Z143: =COUNTIF(C143:W144,"△") -> 0 | AA143: =+X143*3+Z143*1 -> 0 | AB143: =+E144+H144+K144+N144+Q144+T144+W144 -> 8 | AC143: =C144+F144+I144+L144+O144+R144+U144 -> 7 | AD143: =+RANK(AA143,$AA$139:$AA$152,0)*100+RANK(AB143,$AB$139:$AB$152,1)*10+RANK(AC143,$AC$139:$AC$152,0) -> 272 | AE143: =+RANK(AD143,$AD$139:$AD$152,1) -> 7
D144: - | G144: - | M144: - | O144: 7 | P144: ● | Q144: 8 | S144: - | V144: -
A145: 60 | B145: =IF(データ２!B120="","",VLOOKUP(A145,データ２!$A$2:$B$216,2)) -> 元芝ハヤブサ | C145: I | D145: - | E145: 3 | F145: I | G145: - | H145: 8 | I145: I | J145: - | K145: 12 | L145: ＊ | O145: I | P145: - | Q145: 16 | R145: I | S145: - | T145: 17 | U145: I | V145: - | W145: 18 | X145: =COUNTIF(C145:W146,"○") -> 0 | Y145: =COUNTIF(C145:W146,"●") -> 0 | Z145: =COUNTIF(C145:W146,"△") -> 0 | AA145: =+X145*3+Z145*1 -> 0 | AB145: =+E146+H146+K146+N146+Q146+T146+W146 -> 0 | AC145: =C146+F146+I146+L146+O146+R146+U146 -> 0 | AD145: =+RANK(AA145,$AA$139:$AA$152,0)*100+RANK(AB145,$AB$139:$AB$152,1)*10+RANK(AC145,$AC$139:$AC$152,0) -> 213 | AE145: =+RANK(AD145,$AD$139:$AD$152,1) -> 2
D146: - | G146: - | J146: - | P146: - | S146: - | V146: -
A147: 61 | B147: =IF(データ２!B122="","",VLOOKUP(A147,データ２!$A$2:$B$216,2)) -> 落一アポロ | C147: I | D147: - | E147: 4 | F147: I | G147: - | H147: 9 | L147: I | M147: - | N147: 16 | O147: ＊ | R147: I | S147: - | T147: 19 | U147: I | V147: - | W147: 20 | X147: =COUNTIF(C147:W148,"○") -> 1 | Y147: =COUNTIF(C147:W148,"●") -> 0 | Z147: =COUNTIF(C147:W148,"△") -> 0 | AA147: =+X147*3+Z147*1 -> 3 | AB147: =+E148+H148+K148+N148+Q148+T148+W148 -> 7 | AC147: =C148+F148+I148+L148+O148+R148+U148 -> 8 | AD147: =+RANK(AA147,$AA$139:$AA$152,0)*100+RANK(AB147,$AB$139:$AB$152,1)*10+RANK(AC147,$AC$139:$AC$152,0) -> 161 | AE147: =+RANK(AD147,$AD$139:$AD$152,1) -> 1
D148: - | G148: - | I148: 8 | J148: ○ | K148: 7 | M148: - | S148: - | V148: -
A149: 62 | B149: =IF(データ２!B124="","",VLOOKUP(A149,データ２!$A$2:$B$216,2)) -> ニュー愛宕 | C149: I | D149: - | E149: 5 | F149: I | G149: - | H149: 10 | I149: I | J149: - | K149: 14 | L149: I | M149: - | N149: 17 | O149: I | P149: - | Q149: 19 | R149: ＊ | U149: I | V149: - | W149: 21 | X149: =COUNTIF(C149:W150,"○") -> 0 | Y149: =COUNTIF(C149:W150,"●") -> 0 | Z149: =COUNTIF(C149:W150,"△") -> 0 | AA149: =+X149*3+Z149*1 -> 0 | AB149: =+E150+H150+K150+N150+Q150+T150+W150 -> 0 | AC149: 0 | AD149: =+RANK(AA149,$AA$139:$AA$152,0)*100+RANK(AB149,$AB$139:$AB$152,1)*10+RANK(AC149,$AC$139:$AC$152,0) -> 213 | AE149: =+RANK(AD149,$AD$139:$AD$152,1) -> 2
D150: - | G150: - | J150: - | M150: - | P150: - | V150: -
A151: 63 | B151: =IF(データ２!B126="","",VLOOKUP(A151,データ２!$A$2:$B$216,2)) -> レッドファイヤーズ | C151: I | D151: - | E151: 6 | F151: I | G151: - | H151: 11 | I151: I | J151: - | K151: 15 | L151: I | M151: - | N151: 18 | O151: I | P151: - | Q151: 20 | R151: I | S151: - | T151: 21 | U151: ＊ | X151: =COUNTIF(C151:W152,"○") -> 0 | Y151: =COUNTIF(C151:W152,"●") -> 0 | Z151: =COUNTIF(C151:W152,"△") -> 0 | AA151: =+X151*3+Z151*1 -> 0 | AB151: =+E152+H152+K152+N152+Q152+T152+W152 -> 0 | AC151: 0 | AD151: =+RANK(AA151,$AA$139:$AA$152,0)*100+RANK(AB151,$AB$139:$AB$152,1)*10+RANK(AC151,$AC$139:$AC$152,0) -> 213 | AE151: =+RANK(AD151,$AD$139:$AD$152,1) -> 2
D152: - | G152: - | J152: - | M152: - | P152: - | S152: -
B154: =+データ１!$B$2 -> 2021/2/21 | C154: =+データ１!$B$4 -> 2021年
B155: =+データ１!B24 -> スーパーリ－グ 第１５回大会 Ｊブロック ２０２１ | C155: =+IF(B156="","",+B156) -> 北原少年野球クラブ | F155: =+IF(B158="","",+B158) -> 本一色イーグルス | I155: =+IF(B160="","",+B160) -> 中央フェニックス | L155: =+IF(B162="","",+B162) -> 高輪クラブ | O155: =+IF(B164="","",+B164) -> 落合コメッツ | R155: =+IF(B166="","",+B166) -> 駒込ベアーズ | U155: =+IF(B168="","",+B168) -> 池雪ジュニアＳ | X155: 勝 | Y155: 負 | Z155: 分 | AA155: 勝点 | AB155: 失点 | AC155: 得点 | AD155: 順位決定要素 | AE155: 順位
A156: 64 | B156: =IF(データ２!B128="","",VLOOKUP(A156,データ２!$A$2:$B$216,2)) -> 北原少年野球クラブ | C156: ＊ | F156: J | G156: - | H156: 1 | I156: J | J156: - | K156: 2 | L156: J | M156: - | N156: 3 | O156: J | P156: - | Q156: 4 | R156: J | S156: - | T156: 5 | U156: J | V156: - | W156: 6 | X156: =COUNTIF(C156:W157,"○") -> 0 | Y156: =COUNTIF(C156:W157,"●") -> 0 | Z156: =COUNTIF(C156:W157,"△") -> 0 | AA156: =+X156*3+Z156*1 -> 0 | AB156: =+E157+H157+K157+N157+Q157+T157+W157 -> 0 | AC156: =C157+F157+I157+L157+O157+R157+U157 -> 0 | AD156: =+RANK(AA156,$AA$156:$AA$169,0)*100+RANK(AB156,$AB$156:$AB$169,1)*10+RANK(AC156,$AC$156:$AC$169,0) -> 213 | AE156: =+RANK(AD156,$AD$156:$AD$169,1) -> 2
G157: - | J157: - | M157: - | P157: - | S157: - | V157: -
A158: 65 | B158: =IF(データ２!B130="","",VLOOKUP(A158,データ２!$A$2:$B$216,2)) -> 本一色イーグルス | C158: J | D158: - | E158: 1 | F158: ＊ | I158: J | J158: - | K158: 7 | L158: J | M158: - | N158: 8 | O158: J | P158: - | Q158: 9 | R158: J | S158: - | T158: 10 | U158: J | V158: - | W158: 11 | X158: =COUNTIF(C158:W159,"○") -> 0 | Y158: =COUNTIF(C158:W159,"●") -> 0 | Z158: =COUNTIF(C158:W159,"△") -> 0 | AA158: =+X158*3+Z158*1 -> 0 | AB158: =+E159+H159+K159+N159+Q159+T159+W159 -> 0 | AC158: =C159+F159+I159+L159+O159+R159+U159 -> 0 | AD158: =+RANK(AA158,$AA$156:$AA$169,0)*100+RANK(AB158,$AB$156:$AB$169,1)*10+RANK(AC158,$AC$156:$AC$169,0) -> 213 | AE158: =+RANK(AD158,$AD$156:$AD$169,1) -> 2
D159: - | J159: - | M159: - | P159: - | S159: - | V159: -
A160: 66 | B160: =IF(データ２!B132="","",VLOOKUP(A160,データ２!$A$2:$B$216,2)) -> 中央フェニックス | C160: J | D160: - | E160: 2 | F160: J | G160: - | H160: 7 | I160: ＊ | L160: J | M160: - | N160: 12 | O160: J | P160: - | Q160: 13 | U160: J | V160: - | W160: 15 | X160: =COUNTIF(C160:W161,"○") -> 1 | Y160: =COUNTIF(C160:W161,"●") -> 0 | Z160: =COUNTIF(C160:W161,"△") -> 0 | AA160: =+X160*3+Z160*1 -> 3 | AB160: =+E161+H161+K161+N161+Q161+T161+W161 -> 3 | AC160: =C161+F161+I161+L161+O161+R161+U161 -> 5 | AD160: =+RANK(AA160,$AA$156:$AA$169,0)*100+RANK(AB160,$AB$156:$AB$169,1)*10+RANK(AC160,$AC$156:$AC$169,0) -> 161 | AE160: =+RANK(AD160,$AD$156:$AD$169,1) -> 1
D161: - | G161: - | M161: - | P161: - | R161: 5 | S161: ○ | T161: 3 | V161: -
A162: 67 | B162: =IF(データ２!B134="","",VLOOKUP(A162,データ２!$A$2:$B$216,2)) -> 高輪クラブ | C162: J | D162: - | E162: 3 | F162: J | G162: - | H162: 8 | I162: J | J162: - | K162: 12 | L162: ＊ | O162: J | P162: - | Q162: 16 | R162: J | S162: - | T162: 17 | U162: J | V162: - | W162: 18 | X162: =COUNTIF(C162:W163,"○") -> 0 | Y162: =COUNTIF(C162:W163,"●") -> 0 | Z162: =COUNTIF(C162:W163,"△") -> 0 | AA162: =+X162*3+Z162*1 -> 0 | AB162: =+E163+H163+K163+N163+Q163+T163+W163 -> 0 | AC162: =C163+F163+I163+L163+O163+R163+U163 -> 0 | AD162: =+RANK(AA162,$AA$156:$AA$169,0)*100+RANK(AB162,$AB$156:$AB$169,1)*10+RANK(AC162,$AC$156:$AC$169,0) -> 213 | AE162: =+RANK(AD162,$AD$156:$AD$169,1) -> 2
D163: - | G163: - | J163: - | P163: - | S163: - | V163: -
A164: 68 | B164: =IF(データ２!B136="","",VLOOKUP(A164,データ２!$A$2:$B$216,2)) -> 落合コメッツ | C164: J | D164: - | E164: 4 | F164: J | G164: - | H164: 9 | I164: J | J164: - | K164: 13 | L164: J | M164: - | N164: 16 | O164: ＊ | R164: J | S164: - | T164: 19 | U164: J | V164: - | W164: 20 | X164: =COUNTIF(C164:W165,"○") -> 0 | Y164: =COUNTIF(C164:W165,"●") -> 0 | Z164: =COUNTIF(C164:W165,"△") -> 0 | AA164: =+X164*3+Z164*1 -> 0 | AB164: =+E165+H165+K165+N165+Q165+T165+W165 -> 0 | AC164: =C165+F165+I165+L165+O165+R165+U165 -> 0 | AD164: =+RANK(AA164,$AA$156:$AA$169,0)*100+RANK(AB164,$AB$156:$AB$169,1)*10+RANK(AC164,$AC$156:$AC$169,0) -> 213 | AE164: =+RANK(AD164,$AD$156:$AD$169,1) -> 2
D165: - | G165: - | J165: - | M165: - | S165: - | V165: -
A166: 69 | B166: =IF(データ２!B138="","",VLOOKUP(A166,データ２!$A$2:$B$216,2)) -> 駒込ベアーズ | C166: J | D166: - | E166: 5 | F166: J | G166: - | H166: 10 | L166: J | M166: - | N166: 17 | O166: J | P166: - | Q166: 19 | R166: ＊ | U166: J | V166: - | W166: 21 | X166: =COUNTIF(C166:W167,"○") -> 0 | Y166: =COUNTIF(C166:W167,"●") -> 1 | Z166: =COUNTIF(C166:W167,"△") -> 0 | AA166: =+X166*3+Z166*1 -> 0 | AB166: =+E167+H167+K167+N167+Q167+T167+W167 -> 5 | AC166: 3 | AD166: =+RANK(AA166,$AA$156:$AA$169,0)*100+RANK(AB166,$AB$156:$AB$169,1)*10+RANK(AC166,$AC$156:$AC$169,0) -> 272 | AE166: =+RANK(AD166,$AD$156:$AD$169,1) -> 7
D167: - | G167: - | I167: 3 | J167: ● | K167: 5 | M167: - | P167: - | V167: -
A168: 70 | B168: =IF(データ２!B140="","",VLOOKUP(A168,データ２!$A$2:$B$216,2)) -> 池雪ジュニアＳ | C168: J | D168: - | E168: 6 | F168: J | G168: - | H168: 11 | I168: J | J168: - | K168: 15 | L168: J | M168: - | N168: 18 | O168: J | P168: - | Q168: 20 | R168: J | S168: - | T168: 21 | U168: ＊ | X168: =COUNTIF(C168:W169,"○") -> 0 | Y168: =COUNTIF(C168:W169,"●") -> 0 | Z168: =COUNTIF(C168:W169,"△") -> 0 | AA168: =+X168*3+Z168*1 -> 0 | AB168: =+E169+H169+K169+N169+Q169+T169+W169 -> 0 | AC168: 0 | AD168: =+RANK(AA168,$AA$156:$AA$169,0)*100+RANK(AB168,$AB$156:$AB$169,1)*10+RANK(AC168,$AC$156:$AC$169,0) -> 213 | AE168: =+RANK(AD168,$AD$156:$AD$169,1) -> 2
D169: - | G169: - | J169: - | M169: - | P169: - | S169: -
B171: =+データ１!$B$2 -> 2021/2/21 | C171: =+データ１!$B$4 -> 2021年
B172: =+データ１!B26 -> スーパーリ－グ 第１５回大会 Ｋブロック ２０２１ | C172: =+IF(B173="","",+B173) -> 八潮ドリームキッズ | F172: =+IF(B175="","",+B175) -> 雷サンダース | I172: =+IF(B177="","",+B177) -> 目黒ペガサス | L172: =+IF(B179="","",+B179) -> オール麻布 | O172: =+IF(B181="","",+B181) -> 淀四ライオンズ | R172: =+IF(B183="","",+B183) -> 東陽フェニックス | U172: =+IF(B185="","",+B185) -> フレール | X172: 勝 | Y172: 負 | Z172: 分 | AA172: 勝点 | AB172: 失点 | AC172: 得点 | AD172: 順位決定要素 | AE172: 順位
A173: 71 | B173: =IF(データ２!B142="","",VLOOKUP(A173,データ２!$A$2:$B$216,2)) -> 八潮ドリームキッズ | C173: ＊ | F173: K | G173: - | H173: 1 | I173: K | J173: - | K173: 2 | L173: K | M173: - | N173: 3 | O173: K | P173: - | Q173: 4 | R173: K | S173: - | T173: 5 | U173: K | V173: - | W173: 6 | X173: =COUNTIF(C173:W174,"○") -> 0 | Y173: =COUNTIF(C173:W174,"●") -> 0 | Z173: =COUNTIF(C173:W174,"△") -> 0 | AA173: =+X173*3+Z173*1 -> 0 | AB173: =+E174+H174+K174+N174+Q174+T174+W174 -> 0 | AC173: =C174+F174+I174+L174+O174+R174+U174 -> 0 | AD173: =+RANK(AA173,$AA$173:$AA$186,0)*100+RANK(AB173,$AB$173:$AB$186,1)*10+RANK(AC173,$AC$173:$AC$186,0) -> 111 | AE173: =+RANK(AD173,$AD$173:$AD$186,1) -> 1
G174: - | J174: - | M174: - | P174: - | S174: - | V174: -
A175: 72 | B175: =IF(データ２!B144="","",VLOOKUP(A175,データ２!$A$2:$B$216,2)) -> 雷サンダース | C175: K | D175: - | E175: 1 | F175: ＊ | I175: K | J175: - | K175: 7 | L175: K | M175: - | N175: 8 | O175: K | P175: - | Q175: 9 | R175: K | S175: - | T175: 10 | U175: K | V175: - | W175: 11 | X175: =COUNTIF(C175:W176,"○") -> 0 | Y175: =COUNTIF(C175:W176,"●") -> 0 | Z175: =COUNTIF(C175:W176,"△") -> 0 | AA175: =+X175*3+Z175*1 -> 0 | AB175: =+E176+H176+K176+N176+Q176+T176+W176 -> 0 | AC175: =C176+F176+I176+L176+O176+R176+U176 -> 0 | AD175: =+RANK(AA175,$AA$173:$AA$186,0)*100+RANK(AB175,$AB$173:$AB$186,1)*10+RANK(AC175,$AC$173:$AC$186,0) -> 111 | AE175: =+RANK(AD175,$AD$173:$AD$186,1) -> 1
D176: - | J176: - | M176: - | P176: - | S176: - | V176: -
A177: 73 | B177: =IF(データ２!B146="","",VLOOKUP(A177,データ２!$A$2:$B$216,2)) -> 目黒ペガサス | C177: K | D177: - | E177: 2 | F177: K | G177: - | H177: 7 | I177: ＊ | L177: K | M177: - | N177: 12 | O177: K | P177: - | Q177: 13 | R177: K | S177: - | T177: 14 | U177: K | V177: - | W177: 15 | X177: =COUNTIF(C177:W178,"○") -> 0 | Y177: =COUNTIF(C177:W178,"●") -> 0 | Z177: =COUNTIF(C177:W178,"△") -> 0 | AA177: =+X177*3+Z177*1 -> 0 | AB177: =+E178+H178+K178+N178+Q178+T178+W178 -> 0 | AC177: =C178+F178+I178+L178+O178+R178+U178 -> 0 | AD177: =+RANK(AA177,$AA$173:$AA$186,0)*100+RANK(AB177,$AB$173:$AB$186,1)*10+RANK(AC177,$AC$173:$AC$186,0) -> 111 | AE177: =+RANK(AD177,$AD$173:$AD$186,1) -> 1
D178: - | G178: - | M178: - | P178: - | S178: - | V178: -
A179: 74 | B179: =IF(データ２!B148="","",VLOOKUP(A179,データ２!$A$2:$B$216,2)) -> オール麻布 | C179: K | D179: - | E179: 3 | F179: K | G179: - | H179: 8 | I179: K | J179: - | K179: 12 | L179: ＊ | O179: K | P179: - | Q179: 16 | R179: K | S179: - | T179: 17 | U179: K | V179: - | W179: 18 | X179: =COUNTIF(C179:W180,"○") -> 0 | Y179: =COUNTIF(C179:W180,"●") -> 0 | Z179: =COUNTIF(C179:W180,"△") -> 0 | AA179: =+X179*3+Z179*1 -> 0 | AB179: =+E180+H180+K180+N180+Q180+T180+W180 -> 0 | AC179: =C180+F180+I180+L180+O180+R180+U180 -> 0 | AD179: =+RANK(AA179,$AA$173:$AA$186,0)*100+RANK(AB179,$AB$173:$AB$186,1)*10+RANK(AC179,$AC$173:$AC$186,0) -> 111 | AE179: =+RANK(AD179,$AD$173:$AD$186,1) -> 1
D180: - | G180: - | J180: - | P180: - | S180: - | V180: -
A181: 75 | B181: =IF(データ２!B150="","",VLOOKUP(A181,データ２!$A$2:$B$216,2)) -> 淀四ライオンズ | C181: K | D181: - | E181: 4 | F181: K | G181: - | H181: 9 | I181: K | J181: - | K181: 13 | L181: K | M181: - | N181: 16 | O181: ＊ | R181: K | S181: - | T181: 19 | U181: K | V181: - | W181: 20 | X181: =COUNTIF(C181:W182,"○") -> 0 | Y181: =COUNTIF(C181:W182,"●") -> 0 | Z181: =COUNTIF(C181:W182,"△") -> 0 | AA181: =+X181*3+Z181*1 -> 0 | AB181: =+E182+H182+K182+N182+Q182+T182+W182 -> 0 | AC181: =C182+F182+I182+L182+O182+R182+U182 -> 0 | AD181: =+RANK(AA181,$AA$173:$AA$186,0)*100+RANK(AB181,$AB$173:$AB$186,1)*10+RANK(AC181,$AC$173:$AC$186,0) -> 111 | AE181: =+RANK(AD181,$AD$173:$AD$186,1) -> 1
D182: - | G182: - | J182: - | M182: - | S182: - | V182: -
A183: 76 | B183: =IF(データ２!B152="","",VLOOKUP(A183,データ２!$A$2:$B$216,2)) -> 東陽フェニックス | C183: K | D183: - | E183: 5 | F183: K | G183: - | H183: 10 | I183: K | J183: - | K183: 14 | L183: K | M183: - | N183: 17 | O183: K | P183: - | Q183: 19 | R183: ＊ | U183: K | V183: - | W183: 21 | X183: =COUNTIF(C183:W184,"○") -> 0 | Y183: =COUNTIF(C183:W184,"●") -> 0 | Z183: =COUNTIF(C183:W184,"△") -> 0 | AA183: =+X183*3+Z183*1 -> 0 | AB183: =+E184+H184+K184+N184+Q184+T184+W184 -> 0 | AC183: 0 | AD183: =+RANK(AA183,$AA$173:$AA$186,0)*100+RANK(AB183,$AB$173:$AB$186,1)*10+RANK(AC183,$AC$173:$AC$186,0) -> 111 | AE183: =+RANK(AD183,$AD$173:$AD$186,1) -> 1
D184: - | G184: - | J184: - | M184: - | P184: - | V184: -
A185: 77 | B185: =IF(データ２!B154="","",VLOOKUP(A185,データ２!$A$2:$B$216,2)) -> フレール | C185: K | D185: - | E185: 6 | F185: K | G185: - | H185: 11 | I185: K | J185: - | K185: 15 | L185: K | M185: - | N185: 18 | O185: K | P185: - | Q185: 20 | R185: K | S185: - | T185: 21 | U185: ＊ | X185: =COUNTIF(C185:W186,"○") -> 0 | Y185: =COUNTIF(C185:W186,"●") -> 0 | Z185: =COUNTIF(C185:W186,"△") -> 0 | AA185: =+X185*3+Z185*1 -> 0 | AB185: =+E186+H186+K186+N186+Q186+T186+W186 -> 0 | AC185: 0 | AD185: =+RANK(AA185,$AA$173:$AA$186,0)*100+RANK(AB185,$AB$173:$AB$186,1)*10+RANK(AC185,$AC$173:$AC$186,0) -> 111 | AE185: =+RANK(AD185,$AD$173:$AD$186,1) -> 1
D186: - | G186: - | J186: - | M186: - | P186: - | S186: -
B188: =+データ１!$B$2 -> 2021/2/21 | C188: =+データ１!$B$4 -> 2021年
B189: =+データ１!B28 -> スーパーリ－グ 第１５回大会 Ｌブロック ２０２１ | C189: =+IF(B190="","",+B190) -> カバラホークス | F189: =+IF(B192="","",+B192) -> 南篠崎ランチャーズ | I189: =+IF(B194="","",+B194) -> 不動パイレーツ | L189: =+IF(B196="","",+B196) -> 用賀ベアーズ | O189: =+IF(B198="","",+B198) -> 旗の台クラブ | R189: =+IF(B200="","",+B200) -> 元加賀 | U189: =+IF(B202="","",+B202) -> 荒川コンドル | X189: 勝 | Y189: 負 | Z189: 分 | AA189: 勝点 | AB189: 失点 | AC189: 得点 | AD189: 順位決定要素 | AE189: 順位
A190: 78 | B190: =IF(データ２!B156="","",VLOOKUP(A190,データ２!$A$2:$B$216,2)) -> カバラホークス | C190: ＊ | F190: L | G190: - | H190: 1 | I190: L | J190: - | K190: 2 | L190: L | M190: - | N190: 3 | R190: L | S190: - | T190: 5 | U190: L | V190: - | W190: 6 | X190: =COUNTIF(C190:W191,"○") -> 1 | Y190: =COUNTIF(C190:W191,"●") -> 0 | Z190: =COUNTIF(C190:W191,"△") -> 0 | AA190: =+X190*3+Z190*1 -> 3 | AB190: =+E191+H191+K191+N191+Q191+T191+W191 -> 0 | AC190: =C191+F191+I191+L191+O191+R191+U191 -> 5 | AD190: =+RANK(AA190,$AA$190:$AA$203,0)*100+RANK(AB190,$AB$190:$AB$203,1)*10+RANK(AC190,$AC$190:$AC$203,0) -> 112 | AE190: =+RANK(AD190,$AD$190:$AD$203,1) -> 1
G191: - | J191: - | M191: - | O191: 5 | P191: ○ | Q191: 0 | S191: - | V191: -
A192: 79 | B192: =IF(データ２!B158="","",VLOOKUP(A192,データ２!$A$2:$B$216,2)) -> 南篠崎ランチャーズ | C192: L | D192: - | E192: 1 | F192: ＊ | I192: L | J192: - | K192: 7 | L192: L | M192: - | N192: 8 | O192: L | P192: - | Q192: 9 | R192: L | S192: - | T192: 10 | U192: L | V192: - | W192: 11 | X192: =COUNTIF(C192:W193,"○") -> 0 | Y192: =COUNTIF(C192:W193,"●") -> 0 | Z192: =COUNTIF(C192:W193,"△") -> 0 | AA192: =+X192*3+Z192*1 -> 0 | AB192: =+E193+H193+K193+N193+Q193+T193+W193 -> 0 | AC192: =C193+F193+I193+L193+O193+R193+U193 -> 0 | AD192: =+RANK(AA192,$AA$190:$AA$203,0)*100+RANK(AB192,$AB$190:$AB$203,1)*10+RANK(AC192,$AC$190:$AC$203,0) -> 414 | AE192: =+RANK(AD192,$AD$190:$AD$203,1) -> 4
D193: - | J193: - | M193: - | P193: - | S193: - | V193: -
A194: 80 | B194: =IF(データ２!B160="","",VLOOKUP(A194,データ２!$A$2:$B$216,2)) -> 不動パイレーツ | C194: L | D194: - | E194: 2 | F194: L | G194: - | H194: 7 | I194: ＊ | O194: L | P194: - | Q194: 13 | U194: L | V194: - | W194: 15 | X194: =COUNTIF(C194:W195,"○") -> 1 | Y194: =COUNTIF(C194:W195,"●") -> 1 | Z194: =COUNTIF(C194:W195,"△") -> 0 | AA194: =+X194*3+Z194*1 -> 3 | AB194: =+E195+H195+K195+N195+Q195+T195+W195 -> 5 | AC194: =C195+F195+I195+L195+O195+R195+U195 -> 14 | AD194: =+RANK(AA194,$AA$190:$AA$203,0)*100+RANK(AB194,$AB$190:$AB$203,1)*10+RANK(AC194,$AC$190:$AC$203,0) -> 151 | AE194: =+RANK(AD194,$AD$190:$AD$203,1) -> 3
D195: - | G195: - | L195: 4 | M195: ● | N195: 5 | P195: - | R195: 10 | S195: ○ | T195: 0 | V195: -
A196: 81 | B196: =IF(データ２!B162="","",VLOOKUP(A196,データ２!$A$2:$B$216,2)) -> 用賀ベアーズ | C196: L | D196: - | E196: 3 | F196: L | G196: - | H196: 8 | L196: ＊ | O196: L | P196: - | Q196: 16 | R196: L | S196: - | T196: 17 | U196: L | V196: - | W196: 18 | X196: =COUNTIF(C196:W197,"○") -> 1 | Y196: =COUNTIF(C196:W197,"●") -> 0 | Z196: =COUNTIF(C196:W197,"△") -> 0 | AA196: =+X196*3+Z196*1 -> 3 | AB196: =+E197+H197+K197+N197+Q197+T197+W197 -> 4 | AC196: =C197+F197+I197+L197+O197+R197+U197 -> 5 | AD196: =+RANK(AA196,$AA$190:$AA$203,0)*100+RANK(AB196,$AB$190:$AB$203,1)*10+RANK(AC196,$AC$190:$AC$203,0) -> 142 | AE196: =+RANK(AD196,$AD$190:$AD$203,1) -> 2
D197: - | G197: - | I197: 5 | J197: ○ | K197: 4 | P197: - | S197: - | V197: -
A198: 82 | B198: =IF(データ２!B164="","",VLOOKUP(A198,データ２!$A$2:$B$216,2)) -> 旗の台クラブ | F198: L | G198: - | H198: 9 | I198: L | J198: - | K198: 13 | L198: L | M198: - | N198: 16 | O198: ＊ | R198: L | S198: - | T198: 19 | U198: L | V198: - | W198: 20 | X198: =COUNTIF(C198:W199,"○") -> 0 | Y198: =COUNTIF(C198:W199,"●") -> 1 | Z198: =COUNTIF(C198:W199,"△") -> 0 | AA198: =+X198*3+Z198*1 -> 0 | AB198: =+E199+H199+K199+N199+Q199+T199+W199 -> 5 | AC198: =C199+F199+I199+L199+O199+R199+U199 -> 0 | AD198: =+RANK(AA198,$AA$190:$AA$203,0)*100+RANK(AB198,$AB$190:$AB$203,1)*10+RANK(AC198,$AC$190:$AC$203,0) -> 454 | AE198: =+RANK(AD198,$AD$190:$AD$203,1) -> 6
C199: 0 | D199: ● | E199: 5 | G199: - | J199: - | M199: - | S199: - | V199: -
A200: 83 | B200: =IF(データ２!B166="","",VLOOKUP(A200,データ２!$A$2:$B$216,2)) -> 元加賀 | C200: L | D200: - | E200: 5 | F200: L | G200: - | H200: 10 | L200: L | M200: - | N200: 17 | O200: L | P200: - | Q200: 19 | R200: ＊ | U200: L | V200: - | W200: 21 | X200: =COUNTIF(C200:W201,"○") -> 0 | Y200: =COUNTIF(C200:W201,"●") -> 1 | Z200: =COUNTIF(C200:W201,"△") -> 0 | AA200: =+X200*3+Z200*1 -> 0 | AB200: =+E201+H201+K201+N201+Q201+T201+W201 -> 10 | AC200: 0 | AD200: =+RANK(AA200,$AA$190:$AA$203,0)*100+RANK(AB200,$AB$190:$AB$203,1)*10+RANK(AC200,$AC$190:$AC$203,0) -> 474 | AE200: =+RANK(AD200,$AD$190:$AD$203,1) -> 7
D201: - | G201: - | I201: 0 | J201: ● | K201: 10 | M201: - | P201: - | V201: -
A202: 84 | B202: =IF(データ２!B168="","",VLOOKUP(A202,データ２!$A$2:$B$216,2)) -> 荒川コンドル | C202: L | D202: - | E202: 6 | F202: L | G202: - | H202: 11 | I202: L | J202: - | K202: 15 | L202: L | M202: - | N202: 18 | O202: L | P202: - | Q202: 20 | R202: L | S202: - | T202: 21 | U202: ＊ | X202: =COUNTIF(C202:W203,"○") -> 0 | Y202: =COUNTIF(C202:W203,"●") -> 0 | Z202: =COUNTIF(C202:W203,"△") -> 0 | AA202: =+X202*3+Z202*1 -> 0 | AB202: =+E203+H203+K203+N203+Q203+T203+W203 -> 0 | AC202: 0 | AD202: =+RANK(AA202,$AA$190:$AA$203,0)*100+RANK(AB202,$AB$190:$AB$203,1)*10+RANK(AC202,$AC$190:$AC$203,0) -> 414 | AE202: =+RANK(AD202,$AD$190:$AD$203,1) -> 4
D203: - | G203: - | J203: - | M203: - | P203: - | S203: -
B205: =+データ１!$B$2 -> 2021/2/21 | C205: =+データ１!$B$4 -> 2021年
B206: =+データ１!B30 -> スーパーリ－グ 第１５回大会 Ｍブロック ２０２１ | C206: =+IF(B207="","",+B207) -> 大雲寺スターズ | F206: =+IF(B209="","",+B209) -> 麹町ドリームス | I206: =+IF(B211="","",+B211) -> 勝どきDナインホープ | L206: =+IF(B213="","",+B213) -> 麻布キッズ | O206: =+IF(B215="","",+B215) -> 菊坂ファイヤーズ | R206: =+IF(B217="","",+B217) -> 深川ジャイアンツ | U206: =+IF(B219="","",+B219) -> トゥールスジュニア | X206: 勝 | Y206: 負 | Z206: 分 | AA206: 勝点 | AB206: 失点 | AC206: 得点 | AD206: 順位決定要素 | AE206: 順位
A207: 85 | B207: =IF(データ２!B170="","",VLOOKUP(A207,データ２!$A$2:$B$216,2)) -> 大雲寺スターズ | C207: ＊ | F207: M | G207: - | H207: 1 | I207: M | J207: - | K207: 2 | L207: M | M207: - | N207: 3 | O207: M | P207: - | Q207: 4 | R207: M | S207: - | T207: 5 | U207: M | V207: - | W207: 6 | X207: =COUNTIF(C207:W208,"○") -> 0 | Y207: =COUNTIF(C207:W208,"●") -> 0 | Z207: =COUNTIF(C207:W208,"△") -> 0 | AA207: =+X207*3+Z207*1 -> 0 | AB207: =+E208+H208+K208+N208+Q208+T208+W208 -> 0 | AC207: =C208+F208+I208+L208+O208+R208+U208 -> 0 | AD207: =+RANK(AA207,$AA$207:$AA$220,0)*100+RANK(AB207,$AB$207:$AB$220,1)*10+RANK(AC207,$AC$207:$AC$220,0) -> 111 | AE207: =+RANK(AD207,$AD$173:$AD$186,1) -> 1
G208: - | J208: - | M208: - | P208: - | S208: - | V208: -
A209: 86 | B209: =IF(データ２!B172="","",VLOOKUP(A209,データ２!$A$2:$B$216,2)) -> 麹町ドリームス | C209: M | D209: - | E209: 1 | F209: ＊ | I209: M | J209: - | K209: 7 | L209: M | M209: - | N209: 8 | O209: M | P209: - | Q209: 9 | R209: M | S209: - | T209: 10 | U209: M | V209: - | W209: 11 | X209: =COUNTIF(C209:W210,"○") -> 0 | Y209: =COUNTIF(C209:W210,"●") -> 0 | Z209: =COUNTIF(C209:W210,"△") -> 0 | AA209: =+X209*3+Z209*1 -> 0 | AB209: =+E210+H210+K210+N210+Q210+T210+W210 -> 0 | AC209: =C210+F210+I210+L210+O210+R210+U210 -> 0 | AD209: =+RANK(AA209,$AA$207:$AA$220,0)*100+RANK(AB209,$AB$207:$AB$220,1)*10+RANK(AC209,$AC$207:$AC$220,0) -> 111 | AE209: =+RANK(AD209,$AD$173:$AD$186,1) -> 1
D210: - | J210: - | M210: - | P210: - | S210: - | V210: -
A211: 87 | B211: =IF(データ２!B174="","",VLOOKUP(A211,データ２!$A$2:$B$216,2)) -> 勝どきDナインホープ | C211: M | D211: - | E211: 2 | F211: M | G211: - | H211: 7 | I211: ＊ | L211: M | M211: - | N211: 12 | O211: M | P211: - | Q211: 13 | R211: M | S211: - | T211: 14 | U211: M | V211: - | W211: 15 | X211: =COUNTIF(C211:W212,"○") -> 0 | Y211: =COUNTIF(C211:W212,"●") -> 0 | Z211: =COUNTIF(C211:W212,"△") -> 0 | AA211: =+X211*3+Z211*1 -> 0 | AB211: =+E212+H212+K212+N212+Q212+T212+W212 -> 0 | AC211: =C212+F212+I212+L212+O212+R212+U212 -> 0 | AD211: =+RANK(AA211,$AA$207:$AA$220,0)*100+RANK(AB211,$AB$207:$AB$220,1)*10+RANK(AC211,$AC$207:$AC$220,0) -> 111 | AE211: =+RANK(AD211,$AD$173:$AD$186,1) -> 1
D212: - | G212: - | M212: - | P212: - | S212: - | V212: -
... 25 more rows

Sheet データ１
A2: 作成日 | B2: 2021/2/21 | C2: 作成日 | D2: 2016/2/1 | E2: 作成日 | F2: 2016/2/1 | G2: 作成日 | H2: 2016/2/1 | I2: 作成日 | J2: 2016/2/1 | K2: 作成日 | L2: 2016/2/1 | M2: 作成日 | N2: 2016/2/1 | O2: 作成日 | P2: 2016/2/1 | Q2: 作成日 | R2: 2016/2/1 | S2: 作成日 | T2: 2016/2/1 | U2: 作成日 | V2: 2016/2/1 | W2: 作成日 | X2: 2016/2/1 | Y2: 作成日 | Z2: 2016/2/1 | AA2: 作成日 | AB2: 2016/2/1 | AC2: 作成日 | AD2: 2016/2/1 | AE2: 作成日 | AF2: 2016/2/1 | AG2: 作成日 | AH2: 2016/2/1 | AI2: 作成日 | AJ2: 2016/2/1 | AK2: 作成日 | AL2: 2016/2/1 | AM2: 作成日 | AN2: 2016/2/1 | AO2: 作成日 | AP2: 2016/2/1 | AQ2: 作成日 | AR2: 2016/2/1 | AS2: 作成日 | AT2: 2016/2/1 | AU2: 作成日 | AV2: 2016/2/1 | AW2: 作成日 | AX2: 2016/2/1 | AY2: 作成日 | AZ2: 2016/2/1 | BA2: 作成日 | BB2: 2016/2/1 | BC2: 作成日 | BD2: 2016/2/1 | BE2: 作成日 | BF2: 2016/2/1 | BG2: 作成日 | BH2: 2016/2/1 | BI2: 作成日 | BJ2: 2016/2/1 | BK2: 作成日 | BL2: 2016/2/1 | BM2: 作成日 | BN2: 2016/2/1 | BO2: 作成日 | BP2: 2016/2/1 | BQ2: 作成日 | BR2: 2016/2/1 | BS2: 作成日 | BT2: 2016/2/1 | BU2: 作成日 | BV2: 2016/2/1 | BW2: 作成日 | BX2: 2016/2/1 | BY2: 作成日 | BZ2: 2016/2/1 | CA2: 作成日 | CB2: 2016/2/1 | CC2: 作成日 | CD2: 2016/2/1 | CE2: 作成日 | CF2: 2016/2/1 | CG2: 作成日 | CH2: 2016/2/1 | CI2: 作成日 | CJ2: 2016/2/1 | CK2: 作成日 | CL2: 2016/2/1 | CM2: 作成日 | CN2: 2016/2/1 | CO2: 作成日 | CP2: 2016/2/1 | CQ2: 作成日 | CR2: 2016/2/1 | CS2: 作成日 | CT2: 2016/2/1 | CU2: 作成日 | CV2: 2016/2/1 | CW2: 作成日 | CX2: 2016/2/1 | CY2: 作成日 | CZ2: 2016/2/1 | DA2: 作成日 | DB2: 2016/2/1 | DC2: 作成日 | DD2: 2016/2/1 | DE2: 作成日 | DF2: 2016/2/1 | DG2: 作成日 | DH2: 2016/2/1 | DI2: 作成日 | DJ2: 2016/2/1 | DK2: 作成日 | DL2: 2016/2/1 | DM2: 作成日 | DN2: 2016/2/1 | DO2: 作成日 | DP2: 2016/2/1 | DQ2: 作成日 | DR2: 2016/2/1 | DS2: 作成日 | DT2: 2016/2/1 | DU2: 作成日 | DV2: 2016/2/1 | DW2: 作成日 | DX2: 2016/2/1 | DY2: 作成日 | DZ2: 2016/2/1 | EA2: 作成日 | EB2: 2016/2/1 | EC2: 作成日 | ED2: 2016/2/1 | EE2: 作成日 | EF2: 2016/2/1 | EG2: 作成日 | EH2: 2016/2/1 | EI2: 作成日 | EJ2: 2016/2/1 | EK2: 作成日 | EL2: 2016/2/1 | EM2: 作成日 | EN2: 2016/2/1 | EO2: 作成日 | EP2: 2016/2/1 | EQ2: 作成日 | ER2: 2016/2/1 | ES2: 作成日 | ET2: 2016/2/1 | EU2: 作成日 | EV2: 2016/2/1 | EW2: 作成日 | EX2: 2016/2/1 | EY2: 作成日 | EZ2: 2016/2/1 | FA2: 作成日 | FB2: 2016/2/1 | FC2: 作成日 | FD2: 2016/2/1 | FE2: 作成日 | FF2: 2016/2/1 | FG2: 作成日 | FH2: 2016/2/1 | FI2: 作成日 | FJ2: 2016/2/1 | FK2: 作成日 | FL2: 2016/2/1 | FM2: 作成日 | FN2: 2016/2/1 | FO2: 作成日 | FP2: 2016/2/1 | FQ2: 作成日 | FR2: 2016/2/1 | FS2: 作成日 | FT2: 2016/2/1 | FU2: 作成日 | FV2: 2016/2/1 | FW2: 作成日 | FX2: 2016/2/1 | FY2: 作成日 | FZ2: 2016/2/1 | GA2: 作成日 | GB2: 2016/2/1 | GC2: 作成日 | GD2: 2016/2/1 | GE2: 作成日 | GF2: 2016/2/1 | GG2: 作成日 | GH2: 2016/2/1 | GI2: 作成日 | GJ2: 2016/2/1 | GK2: 作成日 | GL2: 2016/2/1 | GM2: 作成日 | GN2: 2016/2/1 | GO2: 作成日 | GP2: 2016/2/1 | GQ2: 作成日 | GR2: 2016/2/1 | GS2: 作成日 | GT2: 2016/2/1 | GU2: 作成日 | GV2: 2016/2/1 | GW2: 作成日 | GX2: 2016/2/1 | GY2: 作成日 | GZ2: 2016/2/1 | HA2: 作成日 | HB2: 2016/2/1 | HC2: 作成日 | HD2: 2016/2/1 | HE2: 作成日 | HF2: 2016/2/1 | HG2: 作成日 | HH2: 2016/2/1 | HI2: 作成日 | HJ2: 2016/2/1 | HK2: 作成日 | HL2: 2016/2/1 | HM2: 作成日 | HN2: 2016/2/1 | HO2: 作成日 | HP2: 2016/2/1 | HQ2: 作成日 | HR2: 2016/2/1 | HS2: 作成日 | HT2: 2016/2/1 | HU2: 作成日 | HV2: 2016/2/1 | HW2: 作成日 | HX2: 2016/2/1 | HY2: 作成日 | HZ2: 2016/2/1 | IA2: 作成日 | IB2: 2016/2/1 | IC2: 作成日 | ID2: 2016/2/1 | IE2: 作成日 | IF2: 2016/2/1 | IG2: 作成日 | IH2: 2016/2/1 | II2: 作成日 | IJ2: 2016/2/1 | IK2: 作成日 | IL2: 2016/2/1 | IM2: 作成日 | IN2: 2016/2/1 | IO2: 作成日 | IP2: 2016/2/1 | IQ2: 作成日 | IR2: 2016/2/1 | IS2: 作成日 | IT2: 2016/2/1 | IU2: 作成日 | IV2: 2016/2/1
A4: 年度 | B4: 2021年 | C4: 年度 | D4: ２０１６年 | E4: 年度 | F4: ２０１６年 | G4: 年度 | H4: ２０１６年 | I4: 年度 | J4: ２０１６年 | K4: 年度 | L4: ２０１６年 | M4: 年度 | N4: ２０１６年 | O4: 年度 | P4: ２０１６年 | Q4: 年度 | R4: ２０１６年 | S4: 年度 | T4: ２０１６年 | U4: 年度 | V4: ２０１６年 | W4: 年度 | X4: ２０１６年 | Y4: 年度 | Z4: ２０１６年 | AA4: 年度 | AB4: ２０１６年 | AC4: 年度 | AD4: ２０１６年 | AE4: 年度 | AF4: ２０１６年 | AG4: 年度 | AH4: ２０１６年 | AI4: 年度 | AJ4: ２０１６年 | AK4: 年度 | AL4: ２０１６年 | AM4: 年度 | AN4: ２０１６年 | AO4: 年度 | AP4: ２０１６年 | AQ4: 年度 | AR4: ２０１６年 | AS4: 年度 | AT4: ２０１６年 | AU4: 年度 | AV4: ２０１６年 | AW4: 年度 | AX4: ２０１６年 | AY4: 年度 | AZ4: ２０１６年 | BA4: 年度 | BB4: ２０１６年 | BC4: 年度 | BD4: ２０１６年 | BE4: 年度 | BF4: ２０１６年 | BG4: 年度 | BH4: ２０１６年 | BI4: 年度 | BJ4: ２０１６年 | BK4: 年度 | BL4: ２０１６年 | BM4: 年度 | BN4: ２０１６年 | BO4: 年度 | BP4: ２０１６年 | BQ4: 年度 | BR4: ２０１６年 | BS4: 年度 | BT4: ２０１６年 | BU4: 年度 | BV4: ２０１６年 | BW4: 年度 | BX4: ２０１６年 | BY4: 年度 | BZ4: ２０１６年 | CA4: 年度 | CB4: ２０１６年 | CC4: 年度 | CD4: ２０１６年 | CE4: 年度 | CF4: ２０１６年 | CG4: 年度 | CH4: ２０１６年 | CI4: 年度 | CJ4: ２０１６年 | CK4: 年度 | CL4: ２０１６年 | CM4: 年度 | CN4: ２０１６年 | CO4: 年度 | CP4: ２０１６年 | CQ4: 年度 | CR4: ２０１６年 | CS4: 年度 | CT4: ２０１６年 | CU4: 年度 | CV4: ２０１６年 | CW4: 年度 | CX4: ２０１６年 | CY4: 年度 | CZ4: ２０１６年 | DA4: 年度 | DB4: ２０１６年 | DC4: 年度 | DD4: ２０１６年 | DE4: 年度 | DF4: ２０１６年 | DG4: 年度 | DH4: ２０１６年 | DI4: 年度 | DJ4: ２０１６年 | DK4: 年度 | DL4: ２０１６年 | DM4: 年度 | DN4: ２０１６年 | DO4: 年度 | DP4: ２０１６年 | DQ4: 年度 | DR4: ２０１６年 | DS4: 年度 | DT4: ２０１６年 | DU4: 年度 | DV4: ２０１６年 | DW4: 年度 | DX4: ２０１６年 | DY4: 年度 | DZ4: ２０１６年 | EA4: 年度 | EB4: ２０１６年 | EC4: 年度 | ED4: ２０１６年 | EE4: 年度 | EF4: ２０１６年 | EG4: 年度 | EH4: ２０１６年 | EI4: 年度 | EJ4: ２０１６年 | EK4: 年度 | EL4: ２０１６年 | EM4: 年度 | EN4: ２０１６年 | EO4: 年度 | EP4: ２０１６年 | EQ4: 年度 | ER4: ２０１６年 | ES4: 年度 | ET4: ２０１６年 | EU4: 年度 | EV4: ２０１６年 | EW4: 年度 | EX4: ２０１６年 | EY4: 年度 | EZ4: ２０１６年 | FA4: 年度 | FB4: ２０１６年 | FC4: 年度 | FD4: ２０１６年 | FE4: 年度 | FF4: ２０１６年 | FG4: 年度 | FH4: ２０１６年 | FI4: 年度 | FJ4: ２０１６年 | FK4: 年度 | FL4: ２０１６年 | FM4: 年度 | FN4: ２０１６年 | FO4: 年度 | FP4: ２０１６年 | FQ4: 年度 | FR4: ２０１６年 | FS4: 年度 | FT4: ２０１６年 | FU4: 年度 | FV4: ２０１６年 | FW4: 年度 | FX4: ２０１６年 | FY4: 年度 | FZ4: ２０１６年 | GA4: 年度 | GB4: ２０１６年 | GC4: 年度 | GD4: ２０１６年 | GE4: 年度 | GF4: ２０１６年 | GG4: 年度 | GH4: ２０１６年 | GI4: 年度 | GJ4: ２０１６年 | GK4: 年度 | GL4: ２０１６年 | GM4: 年度 | GN4: ２０１６年 | GO4: 年度 | GP4: ２０１６年 | GQ4: 年度 | GR4: ２０１６年 | GS4: 年度 | GT4: ２０１６年 | GU4: 年度 | GV4: ２０１６年 | GW4: 年度 | GX4: ２０１６年 | GY4: 年度 | GZ4: ２０１６年 | HA4: 年度 | HB4: ２０１６年 | HC4: 年度 | HD4: ２０１６年 | HE4: 年度 | HF4: ２０１６年 | HG4: 年度 | HH4: ２０１６年 | HI4: 年度 | HJ4: ２０１６年 | HK4: 年度 | HL4: ２０１６年 | HM4: 年度 | HN4: ２０１６年 | HO4: 年度 | HP4: ２０１６年 | HQ4: 年度 | HR4: ２０１６年 | HS4: 年度 | HT4: ２０１６年 | HU4: 年度 | HV4: ２０１６年 | HW4: 年度 | HX4: ２０１６年 | HY4: 年度 | HZ4: ２０１６年 | IA4: 年度 | IB4: ２０１６年 | IC4: 年度 | ID4: ２０１６年 | IE4: 年度 | IF4: ２０１６年 | IG4: 年度 | IH4: ２０１６年 | II4: 年度 | IJ4: ２０１６年 | IK4: 年度 | IL4: ２０１６年 | IM4: 年度 | IN4: ２０１６年 | IO4: 年度 | IP4: ２０１６年 | IQ4: 年度 | IR4: ２０１６年 | IS4: 年度 | IT4: ２０１６年 | IU4: 年度 | IV4: ２０１６年
A6: 表題１ | B6: スーパーリ－グ 第１５回大会 Aブロック ２０２１ | C6: 表題１ | D6: スーパーリ－グ 第１０回大会 Aブロック ２０１６ | E6: 表題１ | F6: スーパーリ－グ 第１０回大会 Aブロック ２０１６ | G6: 表題１ | H6: スーパーリ－グ 第１０回大会 Aブロック ２０１６ | I6: 表題１ | J6: スーパーリ－グ 第１０回大会 Aブロック ２０１６ | K6: 表題１ | L6: スーパーリ－グ 第１０回大会 Aブロック ２０１６ | M6: 表題１ | N6: スーパーリ－グ 第１０回大会 Aブロック ２０１６ | O6: 表題１ | P6: スーパーリ－グ 第１０回大会 Aブロック ２０１６ | Q6: 表題１ | R6: スーパーリ－グ 第１０回大会 Aブロック ２０１６ | S6: 表題１ | T6: スーパーリ－グ 第１０回大会 Aブロック ２０１６ | U6: 表題１ | V6: スーパーリ－グ 第１０回大会 Aブロック ２０１６ | W6: 表題１ | X6: スーパーリ－グ 第１０回大会 Aブロック ２０１６ | Y6: 表題１ | Z6: スーパーリ－グ 第１０回大会 Aブロック ２０１６ | AA6: 表題１ | AB6: スーパーリ－グ 第１０回大会 Aブロック ２０１６ | AC6: 表題１ | AD6: スーパーリ－グ 第１０回大会 Aブロック ２０１６ | AE6: 表題１ | AF6: スーパーリ－グ 第１０回大会 Aブロック ２０１６ | AG6: 表題１ | AH6: スーパーリ－グ 第１０回大会 Aブロック ２０１６ | AI6: 表題１ | AJ6: スーパーリ－グ 第１０回大会 Aブロック ２０１６ | AK6: 表題１ | AL6: スーパーリ－グ 第１０回大会 Aブロック ２０１６ | AM6: 表題１ | AN6: スーパーリ－グ 第１０回大会 Aブロック ２０１６ | AO6: 表題１ | AP6: スーパーリ－グ 第１０回大会 Aブロック ２０１６ | AQ6: 表題１ | AR6: スーパーリ－グ 第１０回大会 Aブロック ２０１６ | AS6: 表題１ | AT6: スーパーリ－グ 第１０回大会 Aブロック ２０１６ | AU6: 表題１ | AV6: スーパーリ－グ 第１０回大会 Aブロック ２０１６ | AW6: 表題１ | AX6: スーパーリ－グ 第１０回大会 Aブロック ２０１６ | AY6: 表題１ | AZ6: スーパーリ－グ 第１０回大会 Aブロック ２０１６ | BA6: 表題１ | BB6: スーパーリ－グ 第１０回大会 Aブロック ２０１６ | BC6: 表題１ | BD6: スーパーリ－グ 第１０回大会 Aブロック ２０１６ | BE6: 表題１ | BF6: スーパーリ－グ 第１０回大会 Aブロック ２０１６ | BG6: 表題１ | BH6: スーパーリ－グ 第１０回大会 Aブロック ２０１６ | BI6: 表題１ | BJ6: スーパーリ－グ 第１０回大会 Aブロック ２０１６ | BK6: 表題１ | BL6: スーパーリ－グ 第１０回大会 Aブロック ２０１６ | BM6: 表題１ | BN6: スーパーリ－グ 第１０回大会 Aブロック ２０１６ | BO6: 表題１ | BP6: スーパーリ－グ 第１０回大会 Aブロック ２０１６ | BQ6: 表題１ | BR6: スーパーリ－グ 第１０回大会 Aブロック ２０１６ | BS6: 表題１ | BT6: スーパーリ－グ 第１０回大会 Aブロック ２０１６ | BU6: 表題１ | BV6: スーパーリ－グ 第１０回大会 Aブロック ２０１６ | BW6: 表題１ | BX6: スーパーリ－グ 第１０回大会 Aブロック ２０１６ | BY6: 表題１ | BZ6: スーパーリ－グ 第１０回大会 Aブロック ２０１６ | CA6: 表題１ | CB6: スーパーリ－グ 第１０回大会 Aブロック ２０１６ | CC6: 表題１ | CD6: スーパーリ－グ 第１０回大会 Aブロック ２０１６ | CE6: 表題１ | CF6: スーパーリ－グ 第１０回大会 Aブロック ２０１６ | CG6: 表題１ | CH6: スーパーリ－グ 第１０回大会 Aブロック ２０１６ | CI6: 表題１ | CJ6: スーパーリ－グ 第１０回大会 Aブロック ２０１６ | CK6: 表題１ | CL6: スーパーリ－グ 第１０回大会 Aブロック ２０１６ | CM6: 表題１ | CN6: スーパーリ－グ 第１０回大会 Aブロック ２０１６ | CO6: 表題１ | CP6: スーパーリ－グ 第１０回大会 Aブロック ２０１６ | CQ6: 表題１ | CR6: スーパーリ－グ 第１０回大会 Aブロック ２０１６ | CS6: 表題１ | CT6: スーパーリ－グ 第１０回大会 Aブロック ２０１６ | CU6: 表題１ | CV6: スーパーリ－グ 第１０回大会 Aブロック ２０１６ | CW6: 表題１ | CX6: スーパーリ－グ 第１０回大会 Aブロック ２０１６ | CY6: 表題１ | CZ6: スーパーリ－グ 第１０回大会 Aブロック ２０１６ | DA6: 表題１ | DB6: スーパーリ－グ 第１０回大会 Aブロック ２０１６ | DC6: 表題１ | DD6: スーパーリ－グ 第１０回大会 Aブロック ２０１６ | DE6: 表題１ | DF6: スーパーリ－グ 第１０回大会 Aブロック ２０１６ | DG6: 表題１ | DH6: スーパーリ－グ 第１０回大会 Aブロック ２０１６ | DI6: 表題１ | DJ6: スーパーリ－グ 第１０回大会 Aブロック ２０１６ | DK6: 表題１ | DL6: スーパーリ－グ 第１０回大会 Aブロック ２０１６ | DM6: 表題１ | DN6: スーパーリ－グ 第１０回大会 Aブロック ２０１６ | DO6: 表題１ | DP6: スーパーリ－グ 第１０回大会 Aブロック ２０１６ | DQ6: 表題１ | DR6: スーパーリ－グ 第１０回大会 Aブロック ２０１６ | DS6: 表題１ | DT6: スーパーリ－グ 第１０回大会 Aブロック ２０１６ | DU6: 表題１ | DV6: スーパーリ－グ 第１０回大会 Aブロック ２０１６ | DW6: 表題１ | DX6: スーパーリ－グ 第１０回大会 Aブロック ２０１６ | DY6: 表題１ | DZ6: スーパーリ－グ 第１０回大会 Aブロック ２０１６ | EA6: 表題１ | EB6: スーパーリ－グ 第１０回大会 Aブロック ２０１６ | EC6: 表題１ | ED6: スーパーリ－グ 第１０回大会 Aブロック ２０１６ | EE6: 表題１ | EF6: スーパーリ－グ 第１０回大会 Aブロック ２０１６ | EG6: 表題１ | EH6: スーパーリ－グ 第１０回大会 Aブロック ２０１６ | EI6: 表題１ | EJ6: スーパーリ－グ 第１０回大会 Aブロック ２０１６ | EK6: 表題１ | EL6: スーパーリ－グ 第１０回大会 Aブロック ２０１６ | EM6: 表題１ | EN6: スーパーリ－グ 第１０回大会 Aブロック ２０１６ | EO6: 表題１ | EP6: スーパーリ－グ 第１０回大会 Aブロック ２０１６ | EQ6: 表題１ | ER6: スーパーリ－グ 第１０回大会 Aブロック ２０１６ | ES6: 表題１ | ET6: スーパーリ－グ 第１０回大会 Aブロック ２０１６ | EU6: 表題１ | EV6: スーパーリ－グ 第１０回大会 Aブロック ２０１６ | EW6: 表題１ | EX6: スーパーリ－グ 第１０回大会 Aブロック ２０１６ | EY6: 表題１ | EZ6: スーパーリ－グ 第１０回大会 Aブロック ２０１６ | FA6: 表題１ | FB6: スーパーリ－グ 第１０回大会 Aブロック ２０１６ | FC6: 表題１ | FD6: スーパーリ－グ 第１０回大会 Aブロック ２０１６ | FE6: 表題１ | FF6: スーパーリ－グ 第１０回大会 Aブロック ２０１６ | FG6: 表題１ | FH6: スーパーリ－グ 第１０回大会 Aブロック ２０１６ | FI6: 表題１ | FJ6: スーパーリ－グ 第１０回大会 Aブロック ２０１６ | FK6: 表題１ | FL6: スーパーリ－グ 第１０回大会 Aブロック ２０１６ | FM6: 表題１ | FN6: スーパーリ－グ 第１０回大会 Aブロック ２０１６ | FO6: 表題１ | FP6: スーパーリ－グ 第１０回大会 Aブロック ２０１６ | FQ6: 表題１ | FR6: スーパーリ－グ 第１０回大会 Aブロック ２０１６ | FS6: 表題１ | FT6: スーパーリ－グ 第１０回大会 Aブロック ２０１６ | FU6: 表題１ | FV6: スーパーリ－グ 第１０回大会 Aブロック ２０１６ | FW6: 表題１ | FX6: スーパーリ－グ 第１０回大会 Aブロック ２０１６ | FY6: 表題１ | FZ6: スーパーリ－グ 第１０回大会 Aブロック ２０１６ | GA6: 表題１ | GB6: スーパーリ－グ 第１０回大会 Aブロック ２０１６ | GC6: 表題１ | GD6: スーパーリ－グ 第１０回大会 Aブロック ２０１６ | GE6: 表題１ | GF6: スーパーリ－グ 第１０回大会 Aブロック ２０１６ | GG6: 表題１ | GH6: スーパーリ－グ 第１０回大会 Aブロック ２０１６ | GI6: 表題１ | GJ6: スーパーリ－グ 第１０回大会 Aブロック ２０１６ | GK6: 表題１ | GL6: スーパーリ－グ 第１０回大会 Aブロック ２０１６ | GM6: 表題１ | GN6: スーパーリ－グ 第１０回大会 Aブロック ２０１６ | GO6: 表題１ | GP6: スーパーリ－グ 第１０回大会 Aブロック ２０１６ | GQ6: 表題１ | GR6: スーパーリ－グ 第１０回大会 Aブロック ２０１６ | GS6: 表題１ | GT6: スーパーリ－グ 第１０回大会 Aブロック ２０１６ | GU6: 表題１ | GV6: スーパーリ－グ 第１０回大会 Aブロック ２０１６ | GW6: 表題１ | GX6: スーパーリ－グ 第１０回大会 Aブロック ２０１６ | GY6: 表題１ | GZ6: スーパーリ－グ 第１０回大会 Aブロック ２０１６ | HA6: 表題１ | HB6: スーパーリ－グ 第１０回大会 Aブロック ２０１６ | HC6: 表題１ | HD6: スーパーリ－グ 第１０回大会 Aブロック ２０１６ | HE6: 表題１ | HF6: スーパーリ－グ 第１０回大会 Aブロック ２０１６ | HG6: 表題１ | HH6: スーパーリ－グ 第１０回大会 Aブロック ２０１６ | HI6: 表題１ | HJ6: スーパーリ－グ 第１０回大会 Aブロック ２０１６ | HK6: 表題１ | HL6: スーパーリ－グ 第１０回大会 Aブロック ２０１６ | HM6: 表題１ | HN6: スーパーリ－グ 第１０回大会 Aブロック ２０１６ | HO6: 表題１ | HP6: スーパーリ－グ 第１０回大会 Aブロック ２０１６ | HQ6: 表題１ | HR6: スーパーリ－グ 第１０回大会 Aブロック ２０１６ | HS6: 表題１ | HT6: スーパーリ－グ 第１０回大会 Aブロック ２０１６ | HU6: 表題１ | HV6: スーパーリ－グ 第１０回大会 Aブロック ２０１６ | HW6: 表題１ | HX6: スーパーリ－グ 第１０回大会 Aブロック ２０１６ | HY6: 表題１ | HZ6: スーパーリ－グ 第１０回大会 Aブロック ２０１６ | IA6: 表題１ | IB6: スーパーリ－グ 第１０回大会 Aブロック ２０１６ | IC6: 表題１ | ID6: スーパーリ－グ 第１０回大会 Aブロック ２０１６ | IE6: 表題１ | IF6: スーパーリ－グ 第１０回大会 Aブロック ２０１６ | IG6: 表題１ | IH6: スーパーリ－グ 第１０回大会 Aブロック ２０１６ | II6: 表題１ | IJ6: スーパーリ－グ 第１０回大会 Aブロック ２０１６ | IK6: 表題１ | IL6: スーパーリ－グ 第１０回大会 Aブロック ２０１６ | IM6: 表題１ | IN6: スーパーリ－グ 第１０回大会 Aブロック ２０１６ | IO6: 表題１ | IP6: スーパーリ－グ 第１０回大会 Aブロック ２０１６ | IQ6: 表題１ | IR6: スーパーリ－グ 第１０回大会 Aブロック ２０１６ | IS6: 表題１ | IT6: スーパーリ－グ 第１０回大会 Aブロック ２０１６ | IU6: 表題１ | IV6: スーパーリ－グ 第１０回大会 Aブロック ２０１６
A8: 表題２ | B8: スーパーリ－グ 第１５回大会 Ｂブロック ２０２１ | C8: 表題２ | D8: スーパーリ－グ 第１０回大会 Ｂブロック ２０１６ | E8: 表題２ | F8: スーパーリ－グ 第１０回大会 Ｂブロック ２０１６ | G8: 表題２ | H8: スーパーリ－グ 第１０回大会 Ｂブロック ２０１６ | I8: 表題２ | J8: スーパーリ－グ 第１０回大会 Ｂブロック ２０１６ | K8: 表題２ | L8: スーパーリ－グ 第１０回大会 Ｂブロック ２０１６ | M8: 表題２ | N8: スーパーリ－グ 第１０回大会 Ｂブロック ２０１６ | O8: 表題２ | P8: スーパーリ－グ 第１０回大会 Ｂブロック ２０１６ | Q8: 表題２ | R8: スーパーリ－グ 第１０回大会 Ｂブロック ２０１６ | S8: 表題２ | T8: スーパーリ－グ 第１０回大会 Ｂブロック ２０１６ | U8: 表題２ | V8: スーパーリ－グ 第１０回大会 Ｂブロック ２０１６ | W8: 表題２ | X8: スーパーリ－グ 第１０回大会 Ｂブロック ２０１６ | Y8: 表題２ | Z8: スーパーリ－グ 第１０回大会 Ｂブロック ２０１６ | AA8: 表題２ | AB8: スーパーリ－グ 第１０回大会 Ｂブロック ２０１６ | AC8: 表題２ | AD8: スーパーリ－グ 第１０回大会 Ｂブロック ２０１６ | AE8: 表題２ | AF8: スーパーリ－グ 第１０回大会 Ｂブロック ２０１６ | AG8: 表題２ | AH8: スーパーリ－グ 第１０回大会 Ｂブロック ２０１６ | AI8: 表題２ | AJ8: スーパーリ－グ 第１０回大会 Ｂブロック ２０１６ | AK8: 表題２ | AL8: スーパーリ－グ 第１０回大会 Ｂブロック ２０１６ | AM8: 表題２ | AN8: スーパーリ－グ 第１０回大会 Ｂブロック ２０１６ | AO8: 表題２ | AP8: スーパーリ－グ 第１０回大会 Ｂブロック ２０１６ | AQ8: 表題２ | AR8: スーパーリ－グ 第１０回大会 Ｂブロック ２０１６ | AS8: 表題２ | AT8: スーパーリ－グ 第１０回大会 Ｂブロック ２０１６ | AU8: 表題２ | AV8: スーパーリ－グ 第１０回大会 Ｂブロック ２０１６ | AW8: 表題２ | AX8: スーパーリ－グ 第１０回大会 Ｂブロック ２０１６ | AY8: 表題２ | AZ8: スーパーリ－グ 第１０回大会 Ｂブロック ２０１６ | BA8: 表題２ | BB8: スーパーリ－グ 第１０回大会 Ｂブロック ２０１６ | BC8: 表題２ | BD8: スーパーリ－グ 第１０回大会 Ｂブロック ２０１６ | BE8: 表題２ | BF8: スーパーリ－グ 第１０回大会 Ｂブロック ２０１６ | BG8: 表題２ | BH8: スーパーリ－グ 第１０回大会 Ｂブロック ２０１６ | BI8: 表題２ | BJ8: スーパーリ－グ 第１０回大会 Ｂブロック ２０１６ | BK8: 表題２ | BL8: スーパーリ－グ 第１０回大会 Ｂブロック ２０１６ | BM8: 表題２ | BN8: スーパーリ－グ 第１０回大会 Ｂブロック ２０１６ | BO8: 表題２ | BP8: スーパーリ－グ 第１０回大会 Ｂブロック ２０１６ | BQ8: 表題２ | BR8: スーパーリ－グ 第１０回大会 Ｂブロック ２０１６ | BS8: 表題２ | BT8: スーパーリ－グ 第１０回大会 Ｂブロック ２０１６ | BU8: 表題２ | BV8: スーパーリ－グ 第１０回大会 Ｂブロック ２０１６ | BW8: 表題２ | BX8: スーパーリ－グ 第１０回大会 Ｂブロック ２０１６ | BY8: 表題２ | BZ8: スーパーリ－グ 第１０回大会 Ｂブロック ２０１６ | CA8: 表題２ | CB8: スーパーリ－グ 第１０回大会 Ｂブロック ２０１６ | CC8: 表題２ | CD8: スーパーリ－グ 第１０回大会 Ｂブロック ２０１６ | CE8: 表題２ | CF8: スーパーリ－グ 第１０回大会 Ｂブロック ２０１６ | CG8: 表題２ | CH8: スーパーリ－グ 第１０回大会 Ｂブロック ２０１６ | CI8: 表題２ | CJ8: スーパーリ－グ 第１０回大会 Ｂブロック ２０１６ | CK8: 表題２ | CL8: スーパーリ－グ 第１０回大会 Ｂブロック ２０１６ | CM8: 表題２ | CN8: スーパーリ－グ 第１０回大会 Ｂブロック ２０１６ | CO8: 表題２ | CP8: スーパーリ－グ 第１０回大会 Ｂブロック ２０１６ | CQ8: 表題２ | CR8: スーパーリ－グ 第１０回大会 Ｂブロック ２０１６ | CS8: 表題２ | CT8: スーパーリ－グ 第１０回大会 Ｂブロック ２０１６ | CU8: 表題２ | CV8: スーパーリ－グ 第１０回大会 Ｂブロック ２０１６ | CW8: 表題２ | CX8: スーパーリ－グ 第１０回大会 Ｂブロック ２０１６ | CY8: 表題２ | CZ8: スーパーリ－グ 第１０回大会 Ｂブロック ２０１６ | DA8: 表題２ | DB8: スーパーリ－グ 第１０回大会 Ｂブロック ２０１６ | DC8: 表題２ | DD8: スーパーリ－グ 第１０回大会 Ｂブロック ２０１６ | DE8: 表題２ | DF8: スーパーリ－グ 第１０回大会 Ｂブロック ２０１６ | DG8: 表題２ | DH8: スーパーリ－グ 第１０回大会 Ｂブロック ２０１６ | DI8: 表題２ | DJ8: スーパーリ－グ 第１０回大会 Ｂブロック ２０１６ | DK8: 表題２ | DL8: スーパーリ－グ 第１０回大会 Ｂブロック ２０１６ | DM8: 表題２ | DN8: スーパーリ－グ 第１０回大会 Ｂブロック ２０１６ | DO8: 表題２ | DP8: スーパーリ－グ 第１０回大会 Ｂブロック ２０１６ | DQ8: 表題２ | DR8: スーパーリ－グ 第１０回大会 Ｂブロック ２０１６ | DS8: 表題２ | DT8: スーパーリ－グ 第１０回大会 Ｂブロック ２０１６ | DU8: 表題２ | DV8: スーパーリ－グ 第１０回大会 Ｂブロック ２０１６ | DW8: 表題２ | DX8: スーパーリ－グ 第１０回大会 Ｂブロック ２０１６ | DY8: 表題２ | DZ8: スーパーリ－グ 第１０回大会 Ｂブロック ２０１６ | EA8: 表題２ | EB8: スーパーリ－グ 第１０回大会 Ｂブロック ２０１６ | EC8: 表題２ | ED8: スーパーリ－グ 第１０回大会 Ｂブロック ２０１６ | EE8: 表題２ | EF8: スーパーリ－グ 第１０回大会 Ｂブロック ２０１６ | EG8: 表題２ | EH8: スーパーリ－グ 第１０回大会 Ｂブロック ２０１６ | EI8: 表題２ | EJ8: スーパーリ－グ 第１０回大会 Ｂブロック ２０１６ | EK8: 表題２ | EL8: スーパーリ－グ 第１０回大会 Ｂブロック ２０１６ | EM8: 表題２ | EN8: スーパーリ－グ 第１０回大会 Ｂブロック ２０１６ | EO8: 表題２ | EP8: スーパーリ－グ 第１０回大会 Ｂブロック ２０１６ | EQ8: 表題２ | ER8: スーパーリ－グ 第１０回大会 Ｂブロック ２０１６ | ES8: 表題２ | ET8: スーパーリ－グ 第１０回大会 Ｂブロック ２０１６ | EU8: 表題２ | EV8: スーパーリ－グ 第１０回大会 Ｂブロック ２０１６ | EW8: 表題２ | EX8: スーパーリ－グ 第１０回大会 Ｂブロック ２０１６ | EY8: 表題２ | EZ8: スーパーリ－グ 第１０回大会 Ｂブロック ２０１６ | FA8: 表題２ | FB8: スーパーリ－グ 第１０回大会 Ｂブロック ２０１６ | FC8: 表題２ | FD8: スーパーリ－グ 第１０回大会 Ｂブロック ２０１６ | FE8: 表題２ | FF8: スーパーリ－グ 第１０回大会 Ｂブロック ２０１６ | FG8: 表題２ | FH8: スーパーリ－グ 第１０回大会 Ｂブロック ２０１６ | FI8: 表題２ | FJ8: スーパーリ－グ 第１０回大会 Ｂブロック ２０１６ | FK8: 表題２ | FL8: スーパーリ－グ 第１０回大会 Ｂブロック ２０１６ | FM8: 表題２ | FN8: スーパーリ－グ 第１０回大会 Ｂブロック ２０１６ | FO8: 表題２ | FP8: スーパーリ－グ 第１０回大会 Ｂブロック ２０１６ | FQ8: 表題２ | FR8: スーパーリ－グ 第１０回大会 Ｂブロック ２０１６ | FS8: 表題２ | FT8: スーパーリ－グ 第１０回大会 Ｂブロック ２０１６ | FU8: 表題２ | FV8: スーパーリ－グ 第１０回大会 Ｂブロック ２０１６ | FW8: 表題２ | FX8: スーパーリ－グ 第１０回大会 Ｂブロック ２０１６ | FY8: 表題２ | FZ8: スーパーリ－グ 第１０回大会 Ｂブロック ２０１６ | GA8: 表題２ | GB8: スーパーリ－グ 第１０回大会 Ｂブロック ２０１６ | GC8: 表題２ | GD8: スーパーリ－グ 第１０回大会 Ｂブロック ２０１６ | GE8: 表題２ | GF8: スーパーリ－グ 第１０回大会 Ｂブロック ２０１６ | GG8: 表題２ | GH8: スーパーリ－グ 第１０回大会 Ｂブロック ２０１６ | GI8: 表題２ | GJ8: スーパーリ－グ 第１０回大会 Ｂブロック ２０１６ | GK8: 表題２ | GL8: スーパーリ－グ 第１０回大会 Ｂブロック ２０１６ | GM8: 表題２ | GN8: スーパーリ－グ 第１０回大会 Ｂブロック ２０１６ | GO8: 表題２ | GP8: スーパーリ－グ 第１０回大会 Ｂブロック ２０１６ | GQ8: 表題２ | GR8: スーパーリ－グ 第１０回大会 Ｂブロック ２０１６ | GS8: 表題２ | GT8: スーパーリ－グ 第１０回大会 Ｂブロック ２０１６ | GU8: 表題２ | GV8: スーパーリ－グ 第１０回大会 Ｂブロック ２０１６ | GW8: 表題２ | GX8: スーパーリ－グ 第１０回大会 Ｂブロック ２０１６ | GY8: 表題２ | GZ8: スーパーリ－グ 第１０回大会 Ｂブロック ２０１６ | HA8: 表題２ | HB8: スーパーリ－グ 第１０回大会 Ｂブロック ２０１６ | HC8: 表題２ | HD8: スーパーリ－グ 第１０回大会 Ｂブロック ２０１６ | HE8: 表題２ | HF8: スーパーリ－グ 第１０回大会 Ｂブロック ２０１６ | HG8: 表題２ | HH8: スーパーリ－グ 第１０回大会 Ｂブロック ２０１６ | HI8: 表題２ | HJ8: スーパーリ－グ 第１０回大会 Ｂブロック ２０１６ | HK8: 表題２ | HL8: スーパーリ－グ 第１０回大会 Ｂブロック ２０１６ | HM8: 表題２ | HN8: スーパーリ－グ 第１０回大会 Ｂブロック ２０１６ | HO8: 表題２ | HP8: スーパーリ－グ 第１０回大会 Ｂブロック ２０１６ | HQ8: 表題２ | HR8: スーパーリ－グ 第１０回大会 Ｂブロック ２０１６ | HS8: 表題２ | HT8: スーパーリ－グ 第１０回大会 Ｂブロック ２０１６ | HU8: 表題２ | HV8: スーパーリ－グ 第１０回大会 Ｂブロック ２０１６ | HW8: 表題２ | HX8: スーパーリ－グ 第１０回大会 Ｂブロック ２０１６ | HY8: 表題２ | HZ8: スーパーリ－グ 第１０回大会 Ｂブロック ２０１６ | IA8: 表題２ | IB8: スーパーリ－グ 第１０回大会 Ｂブロック ２０１６ | IC8: 表題２ | ID8: スーパーリ－グ 第１０回大会 Ｂブロック ２０１６ | IE8: 表題２ | IF8: スーパーリ－グ 第１０回大会 Ｂブロック ２０１６ | IG8: 表題２ | IH8: スーパーリ－グ 第１０回大会 Ｂブロック ２０１６ | II8: 表題２ | IJ8: スーパーリ－グ 第１０回大会 Ｂブロック ２０１６ | IK8: 表題２ | IL8: スーパーリ－グ 第１０回大会 Ｂブロック ２０１６ | IM8: 表題２ | IN8: スーパーリ－グ 第１０回大会 Ｂブロック ２０１６ | IO8: 表題２ | IP8: スーパーリ－グ 第１０回大会 Ｂブロック ２０１６ | IQ8: 表題２ | IR8: スーパーリ－グ 第１０回大会 Ｂブロック ２０１６ | IS8: 表題２ | IT8: スーパーリ－グ 第１０回大会 Ｂブロック ２０１６ | IU8: 表題２ | IV8: スーパーリ－グ 第１０回大会 Ｂブロック ２０１６
A10: 表題３ | B10: スーパーリ－グ 第１５回大会 Ｃブロック ２０２１ | C10: 表題３ | D10: スーパーリ－グ 第１０回大会 Ｃブロック ２０１６ | E10: 表題３ | F10: スーパーリ－グ 第１０回大会 Ｃブロック ２０１６ | G10: 表題３ | H10: スーパーリ－グ 第１０回大会 Ｃブロック ２０１６ | I10: 表題３ | J10: スーパーリ－グ 第１０回大会 Ｃブロック ２０１６ | K10: 表題３ | L10: スーパーリ－グ 第１０回大会 Ｃブロック ２０１６ | M10: 表題３ | N10: スーパーリ－グ 第１０回大会 Ｃブロック ２０１６ | O10: 表題３ | P10: スーパーリ－グ 第１０回大会 Ｃブロック ２０１６ | Q10: 表題３ | R10: スーパーリ－グ 第１０回大会 Ｃブロック ２０１６ | S10: 表題３ | T10: スーパーリ－グ 第１０回大会 Ｃブロック ２０１６ | U10: 表題３ | V10: スーパーリ－グ 第１０回大会 Ｃブロック ２０１６ | W10: 表題３ | X10: スーパーリ－グ 第１０回大会 Ｃブロック ２０１６ | Y10: 表題３ | Z10: スーパーリ－グ 第１０回大会 Ｃブロック ２０１６ | AA10: 表題３ | AB10: スーパーリ－グ 第１０回大会 Ｃブロック ２０１６ | AC10: 表題３ | AD10: スーパーリ－グ 第１０回大会 Ｃブロック ２０１６ | AE10: 表題３ | AF10: スーパーリ－グ 第１０回大会 Ｃブロック ２０１６ | AG10: 表題３ | AH10: スーパーリ－グ 第１０回大会 Ｃブロック ２０１６ | AI10: 表題３ | AJ10: スーパーリ－グ 第１０回大会 Ｃブロック ２０１６ | AK10: 表題３ | AL10: スーパーリ－グ 第１０回大会 Ｃブロック ２０１６ | AM10: 表題３ | AN10: スーパーリ－グ 第１０回大会 Ｃブロック ２０１６ | AO10: 表題３ | AP10: スーパーリ－グ 第１０回大会 Ｃブロック ２０１６ | AQ10: 表題３ | AR10: スーパーリ－グ 第１０回大会 Ｃブロック ２０１６ | AS10: 表題３ | AT10: スーパーリ－グ 第１０回大会 Ｃブロック ２０１６ | AU10: 表題３ | AV10: スーパーリ－グ 第１０回大会 Ｃブロック ２０１６ | AW10: 表題３ | AX10: スーパーリ－グ 第１０回大会 Ｃブロック ２０１６ | AY10: 表題３ | AZ10: スーパーリ－グ 第１０回大会 Ｃブロック ２０１６ | BA10: 表題３ | BB10: スーパーリ－グ 第１０回大会 Ｃブロック ２０１６ | BC10: 表題３ | BD10: スーパーリ－グ 第１０回大会 Ｃブロック ２０１６ | BE10: 表題３ | BF10: スーパーリ－グ 第１０回大会 Ｃブロック ２０１６ | BG10: 表題３ | BH10: スーパーリ－グ 第１０回大会 Ｃブロック ２０１６ | BI10: 表題３ | BJ10: スーパーリ－グ 第１０回大会 Ｃブロック ２０１６ | BK10: 表題３ | BL10: スーパーリ－グ 第１０回大会 Ｃブロック ２０１６ | BM10: 表題３ | BN10: スーパーリ－グ 第１０回大会 Ｃブロック ２０１６ | BO10: 表題３ | BP10: スーパーリ－グ 第１０回大会 Ｃブロック ２０１６ | BQ10: 表題３ | BR10: スーパーリ－グ 第１０回大会 Ｃブロック ２０１６ | BS10: 表題３ | BT10: スーパーリ－グ 第１０回大会 Ｃブロック ２０１６ | BU10: 表題３ | BV10: スーパーリ－グ 第１０回大会 Ｃブロック ２０１６ | BW10: 表題３ | BX10: スーパーリ－グ 第１０回大会 Ｃブロック ２０１６ | BY10: 表題３ | BZ10: スーパーリ－グ 第１０回大会 Ｃブロック ２０１６ | CA10: 表題３ | CB10: スーパーリ－グ 第１０回大会 Ｃブロック ２０１６ | CC10: 表題３ | CD10: スーパーリ－グ 第１０回大会 Ｃブロック ２０１６ | CE10: 表題３ | CF10: スーパーリ－グ 第１０回大会 Ｃブロック ２０１６ | CG10: 表題３ | CH10: スーパーリ－グ 第１０回大会 Ｃブロック ２０１６ | CI10: 表題３ | CJ10: スーパーリ－グ 第１０回大会 Ｃブロック ２０１６ | CK10: 表題３ | CL10: スーパーリ－グ 第１０回大会 Ｃブロック ２０１６ | CM10: 表題３ | CN10: スーパーリ－グ 第１０回大会 Ｃブロック ２０１６ | CO10: 表題３ | CP10: スーパーリ－グ 第１０回大会 Ｃブロック ２０１６ | CQ10: 表題３ | CR10: スーパーリ－グ 第１０回大会 Ｃブロック ２０１６ | CS10: 表題３ | CT10: スーパーリ－グ 第１０回大会 Ｃブロック ２０１６ | CU10: 表題３ | CV10: スーパーリ－グ 第１０回大会 Ｃブロック ２０１６ | CW10: 表題３ | CX10: スーパーリ－グ 第１０回大会 Ｃブロック ２０１６ | CY10: 表題３ | CZ10: スーパーリ－グ 第１０回大会 Ｃブロック ２０１６ | DA10: 表題３ | DB10: スーパーリ－グ 第１０回大会 Ｃブロック ２０１６ | DC10: 表題３ | DD10: スーパーリ－グ 第１０回大会 Ｃブロック ２０１６ | DE10: 表題３ | DF10: スーパーリ－グ 第１０回大会 Ｃブロック ２０１６ | DG10: 表題３ | DH10: スーパーリ－グ 第１０回大会 Ｃブロック ２０１６ | DI10: 表題３ | DJ10: スーパーリ－グ 第１０回大会 Ｃブロック ２０１６ | DK10: 表題３ | DL10: スーパーリ－グ 第１０回大会 Ｃブロック ２０１６ | DM10: 表題３ | DN10: スーパーリ－グ 第１０回大会 Ｃブロック ２０１６ | DO10: 表題３ | DP10: スーパーリ－グ 第１０回大会 Ｃブロック ２０１６ | DQ10: 表題３ | DR10: スーパーリ－グ 第１０回大会 Ｃブロック ２０１６ | DS10: 表題３ | DT10: スーパーリ－グ 第１０回大会 Ｃブロック ２０１６ | DU10: 表題３ | DV10: スーパーリ－グ 第１０回大会 Ｃブロック ２０１６ | DW10: 表題３ | DX10: スーパーリ－グ 第１０回大会 Ｃブロック ２０１６ | DY10: 表題３ | DZ10: スーパーリ－グ 第１０回大会 Ｃブロック ２０１６ | EA10: 表題３ | EB10: スーパーリ－グ 第１０回大会 Ｃブロック ２０１６ | EC10: 表題３ | ED10: スーパーリ－グ 第１０回大会 Ｃブロック ２０１６ | EE10: 表題３ | EF10: スーパーリ－グ 第１０回大会 Ｃブロック ２０１６ | EG10: 表題３ | EH10: スーパーリ－グ 第１０回大会 Ｃブロック ２０１６ | EI10: 表題３ | EJ10: スーパーリ－グ 第１０回大会 Ｃブロック ２０１６ | EK10: 表題３ | EL10: スーパーリ－グ 第１０回大会 Ｃブロック ２０１６ | EM10: 表題３ | EN10: スーパーリ－グ 第１０回大会 Ｃブロック ２０１６ | EO10: 表題３ | EP10: スーパーリ－グ 第１０回大会 Ｃブロック ２０１６ | EQ10: 表題３ | ER10: スーパーリ－グ 第１０回大会 Ｃブロック ２０１６ | ES10: 表題３ | ET10: スーパーリ－グ 第１０回大会 Ｃブロック ２０１６ | EU10: 表題３ | EV10: スーパーリ－グ 第１０回大会 Ｃブロック ２０１６ | EW10: 表題３ | EX10: スーパーリ－グ 第１０回大会 Ｃブロック ２０１６ | EY10: 表題３ | EZ10: スーパーリ－グ 第１０回大会 Ｃブロック ２０１６ | FA10: 表題３ | FB10: スーパーリ－グ 第１０回大会 Ｃブロック ２０１６ | FC10: 表題３ | FD10: スーパーリ－グ 第１０回大会 Ｃブロック ２０１６ | FE10: 表題３ | FF10: スーパーリ－グ 第１０回大会 Ｃブロック ２０１６ | FG10: 表題３ | FH10: スーパーリ－グ 第１０回大会 Ｃブロック ２０１６ | FI10: 表題３ | FJ10: スーパーリ－グ 第１０回大会 Ｃブロック ２０１６ | FK10: 表題３ | FL10: スーパーリ－グ 第１０回大会 Ｃブロック ２０１６ | FM10: 表題３ | FN10: スーパーリ－グ 第１０回大会 Ｃブロック ２０１６ | FO10: 表題３ | FP10: スーパーリ－グ 第１０回大会 Ｃブロック ２０１６ | FQ10: 表題３ | FR10: スーパーリ－グ 第１０回大会 Ｃブロック ２０１６ | FS10: 表題３ | FT10: スーパーリ－グ 第１０回大会 Ｃブロック ２０１６ | FU10: 表題３ | FV10: スーパーリ－グ 第１０回大会 Ｃブロック ２０１６ | FW10: 表題３ | FX10: スーパーリ－グ 第１０回大会 Ｃブロック ２０１６ | FY10: 表題３ | FZ10: スーパーリ－グ 第１０回大会 Ｃブロック ２０１６ | GA10: 表題３ | GB10: スーパーリ－グ 第１０回大会 Ｃブロック ２０１６ | GC10: 表題３ | GD10: スーパーリ－グ 第１０回大会 Ｃブロック ２０１６ | GE10: 表題３ | GF10: スーパーリ－グ 第１０回大会 Ｃブロック ２０１６ | GG10: 表題３ | GH10: スーパーリ－グ 第１０回大会 Ｃブロック ２０１６ | GI10: 表題３ | GJ10: スーパーリ－グ 第１０回大会 Ｃブロック ２０１６ | GK10: 表題３ | GL10: スーパーリ－グ 第１０回大会 Ｃブロック ２０１６ | GM10: 表題３ | GN10: スーパーリ－グ 第１０回大会 Ｃブロック ２０１６ | GO10: 表題３ | GP10: スーパーリ－グ 第１０回大会 Ｃブロック ２０１６ | GQ10: 表題３ | GR10: スーパーリ－グ 第１０回大会 Ｃブロック ２０１６ | GS10: 表題３ | GT10: スーパーリ－グ 第１０回大会 Ｃブロック ２０１６ | GU10: 表題３ | GV10: スーパーリ－グ 第１０回大会 Ｃブロック ２０１６ | GW10: 表題３ | GX10: スーパーリ－グ 第１０回大会 Ｃブロック ２０１６ | GY10: 表題３ | GZ10: スーパーリ－グ 第１０回大会 Ｃブロック ２０１６ | HA10: 表題３ | HB10: スーパーリ－グ 第１０回大会 Ｃブロック ２０１６ | HC10: 表題３ | HD10: スーパーリ－グ 第１０回大会 Ｃブロック ２０１６ | HE10: 表題３ | HF10: スーパーリ－グ 第１０回大会 Ｃブロック ２０１６ | HG10: 表題３ | HH10: スーパーリ－グ 第１０回大会 Ｃブロック ２０１６ | HI10: 表題３ | HJ10: スーパーリ－グ 第１０回大会 Ｃブロック ２０１６ | HK10: 表題３ | HL10: スーパーリ－グ 第１０回大会 Ｃブロック ２０１６ | HM10: 表題３ | HN10: スーパーリ－グ 第１０回大会 Ｃブロック ２０１６ | HO10: 表題３ | HP10: スーパーリ－グ 第１０回大会 Ｃブロック ２０１６ | HQ10: 表題３ | HR10: スーパーリ－グ 第１０回大会 Ｃブロック ２０１６ | HS10: 表題３ | HT10: スーパーリ－グ 第１０回大会 Ｃブロック ２０１６ | HU10: 表題３ | HV10: スーパーリ－グ 第１０回大会 Ｃブロック ２０１６ | HW10: 表題３ | HX10: スーパーリ－グ 第１０回大会 Ｃブロック ２０１６ | HY10: 表題３ | HZ10: スーパーリ－グ 第１０回大会 Ｃブロック ２０１６ | IA10: 表題３ | IB10: スーパーリ－グ 第１０回大会 Ｃブロック ２０１６ | IC10: 表題３ | ID10: スーパーリ－グ 第１０回大会 Ｃブロック ２０１６ | IE10: 表題３ | IF10: スーパーリ－グ 第１０回大会 Ｃブロック ２０１６ | IG10: 表題３ | IH10: スーパーリ－グ 第１０回大会 Ｃブロック ２０１６ | II10: 表題３ | IJ10: スーパーリ－グ 第１０回大会 Ｃブロック ２０１６ | IK10: 表題３ | IL10: スーパーリ－グ 第１０回大会 Ｃブロック ２０１６ | IM10: 表題３ | IN10: スーパーリ－グ 第１０回大会 Ｃブロック ２０１６ | IO10: 表題３ | IP10: スーパーリ－グ 第１０回大会 Ｃブロック ２０１６ | IQ10: 表題３ | IR10: スーパーリ－グ 第１０回大会 Ｃブロック ２０１６ | IS10: 表題３ | IT10: スーパーリ－グ 第１０回大会 Ｃブロック ２０１６ | IU10: 表題３ | IV10: スーパーリ－グ 第１０回大会 Ｃブロック ２０１６
A12: 表題４ | B12: スーパーリ－グ 第１５回大会 Ｄブロック ２０２１ | C12: 表題４ | D12: スーパーリ－グ 第１０回大会 Ｄブロック ２０１６ | E12: 表題４ | F12: スーパーリ－グ 第１０回大会 Ｄブロック ２０１６ | G12: 表題４ | H12: スーパーリ－グ 第１０回大会 Ｄブロック ２０１６ | I12: 表題４ | J12: スーパーリ－グ 第１０回大会 Ｄブロック ２０１６ | K12: 表題４ | L12: スーパーリ－グ 第１０回大会 Ｄブロック ２０１６ | M12: 表題４ | N12: スーパーリ－グ 第１０回大会 Ｄブロック ２０１６ | O12: 表題４ | P12: スーパーリ－グ 第１０回大会 Ｄブロック ２０１６ | Q12: 表題４ | R12: スーパーリ－グ 第１０回大会 Ｄブロック ２０１６ | S12: 表題４ | T12: スーパーリ－グ 第１０回大会 Ｄブロック ２０１６ | U12: 表題４ | V12: スーパーリ－グ 第１０回大会 Ｄブロック ２０１６ | W12: 表題４ | X12: スーパーリ－グ 第１０回大会 Ｄブロック ２０１６ | Y12: 表題４ | Z12: スーパーリ－グ 第１０回大会 Ｄブロック ２０１６ | AA12: 表題４ | AB12: スーパーリ－グ 第１０回大会 Ｄブロック ２０１６ | AC12: 表題４ | AD12: スーパーリ－グ 第１０回大会 Ｄブロック ２０１６ | AE12: 表題４ | AF12: スーパーリ－グ 第１０回大会 Ｄブロック ２０１６ | AG12: 表題４ | AH12: スーパーリ－グ 第１０回大会 Ｄブロック ２０１６ | AI12: 表題４ | AJ12: スーパーリ－グ 第１０回大会 Ｄブロック ２０１６ | AK12: 表題４ | AL12: スーパーリ－グ 第１０回大会 Ｄブロック ２０１６ | AM12: 表題４ | AN12: スーパーリ－グ 第１０回大会 Ｄブロック ２０１６ | AO12: 表題４ | AP12: スーパーリ－グ 第１０回大会 Ｄブロック ２０１６ | AQ12: 表題４ | AR12: スーパーリ－グ 第１０回大会 Ｄブロック ２０１６ | AS12: 表題４ | AT12: スーパーリ－グ 第１０回大会 Ｄブロック ２０１６ | AU12: 表題４ | AV12: スーパーリ－グ 第１０回大会 Ｄブロック ２０１６ | AW12: 表題４ | AX12: スーパーリ－グ 第１０回大会 Ｄブロック ２０１６ | AY12: 表題４ | AZ12: スーパーリ－グ 第１０回大会 Ｄブロック ２０１６ | BA12: 表題４ | BB12: スーパーリ－グ 第１０回大会 Ｄブロック ２０１６ | BC12: 表題４ | BD12: スーパーリ－グ 第１０回大会 Ｄブロック ２０１６ | BE12: 表題４ | BF12: スーパーリ－グ 第１０回大会 Ｄブロック ２０１６ | BG12: 表題４ | BH12: スーパーリ－グ 第１０回大会 Ｄブロック ２０１６ | BI12: 表題４ | BJ12: スーパーリ－グ 第１０回大会 Ｄブロック ２０１６ | BK12: 表題４ | BL12: スーパーリ－グ 第１０回大会 Ｄブロック ２０１６ | BM12: 表題４ | BN12: スーパーリ－グ 第１０回大会 Ｄブロック ２０１６ | BO12: 表題４ | BP12: スーパーリ－グ 第１０回大会 Ｄブロック ２０１６ | BQ12: 表題４ | BR12: スーパーリ－グ 第１０回大会 Ｄブロック ２０１６ | BS12: 表題４ | BT12: スーパーリ－グ 第１０回大会 Ｄブロック ２０１６ | BU12: 表題４ | BV12: スーパーリ－グ 第１０回大会 Ｄブロック ２０１６ | BW12: 表題４ | BX12: スーパーリ－グ 第１０回大会 Ｄブロック ２０１６ | BY12: 表題４ | BZ12: スーパーリ－グ 第１０回大会 Ｄブロック ２０１６ | CA12: 表題４ | CB12: スーパーリ－グ 第１０回大会 Ｄブロック ２０１６ | CC12: 表題４ | CD12: スーパーリ－グ 第１０回大会 Ｄブロック ２０１６ | CE12: 表題４ | CF12: スーパーリ－グ 第１０回大会 Ｄブロック ２０１６ | CG12: 表題４ | CH12: スーパーリ－グ 第１０回大会 Ｄブロック ２０１６ | CI12: 表題４ | CJ12: スーパーリ－グ 第１０回大会 Ｄブロック ２０１６ | CK12: 表題４ | CL12: スーパーリ－グ 第１０回大会 Ｄブロック ２０１６ | CM12: 表題４ | CN12: スーパーリ－グ 第１０回大会 Ｄブロック ２０１６ | CO12: 表題４ | CP12: スーパーリ－グ 第１０回大会 Ｄブロック ２０１６ | CQ12: 表題４ | CR12: スーパーリ－グ 第１０回大会 Ｄブロック ２０１６ | CS12: 表題４ | CT12: スーパーリ－グ 第１０回大会 Ｄブロック ２０１６ | CU12: 表題４ | CV12: スーパーリ－グ 第１０回大会 Ｄブロック ２０１６ | CW12: 表題４ | CX12: スーパーリ－グ 第１０回大会 Ｄブロック ２０１６ | CY12: 表題４ | CZ12: スーパーリ－グ 第１０回大会 Ｄブロック ２０１６ | DA12: 表題４ | DB12: スーパーリ－グ 第１０回大会 Ｄブロック ２０１６ | DC12: 表題４ | DD12: スーパーリ－グ 第１０回大会 Ｄブロック ２０１６ | DE12: 表題４ | DF12: スーパーリ－グ 第１０回大会 Ｄブロック ２０１６ | DG12: 表題４ | DH12: スーパーリ－グ 第１０回大会 Ｄブロック ２０１６ | DI12: 表題４ | DJ12: スーパーリ－グ 第１０回大会 Ｄブロック ２０１６ | DK12: 表題４ | DL12: スーパーリ－グ 第１０回大会 Ｄブロック ２０１６ | DM12: 表題４ | DN12: スーパーリ－グ 第１０回大会 Ｄブロック ２０１６ | DO12: 表題４ | DP12: スーパーリ－グ 第１０回大会 Ｄブロック ２０１６ | DQ12: 表題４ | DR12: スーパーリ－グ 第１０回大会 Ｄブロック ２０１６ | DS12: 表題４ | DT12: スーパーリ－グ 第１０回大会 Ｄブロック ２０１６ | DU12: 表題４ | DV12: スーパーリ－グ 第１０回大会 Ｄブロック ２０１６ | DW12: 表題４ | DX12: スーパーリ－グ 第１０回大会 Ｄブロック ２０１６ | DY12: 表題４ | DZ12: スーパーリ－グ 第１０回大会 Ｄブロック ２０１６ | EA12: 表題４ | EB12: スーパーリ－グ 第１０回大会 Ｄブロック ２０１６ | EC12: 表題４ | ED12: スーパーリ－グ 第１０回大会 Ｄブロック ２０１６ | EE12: 表題４ | EF12: スーパーリ－グ 第１０回大会 Ｄブロック ２０１６ | EG12: 表題４ | EH12: スーパーリ－グ 第１０回大会 Ｄブロック ２０１６ | EI12: 表題４ | EJ12: スーパーリ－グ 第１０回大会 Ｄブロック ２０１６ | EK12: 表題４ | EL12: スーパーリ－グ 第１０回大会 Ｄブロック ２０１６ | EM12: 表題４ | EN12: スーパーリ－グ 第１０回大会 Ｄブロック ２０１６ | EO12: 表題４ | EP12: スーパーリ－グ 第１０回大会 Ｄブロック ２０１６ | EQ12: 表題４ | ER12: スーパーリ－グ 第１０回大会 Ｄブロック ２０１６ | ES12: 表題４ | ET12: スーパーリ－グ 第１０回大会 Ｄブロック ２０１６ | EU12: 表題４ | EV12: スーパーリ－グ 第１０回大会 Ｄブロック ２０１６ | EW12: 表題４ | EX12: スーパーリ－グ 第１０回大会 Ｄブロック ２０１６ | EY12: 表題４ | EZ12: スーパーリ－グ 第１０回大会 Ｄブロック ２０１６ | FA12: 表題４ | FB12: スーパーリ－グ 第１０回大会 Ｄブロック ２０１６ | FC12: 表題４ | FD12: スーパーリ－グ 第１０回大会 Ｄブロック ２０１６ | FE12: 表題４ | FF12: スーパーリ－グ 第１０回大会 Ｄブロック ２０１６ | FG12: 表題４ | FH12: スーパーリ－グ 第１０回大会 Ｄブロック ２０１６ | FI12: 表題４ | FJ12: スーパーリ－グ 第１０回大会 Ｄブロック ２０１６ | FK12: 表題４ | FL12: スーパーリ－グ 第１０回大会 Ｄブロック ２０１６ | FM12: 表題４ | FN12: スーパーリ－グ 第１０回大会 Ｄブロック ２０１６ | FO12: 表題４ | FP12: スーパーリ－グ 第１０回大会 Ｄブロック ２０１６ | FQ12: 表題４ | FR12: スーパーリ－グ 第１０回大会 Ｄブロック ２０１６ | FS12: 表題４ | FT12: スーパーリ－グ 第１０回大会 Ｄブロック ２０１６ | FU12: 表題４ | FV12: スーパーリ－グ 第１０回大会 Ｄブロック ２０１６ | FW12: 表題４ | FX12: スーパーリ－グ 第１０回大会 Ｄブロック ２０１６ | FY12: 表題４ | FZ12: スーパーリ－グ 第１０回大会 Ｄブロック ２０１６ | GA12: 表題４ | GB12: スーパーリ－グ 第１０回大会 Ｄブロック ２０１６ | GC12: 表題４ | GD12: スーパーリ－グ 第１０回大会 Ｄブロック ２０１６ | GE12: 表題４ | GF12: スーパーリ－グ 第１０回大会 Ｄブロック ２０１６ | GG12: 表題４ | GH12: スーパーリ－グ 第１０回大会 Ｄブロック ２０１６ | GI12: 表題４ | GJ12: スーパーリ－グ 第１０回大会 Ｄブロック ２０１６ | GK12: 表題４ | GL12: スーパーリ－グ 第１０回大会 Ｄブロック ２０１６ | GM12: 表題４ | GN12: スーパーリ－グ 第１０回大会 Ｄブロック ２０１６ | GO12: 表題４ | GP12: スーパーリ－グ 第１０回大会 Ｄブロック ２０１６ | GQ12: 表題４ | GR12: スーパーリ－グ 第１０回大会 Ｄブロック ２０１６ | GS12: 表題４ | GT12: スーパーリ－グ 第１０回大会 Ｄブロック ２０１６ | GU12: 表題４ | GV12: スーパーリ－グ 第１０回大会 Ｄブロック ２０１６ | GW12: 表題４ | GX12: スーパーリ－グ 第１０回大会 Ｄブロック ２０１６ | GY12: 表題４ | GZ12: スーパーリ－グ 第１０回大会 Ｄブロック ２０１６ | HA12: 表題４ | HB12: スーパーリ－グ 第１０回大会 Ｄブロック ２０１６ | HC12: 表題４ | HD12: スーパーリ－グ 第１０回大会 Ｄブロック ２０１６ | HE12: 表題４ | HF12: スーパーリ－グ 第１０回大会 Ｄブロック ２０１６ | HG12: 表題４ | HH12: スーパーリ－グ 第１０回大会 Ｄブロック ２０１６ | HI12: 表題４ | HJ12: スーパーリ－グ 第１０回大会 Ｄブロック ２０１６ | HK12: 表題４ | HL12: スーパーリ－グ 第１０回大会 Ｄブロック ２０１６ | HM12: 表題４ | HN12: スーパーリ－グ 第１０回大会 Ｄブロック ２０１６ | HO12: 表題４ | HP12: スーパーリ－グ 第１０回大会 Ｄブロック ２０１６ | HQ12: 表題４ | HR12: スーパーリ－グ 第１０回大会 Ｄブロック ２０１６ | HS12: 表題４ | HT12: スーパーリ－グ 第１０回大会 Ｄブロック ２０１６ | HU12: 表題４ | HV12: スーパーリ－グ 第１０回大会 Ｄブロック ２０１６ | HW12: 表題４ | HX12: スーパーリ－グ 第１０回大会 Ｄブロック ２０１６ | HY12: 表題４ | HZ12: スーパーリ－グ 第１０回大会 Ｄブロック ２０１６ | IA12: 表題４ | IB12: スーパーリ－グ 第１０回大会 Ｄブロック ２０１６ | IC12: 表題４ | ID12: スーパーリ－グ 第１０回大会 Ｄブロック ２０１６ | IE12: 表題４ | IF12: スーパーリ－グ 第１０回大会 Ｄブロック ２０１６ | IG12: 表題４ | IH12: スーパーリ－グ 第１０回大会 Ｄブロック ２０１６ | II12: 表題４ | IJ12: スーパーリ－グ 第１０回大会 Ｄブロック ２０１６ | IK12: 表題４ | IL12: スーパーリ－グ 第１０回大会 Ｄブロック ２０１６ | IM12: 表題４ | IN12: スーパーリ－グ 第１０回大会 Ｄブロック ２０１６ | IO12: 表題４ | IP12: スーパーリ－グ 第１０回大会 Ｄブロック ２０１６ | IQ12: 表題４ | IR12: スーパーリ－グ 第１０回大会 Ｄブロック ２０１６ | IS12: 表題４ | IT12: スーパーリ－グ 第１０回大会 Ｄブロック ２０１６ | IU12: 表題４ | IV12: スーパーリ－グ 第１０回大会 Ｄブロック ２０１６
A14: 表題５ | B14: スーパーリ－グ 第１５回大会 Ｅブロック ２０２１ | C14: 表題５ | D14: スーパーリ－グ 第１０回大会 Ｅブロック ２０１６ | E14: 表題５ | F14: スーパーリ－グ 第１０回大会 Ｅブロック ２０１６ | G14: 表題５ | H14: スーパーリ－グ 第１０回大会 Ｅブロック ２０１６ | I14: 表題５ | J14: スーパーリ－グ 第１０回大会 Ｅブロック ２０１６ | K14: 表題５ | L14: スーパーリ－グ 第１０回大会 Ｅブロック ２０１６ | M14: 表題５ | N14: スーパーリ－グ 第１０回大会 Ｅブロック ２０１６ | O14: 表題５ | P14: スーパーリ－グ 第１０回大会 Ｅブロック ２０１６ | Q14: 表題５ | R14: スーパーリ－グ 第１０回大会 Ｅブロック ２０１６ | S14: 表題５ | T14: スーパーリ－グ 第１０回大会 Ｅブロック ２０１６ | U14: 表題５ | V14: スーパーリ－グ 第１０回大会 Ｅブロック ２０１６ | W14: 表題５ | X14: スーパーリ－グ 第１０回大会 Ｅブロック ２０１６ | Y14: 表題５ | Z14: スーパーリ－グ 第１０回大会 Ｅブロック ２０１６ | AA14: 表題５ | AB14: スーパーリ－グ 第１０回大会 Ｅブロック ２０１６ | AC14: 表題５ | AD14: スーパーリ－グ 第１０回大会 Ｅブロック ２０１６ | AE14: 表題５ | AF14: スーパーリ－グ 第１０回大会 Ｅブロック ２０１６ | AG14: 表題５ | AH14: スーパーリ－グ 第１０回大会 Ｅブロック ２０１６ | AI14: 表題５ | AJ14: スーパーリ－グ 第１０回大会 Ｅブロック ２０１６ | AK14: 表題５ | AL14: スーパーリ－グ 第１０回大会 Ｅブロック ２０１６ | AM14: 表題５ | AN14: スーパーリ－グ 第１０回大会 Ｅブロック ２０１６ | AO14: 表題５ | AP14: スーパーリ－グ 第１０回大会 Ｅブロック ２０１６ | AQ14: 表題５ | AR14: スーパーリ－グ 第１０回大会 Ｅブロック ２０１６ | AS14: 表題５ | AT14: スーパーリ－グ 第１０回大会 Ｅブロック ２０１６ | AU14: 表題５ | AV14: スーパーリ－グ 第１０回大会 Ｅブロック ２０１６ | AW14: 表題５ | AX14: スーパーリ－グ 第１０回大会 Ｅブロック ２０１６ | AY14: 表題５ | AZ14: スーパーリ－グ 第１０回大会 Ｅブロック ２０１６ | BA14: 表題５ | BB14: スーパーリ－グ 第１０回大会 Ｅブロック ２０１６ | BC14: 表題５ | BD14: スーパーリ－グ 第１０回大会 Ｅブロック ２０１６ | BE14: 表題５ | BF14: スーパーリ－グ 第１０回大会 Ｅブロック ２０１６ | BG14: 表題５ | BH14: スーパーリ－グ 第１０回大会 Ｅブロック ２０１６ | BI14: 表題５ | BJ14: スーパーリ－グ 第１０回大会 Ｅブロック ２０１６ | BK14: 表題５ | BL14: スーパーリ－グ 第１０回大会 Ｅブロック ２０１６ | BM14: 表題５ | BN14: スーパーリ－グ 第１０回大会 Ｅブロック ２０１６ | BO14: 表題５ | BP14: スーパーリ－グ 第１０回大会 Ｅブロック ２０１６ | BQ14: 表題５ | BR14: スーパーリ－グ 第１０回大会 Ｅブロック ２０１６ | BS14: 表題５ | BT14: スーパーリ－グ 第１０回大会 Ｅブロック ２０１６ | BU14: 表題５ | BV14: スーパーリ－グ 第１０回大会 Ｅブロック ２０１６ | BW14: 表題５ | BX14: スーパーリ－グ 第１０回大会 Ｅブロック ２０１６ | BY14: 表題５ | BZ14: スーパーリ－グ 第１０回大会 Ｅブロック ２０１６ | CA14: 表題５ | CB14: スーパーリ－グ 第１０回大会 Ｅブロック ２０１６ | CC14: 表題５ | CD14: スーパーリ－グ 第１０回大会 Ｅブロック ２０１６ | CE14: 表題５ | CF14: スーパーリ－グ 第１０回大会 Ｅブロック ２０１６ | CG14: 表題５ | CH14: スーパーリ－グ 第１０回大会 Ｅブロック ２０１６ | CI14: 表題５ | CJ14: スーパーリ－グ 第１０回大会 Ｅブロック ２０１６ | CK14: 表題５ | CL14: スーパーリ－グ 第１０回大会 Ｅブロック ２０１６ | CM14: 表題５ | CN14: スーパーリ－グ 第１０回大会 Ｅブロック ２０１６ | CO14: 表題５ | CP14: スーパーリ－グ 第１０回大会 Ｅブロック ２０１６ | CQ14: 表題５ | CR14: スーパーリ－グ 第１０回大会 Ｅブロック ２０１６ | CS14: 表題５ | CT14: スーパーリ－グ 第１０回大会 Ｅブロック ２０１６ | CU14: 表題５ | CV14: スーパーリ－グ 第１０回大会 Ｅブロック ２０１６ | CW14: 表題５ | CX14: スーパーリ－グ 第１０回大会 Ｅブロック ２０１６ | CY14: 表題５ | CZ14: スーパーリ－グ 第１０回大会 Ｅブロック ２０１６ | DA14: 表題５ | DB14: スーパーリ－グ 第１０回大会 Ｅブロック ２０１６ | DC14: 表題５ | DD14: スーパーリ－グ 第１０回大会 Ｅブロック ２０１６ | DE14: 表題５ | DF14: スーパーリ－グ 第１０回大会 Ｅブロック ２０１６ | DG14: 表題５ | DH14: スーパーリ－グ 第１０回大会 Ｅブロック ２０１６ | DI14: 表題５ | DJ14: スーパーリ－グ 第１０回大会 Ｅブロック ２０１６ | DK14: 表題５ | DL14: スーパーリ－グ 第１０回大会 Ｅブロック ２０１６ | DM14: 表題５ | DN14: スーパーリ－グ 第１０回大会 Ｅブロック ２０１６ | DO14: 表題５ | DP14: スーパーリ－グ 第１０回大会 Ｅブロック ２０１６ | DQ14: 表題５ | DR14: スーパーリ－グ 第１０回大会 Ｅブロック ２０１６ | DS14: 表題５ | DT14: スーパーリ－グ 第１０回大会 Ｅブロック ２０１６ | DU14: 表題５ | DV14: スーパーリ－グ 第１０回大会 Ｅブロック ２０１６ | DW14: 表題５ | DX14: スーパーリ－グ 第１０回大会 Ｅブロック ２０１６ | DY14: 表題５ | DZ14: スーパーリ－グ 第１０回大会 Ｅブロック ２０１６ | EA14: 表題５ | EB14: スーパーリ－グ 第１０回大会 Ｅブロック ２０１６ | EC14: 表題５ | ED14: スーパーリ－グ 第１０回大会 Ｅブロック ２０１６ | EE14: 表題５ | EF14: スーパーリ－グ 第１０回大会 Ｅブロック ２０１６ | EG14: 表題５ | EH14: スーパーリ－グ 第１０回大会 Ｅブロック ２０１６ | EI14: 表題５ | EJ14: スーパーリ－グ 第１０回大会 Ｅブロック ２０１６ | EK14: 表題５ | EL14: スーパーリ－グ 第１０回大会 Ｅブロック ２０１６ | EM14: 表題５ | EN14: スーパーリ－グ 第１０回大会 Ｅブロック ２０１６ | EO14: 表題５ | EP14: スーパーリ－グ 第１０回大会 Ｅブロック ２０１６ | EQ14: 表題５ | ER14: スーパーリ－グ 第１０回大会 Ｅブロック ２０１６ | ES14: 表題５ | ET14: スーパーリ－グ 第１０回大会 Ｅブロック ２０１６ | EU14: 表題５ | EV14: スーパーリ－グ 第１０回大会 Ｅブロック ２０１６ | EW14: 表題５ | EX14: スーパーリ－グ 第１０回大会 Ｅブロック ２０１６ | EY14: 表題５ | EZ14: スーパーリ－グ 第１０回大会 Ｅブロック ２０１６ | FA14: 表題５ | FB14: スーパーリ－グ 第１０回大会 Ｅブロック ２０１６ | FC14: 表題５ | FD14: スーパーリ－グ 第１０回大会 Ｅブロック ２０１６ | FE14: 表題５ | FF14: スーパーリ－グ 第１０回大会 Ｅブロック ２０１６ | FG14: 表題５ | FH14: スーパーリ－グ 第１０回大会 Ｅブロック ２０１６ | FI14: 表題５ | FJ14: スーパーリ－グ 第１０回大会 Ｅブロック ２０１６ | FK14: 表題５ | FL14: スーパーリ－グ 第１０回大会 Ｅブロック ２０１６ | FM14: 表題５ | FN14: スーパーリ－グ 第１０回大会 Ｅブロック ２０１６ | FO14: 表題５ | FP14: スーパーリ－グ 第１０回大会 Ｅブロック ２０１６ | FQ14: 表題５ | FR14: スーパーリ－グ 第１０回大会 Ｅブロック ２０１６ | FS14: 表題５ | FT14: スーパーリ－グ 第１０回大会 Ｅブロック ２０１６ | FU14: 表題５ | FV14: スーパーリ－グ 第１０回大会 Ｅブロック ２０１６ | FW14: 表題５ | FX14: スーパーリ－グ 第１０回大会 Ｅブロック ２０１６ | FY14: 表題５ | FZ14: スーパーリ－グ 第１０回大会 Ｅブロック ２０１６ | GA14: 表題５ | GB14: スーパーリ－グ 第１０回大会 Ｅブロック ２０１６ | GC14: 表題５ | GD14: スーパーリ－グ 第１０回大会 Ｅブロック ２０１６ | GE14: 表題５ | GF14: スーパーリ－グ 第１０回大会 Ｅブロック ２０１６ | GG14: 表題５ | GH14: スーパーリ－グ 第１０回大会 Ｅブロック ２０１６ | GI14: 表題５ | GJ14: スーパーリ－グ 第１０回大会 Ｅブロック ２０１６ | GK14: 表題５ | GL14: スーパーリ－グ 第１０回大会 Ｅブロック ２０１６ | GM14: 表題５ | GN14: スーパーリ－グ 第１０回大会 Ｅブロック ２０１６ | GO14: 表題５ | GP14: スーパーリ－グ 第１０回大会 Ｅブロック ２０１６ | GQ14: 表題５ | GR14: スーパーリ－グ 第１０回大会 Ｅブロック ２０１６ | GS14: 表題５ | GT14: スーパーリ－グ 第１０回大会 Ｅブロック ２０１６ | GU14: 表題５ | GV14: スーパーリ－グ 第１０回大会 Ｅブロック ２０１６ | GW14: 表題５ | GX14: スーパーリ－グ 第１０回大会 Ｅブロック ２０１６ | GY14: 表題５ | GZ14: スーパーリ－グ 第１０回大会 Ｅブロック ２０１６ | HA14: 表題５ | HB14: スーパーリ－グ 第１０回大会 Ｅブロック ２０１６ | HC14: 表題５ | HD14: スーパーリ－グ 第１０回大会 Ｅブロック ２０１６ | HE14: 表題５ | HF14: スーパーリ－グ 第１０回大会 Ｅブロック ２０１６ | HG14: 表題５ | HH14: スーパーリ－グ 第１０回大会 Ｅブロック ２０１６ | HI14: 表題５ | HJ14: スーパーリ－グ 第１０回大会 Ｅブロック ２０１６ | HK14: 表題５ | HL14: スーパーリ－グ 第１０回大会 Ｅブロック ２０１６ | HM14: 表題５ | HN14: スーパーリ－グ 第１０回大会 Ｅブロック ２０１６ | HO14: 表題５ | HP14: スーパーリ－グ 第１０回大会 Ｅブロック ２０１６ | HQ14: 表題５ | HR14: スーパーリ－グ 第１０回大会 Ｅブロック ２０１６ | HS14: 表題５ | HT14: スーパーリ－グ 第１０回大会 Ｅブロック ２０１６ | HU14: 表題５ | HV14: スーパーリ－グ 第１０回大会 Ｅブロック ２０１６ | HW14: 表題５ | HX14: スーパーリ－グ 第１０回大会 Ｅブロック ２０１６ | HY14: 表題５ | HZ14: スーパーリ－グ 第１０回大会 Ｅブロック ２０１６ | IA14: 表題５ | IB14: スーパーリ－グ 第１０回大会 Ｅブロック ２０１６ | IC14: 表題５ | ID14: スーパーリ－グ 第１０回大会 Ｅブロック ２０１６ | IE14: 表題５ | IF14: スーパーリ－グ 第１０回大会 Ｅブロック ２０１６ | IG14: 表題５ | IH14: スーパーリ－グ 第１０回大会 Ｅブロック ２０１６ | II14: 表題５ | IJ14: スーパーリ－グ 第１０回大会 Ｅブロック ２０１６ | IK14: 表題５ | IL14: スーパーリ－グ 第１０回大会 Ｅブロック ２０１６ | IM14: 表題５ | IN14: スーパーリ－グ 第１０回大会 Ｅブロック ２０１６ | IO14: 表題５ | IP14: スーパーリ－グ 第１０回大会 Ｅブロック ２０１６ | IQ14: 表題５ | IR14: スーパーリ－グ 第１０回大会 Ｅブロック ２０１６ | IS14: 表題５ | IT14: スーパーリ－グ 第１０回大会 Ｅブロック ２０１６ | IU14: 表題５ | IV14: スーパーリ－グ 第１０回大会 Ｅブロック ２０１６
A16: 表題６ | B16: スーパーリ－グ 第１５回大会 Ｆブロック ２０２１ | C16: 表題６ | D16: スーパーリ－グ 第１０回大会 Ｆブロック ２０１６ | E16: 表題６ | F16: スーパーリ－グ 第１０回大会 Ｆブロック ２０１６ | G16: 表題６ | H16: スーパーリ－グ 第１０回大会 Ｆブロック ２０１６ | I16: 表題６ | J16: スーパーリ－グ 第１０回大会 Ｆブロック ２０１６ | K16: 表題６ | L16: スーパーリ－グ 第１０回大会 Ｆブロック ２０１６ | M16: 表題６ | N16: スーパーリ－グ 第１０回大会 Ｆブロック ２０１６ | O16: 表題６ | P16: スーパーリ－グ 第１０回大会 Ｆブロック ２０１６ | Q16: 表題６ | R16: スーパーリ－グ 第１０回大会 Ｆブロック ２０１６ | S16: 表題６ | T16: スーパーリ－グ 第１０回大会 Ｆブロック ２０１６ | U16: 表題６ | V16: スーパーリ－グ 第１０回大会 Ｆブロック ２０１６ | W16: 表題６ | X16: スーパーリ－グ 第１０回大会 Ｆブロック ２０１６ | Y16: 表題６ | Z16: スーパーリ－グ 第１０回大会 Ｆブロック ２０１６ | AA16: 表題６ | AB16: スーパーリ－グ 第１０回大会 Ｆブロック ２０１６ | AC16: 表題６ | AD16: スーパーリ－グ 第１０回大会 Ｆブロック ２０１６ | AE16: 表題６ | AF16: スーパーリ－グ 第１０回大会 Ｆブロック ２０１６ | AG16: 表題６ | AH16: スーパーリ－グ 第１０回大会 Ｆブロック ２０１６ | AI16: 表題６ | AJ16: スーパーリ－グ 第１０回大会 Ｆブロック ２０１６ | AK16: 表題６ | AL16: スーパーリ－グ 第１０回大会 Ｆブロック ２０１６ | AM16: 表題６ | AN16: スーパーリ－グ 第１０回大会 Ｆブロック ２０１６ | AO16: 表題６ | AP16: スーパーリ－グ 第１０回大会 Ｆブロック ２０１６ | AQ16: 表題６ | AR16: スーパーリ－グ 第１０回大会 Ｆブロック ２０１６ | AS16: 表題６ | AT16: スーパーリ－グ 第１０回大会 Ｆブロック ２０１６ | AU16: 表題６ | AV16: スーパーリ－グ 第１０回大会 Ｆブロック ２０１６ | AW16: 表題６ | AX16: スーパーリ－グ 第１０回大会 Ｆブロック ２０１６ | AY16: 表題６ | AZ16: スーパーリ－グ 第１０回大会 Ｆブロック ２０１６ | BA16: 表題６ | BB16: スーパーリ－グ 第１０回大会 Ｆブロック ２０１６ | BC16: 表題６ | BD16: スーパーリ－グ 第１０回大会 Ｆブロック ２０１６ | BE16: 表題６ | BF16: スーパーリ－グ 第１０回大会 Ｆブロック ２０１６ | BG16: 表題６ | BH16: スーパーリ－グ 第１０回大会 Ｆブロック ２０１６ | BI16: 表題６ | BJ16: スーパーリ－グ 第１０回大会 Ｆブロック ２０１６ | BK16: 表題６ | BL16: スーパーリ－グ 第１０回大会 Ｆブロック ２０１６ | BM16: 表題６ | BN16: スーパーリ－グ 第１０回大会 Ｆブロック ２０１６ | BO16: 表題６ | BP16: スーパーリ－グ 第１０回大会 Ｆブロック ２０１６ | BQ16: 表題６ | BR16: スーパーリ－グ 第１０回大会 Ｆブロック ２０１６ | BS16: 表題６ | BT16: スーパーリ－グ 第１０回大会 Ｆブロック ２０１６ | BU16: 表題６ | BV16: スーパーリ－グ 第１０回大会 Ｆブロック ２０１６ | BW16: 表題６ | BX16: スーパーリ－グ 第１０回大会 Ｆブロック ２０１６ | BY16: 表題６ | BZ16: スーパーリ－グ 第１０回大会 Ｆブロック ２０１６ | CA16: 表題６ | CB16: スーパーリ－グ 第１０回大会 Ｆブロック ２０１６ | CC16: 表題６ | CD16: スーパーリ－グ 第１０回大会 Ｆブロック ２０１６ | CE16: 表題６ | CF16: スーパーリ－グ 第１０回大会 Ｆブロック ２０１６ | CG16: 表題６ | CH16: スーパーリ－グ 第１０回大会 Ｆブロック ２０１６ | CI16: 表題６ | CJ16: スーパーリ－グ 第１０回大会 Ｆブロック ２０１６ | CK16: 表題６ | CL16: スーパーリ－グ 第１０回大会 Ｆブロック ２０１６ | CM16: 表題６ | CN16: スーパーリ－グ 第１０回大会 Ｆブロック ２０１６ | CO16: 表題６ | CP16: スーパーリ－グ 第１０回大会 Ｆブロック ２０１６ | CQ16: 表題６ | CR16: スーパーリ－グ 第１０回大会 Ｆブロック ２０１６ | CS16: 表題６ | CT16: スーパーリ－グ 第１０回大会 Ｆブロック ２０１６ | CU16: 表題６ | CV16: スーパーリ－グ 第１０回大会 Ｆブロック ２０１６ | CW16: 表題６ | CX16: スーパーリ－グ 第１０回大会 Ｆブロック ２０１６ | CY16: 表題６ | CZ16: スーパーリ－グ 第１０回大会 Ｆブロック ２０１６ | DA16: 表題６ | DB16: スーパーリ－グ 第１０回大会 Ｆブロック ２０１６ | DC16: 表題６ | DD16: スーパーリ－グ 第１０回大会 Ｆブロック ２０１６ | DE16: 表題６ | DF16: スーパーリ－グ 第１０回大会 Ｆブロック ２０１６ | DG16: 表題６ | DH16: スーパーリ－グ 第１０回大会 Ｆブロック ２０１６ | DI16: 表題６ | DJ16: スーパーリ－グ 第１０回大会 Ｆブロック ２０１６ | DK16: 表題６ | DL16: スーパーリ－グ 第１０回大会 Ｆブロック ２０１６ | DM16: 表題６ | DN16: スーパーリ－グ 第１０回大会 Ｆブロック ２０１６ | DO16: 表題６ | DP16: スーパーリ－グ 第１０回大会 Ｆブロック ２０１６ | DQ16: 表題６ | DR16: スーパーリ－グ 第１０回大会 Ｆブロック ２０１６ | DS16: 表題６ | DT16: スーパーリ－グ 第１０回大会 Ｆブロック ２０１６ | DU16: 表題６ | DV16: スーパーリ－グ 第１０回大会 Ｆブロック ２０１６ | DW16: 表題６ | DX16: スーパーリ－グ 第１０回大会 Ｆブロック ２０１６ | DY16: 表題６ | DZ16: スーパーリ－グ 第１０回大会 Ｆブロック ２０１６ | EA16: 表題６ | EB16: スーパーリ－グ 第１０回大会 Ｆブロック ２０１６ | EC16: 表題６ | ED16: スーパーリ－グ 第１０回大会 Ｆブロック ２０１６ | EE16: 表題６ | EF16: スーパーリ－グ 第１０回大会 Ｆブロック ２０１６ | EG16: 表題６ | EH16: スーパーリ－グ 第１０回大会 Ｆブロック ２０１６ | EI16: 表題６ | EJ16: スーパーリ－グ 第１０回大会 Ｆブロック ２０１６ | EK16: 表題６ | EL16: スーパーリ－グ 第１０回大会 Ｆブロック ２０１６ | EM16: 表題６ | EN16: スーパーリ－グ 第１０回大会 Ｆブロック ２０１６ | EO16: 表題６ | EP16: スーパーリ－グ 第１０回大会 Ｆブロック ２０１６ | EQ16: 表題６ | ER16: スーパーリ－グ 第１０回大会 Ｆブロック ２０１６ | ES16: 表題６ | ET16: スーパーリ－グ 第１０回大会 Ｆブロック ２０１６ | EU16: 表題６ | EV16: スーパーリ－グ 第１０回大会 Ｆブロック ２０１６ | EW16: 表題６ | EX16: スーパーリ－グ 第１０回大会 Ｆブロック ２０１６ | EY16: 表題６ | EZ16: スーパーリ－グ 第１０回大会 Ｆブロック ２０１６ | FA16: 表題６ | FB16: スーパーリ－グ 第１０回大会 Ｆブロック ２０１６ | FC16: 表題６ | FD16: スーパーリ－グ 第１０回大会 Ｆブロック ２０１６ | FE16: 表題６ | FF16: スーパーリ－グ 第１０回大会 Ｆブロック ２０１６ | FG16: 表題６ | FH16: スーパーリ－グ 第１０回大会 Ｆブロック ２０１６ | FI16: 表題６ | FJ16: スーパーリ－グ 第１０回大会 Ｆブロック ２０１６ | FK16: 表題６ | FL16: スーパーリ－グ 第１０回大会 Ｆブロック ２０１６ | FM16: 表題６ | FN16: スーパーリ－グ 第１０回大会 Ｆブロック ２０１６ | FO16: 表題６ | FP16: スーパーリ－グ 第１０回大会 Ｆブロック ２０１６ | FQ16: 表題６ | FR16: スーパーリ－グ 第１０回大会 Ｆブロック ２０１６ | FS16: 表題６ | FT16: スーパーリ－グ 第１０回大会 Ｆブロック ２０１６ | FU16: 表題６ | FV16: スーパーリ－グ 第１０回大会 Ｆブロック ２０１６ | FW16: 表題６ | FX16: スーパーリ－グ 第１０回大会 Ｆブロック ２０１６ | FY16: 表題６ | FZ16: スーパーリ－グ 第１０回大会 Ｆブロック ２０１６ | GA16: 表題６ | GB16: スーパーリ－グ 第１０回大会 Ｆブロック ２０１６ | GC16: 表題６ | GD16: スーパーリ－グ 第１０回大会 Ｆブロック ２０１６ | GE16: 表題６ | GF16: スーパーリ－グ 第１０回大会 Ｆブロック ２０１６ | GG16: 表題６ | GH16: スーパーリ－グ 第１０回大会 Ｆブロック ２０１６ | GI16: 表題６ | GJ16: スーパーリ－グ 第１０回大会 Ｆブロック ２０１６ | GK16: 表題６ | GL16: スーパーリ－グ 第１０回大会 Ｆブロック ２０１６ | GM16: 表題６ | GN16: スーパーリ－グ 第１０回大会 Ｆブロック ２０１６ | GO16: 表題６ | GP16: スーパーリ－グ 第１０回大会 Ｆブロック ２０１６ | GQ16: 表題６ | GR16: スーパーリ－グ 第１０回大会 Ｆブロック ２０１６ | GS16: 表題６ | GT16: スーパーリ－グ 第１０回大会 Ｆブロック ２０１６ | GU16: 表題６ | GV16: スーパーリ－グ 第１０回大会 Ｆブロック ２０１６ | GW16: 表題６ | GX16: スーパーリ－グ 第１０回大会 Ｆブロック ２０１６ | GY16: 表題６ | GZ16: スーパーリ－グ 第１０回大会 Ｆブロック ２０１６ | HA16: 表題６ | HB16: スーパーリ－グ 第１０回大会 Ｆブロック ２０１６ | HC16: 表題６ | HD16: スーパーリ－グ 第１０回大会 Ｆブロック ２０１６ | HE16: 表題６ | HF16: スーパーリ－グ 第１０回大会 Ｆブロック ２０１６ | HG16: 表題６ | HH16: スーパーリ－グ 第１０回大会 Ｆブロック ２０１６ | HI16: 表題６ | HJ16: スーパーリ－グ 第１０回大会 Ｆブロック ２０１６ | HK16: 表題６ | HL16: スーパーリ－グ 第１０回大会 Ｆブロック ２０１６ | HM16: 表題６ | HN16: スーパーリ－グ 第１０回大会 Ｆブロック ２０１６ | HO16: 表題６ | HP16: スーパーリ－グ 第１０回大会 Ｆブロック ２０１６ | HQ16: 表題６ | HR16: スーパーリ－グ 第１０回大会 Ｆブロック ２０１６ | HS16: 表題６ | HT16: スーパーリ－グ 第１０回大会 Ｆブロック ２０１６ | HU16: 表題６ | HV16: スーパーリ－グ 第１０回大会 Ｆブロック ２０１６ | HW16: 表題６ | HX16: スーパーリ－グ 第１０回大会 Ｆブロック ２０１６ | HY16: 表題６ | HZ16: スーパーリ－グ 第１０回大会 Ｆブロック ２０１６ | IA16: 表題６ | IB16: スーパーリ－グ 第１０回大会 Ｆブロック ２０１６ | IC16: 表題６ | ID16: スーパーリ－グ 第１０回大会 Ｆブロック ２０１６ | IE16: 表題６ | IF16: スーパーリ－グ 第１０回大会 Ｆブロック ２０１６ | IG16: 表題６ | IH16: スーパーリ－グ 第１０回大会 Ｆブロック ２０１６ | II16: 表題６ | IJ16: スーパーリ－グ 第１０回大会 Ｆブロック ２０１６ | IK16: 表題６ | IL16: スーパーリ－グ 第１０回大会 Ｆブロック ２０１６ | IM16: 表題６ | IN16: スーパーリ－グ 第１０回大会 Ｆブロック ２０１６ | IO16: 表題６ | IP16: スーパーリ－グ 第１０回大会 Ｆブロック ２０１６ | IQ16: 表題６ | IR16: スーパーリ－グ 第１０回大会 Ｆブロック ２０１６ | IS16: 表題６ | IT16: スーパーリ－グ 第１０回大会 Ｆブロック ２０１６ | IU16: 表題６ | IV16: スーパーリ－グ 第１０回大会 Ｆブロック ２０１６
A18: 表題７ | B18: スーパーリ－グ 第１５回大会 Ｇブロック ２０２１ | C18: 表題７ | D18: スーパーリ－グ 第１０回大会 Ｇブロック ２０１６ | E18: 表題７ | F18: スーパーリ－グ 第１０回大会 Ｇブロック ２０１６ | G18: 表題７ | H18: スーパーリ－グ 第１０回大会 Ｇブロック ２０１６ | I18: 表題７ | J18: スーパーリ－グ 第１０回大会 Ｇブロック ２０１６ | K18: 表題７ | L18: スーパーリ－グ 第１０回大会 Ｇブロック ２０１６ | M18: 表題７ | N18: スーパーリ－グ 第１０回大会 Ｇブロック ２０１６ | O18: 表題７ | P18: スーパーリ－グ 第１０回大会 Ｇブロック ２０１６ | Q18: 表題７ | R18: スーパーリ－グ 第１０回大会 Ｇブロック ２０１６ | S18: 表題７ | T18: スーパーリ－グ 第１０回大会 Ｇブロック ２０１６ | U18: 表題７ | V18: スーパーリ－グ 第１０回大会 Ｇブロック ２０１６ | W18: 表題７ | X18: スーパーリ－グ 第１０回大会 Ｇブロック ２０１６ | Y18: 表題７ | Z18: スーパーリ－グ 第１０回大会 Ｇブロック ２０１６ | AA18: 表題７ | AB18: スーパーリ－グ 第１０回大会 Ｇブロック ２０１６ | AC18: 表題７ | AD18: スーパーリ－グ 第１０回大会 Ｇブロック ２０１６ | AE18: 表題７ | AF18: スーパーリ－グ 第１０回大会 Ｇブロック ２０１６ | AG18: 表題７ | AH18: スーパーリ－グ 第１０回大会 Ｇブロック ２０１６ | AI18: 表題７ | AJ18: スーパーリ－グ 第１０回大会 Ｇブロック ２０１６ | AK18: 表題７ | AL18: スーパーリ－グ 第１０回大会 Ｇブロック ２０１６ | AM18: 表題７ | AN18: スーパーリ－グ 第１０回大会 Ｇブロック ２０１６ | AO18: 表題７ | AP18: スーパーリ－グ 第１０回大会 Ｇブロック ２０１６ | AQ18: 表題７ | AR18: スーパーリ－グ 第１０回大会 Ｇブロック ２０１６ | AS18: 表題７ | AT18: スーパーリ－グ 第１０回大会 Ｇブロック ２０１６ | AU18: 表題７ | AV18: スーパーリ－グ 第１０回大会 Ｇブロック ２０１６ | AW18: 表題７ | AX18: スーパーリ－グ 第１０回大会 Ｇブロック ２０１６ | AY18: 表題７ | AZ18: スーパーリ－グ 第１０回大会 Ｇブロック ２０１６ | BA18: 表題７ | BB18: スーパーリ－グ 第１０回大会 Ｇブロック ２０１６ | BC18: 表題７ | BD18: スーパーリ－グ 第１０回大会 Ｇブロック ２０１６ | BE18: 表題７ | BF18: スーパーリ－グ 第１０回大会 Ｇブロック ２０１６ | BG18: 表題７ | BH18: スーパーリ－グ 第１０回大会 Ｇブロック ２０１６ | BI18: 表題７ | BJ18: スーパーリ－グ 第１０回大会 Ｇブロック ２０１６ | BK18: 表題７ | BL18: スーパーリ－グ 第１０回大会 Ｇブロック ２０１６ | BM18: 表題７ | BN18: スーパーリ－グ 第１０回大会 Ｇブロック ２０１６ | BO18: 表題７ | BP18: スーパーリ－グ 第１０回大会 Ｇブロック ２０１６ | BQ18: 表題７ | BR18: スーパーリ－グ 第１０回大会 Ｇブロック ２０１６ | BS18: 表題７ | BT18: スーパーリ－グ 第１０回大会 Ｇブロック ２０１６ | BU18: 表題７ | BV18: スーパーリ－グ 第１０回大会 Ｇブロック ２０１６ | BW18: 表題７ | BX18: スーパーリ－グ 第１０回大会 Ｇブロック ２０１６ | BY18: 表題７ | BZ18: スーパーリ－グ 第１０回大会 Ｇブロック ２０１６ | CA18: 表題７ | CB18: スーパーリ－グ 第１０回大会 Ｇブロック ２０１６ | CC18: 表題７ | CD18: スーパーリ－グ 第１０回大会 Ｇブロック ２０１６ | CE18: 表題７ | CF18: スーパーリ－グ 第１０回大会 Ｇブロック ２０１６ | CG18: 表題７ | CH18: スーパーリ－グ 第１０回大会 Ｇブロック ２０１６ | CI18: 表題７ | CJ18: スーパーリ－グ 第１０回大会 Ｇブロック ２０１６ | CK18: 表題７ | CL18: スーパーリ－グ 第１０回大会 Ｇブロック ２０１６ | CM18: 表題７ | CN18: スーパーリ－グ 第１０回大会 Ｇブロック ２０１６ | CO18: 表題７ | CP18: スーパーリ－グ 第１０回大会 Ｇブロック ２０１６ | CQ18: 表題７ | CR18: スーパーリ－グ 第１０回大会 Ｇブロック ２０１６ | CS18: 表題７ | CT18: スーパーリ－グ 第１０回大会 Ｇブロック ２０１６ | CU18: 表題７ | CV18: スーパーリ－グ 第１０回大会 Ｇブロック ２０１６ | CW18: 表題７ | CX18: スーパーリ－グ 第１０回大会 Ｇブロック ２０１６ | CY18: 表題７ | CZ18: スーパーリ－グ 第１０回大会 Ｇブロック ２０１６ | DA18: 表題７ | DB18: スーパーリ－グ 第１０回大会 Ｇブロック ２０１６ | DC18: 表題７ | DD18: スーパーリ－グ 第１０回大会 Ｇブロック ２０１６ | DE18: 表題７ | DF18: スーパーリ－グ 第１０回大会 Ｇブロック ２０１６ | DG18: 表題７ | DH18: スーパーリ－グ 第１０回大会 Ｇブロック ２０１６ | DI18: 表題７ | DJ18: スーパーリ－グ 第１０回大会 Ｇブロック ２０１６ | DK18: 表題７ | DL18: スーパーリ－グ 第１０回大会 Ｇブロック ２０１６ | DM18: 表題７ | DN18: スーパーリ－グ 第１０回大会 Ｇブロック ２０１６ | DO18: 表題７ | DP18: スーパーリ－グ 第１０回大会 Ｇブロック ２０１６ | DQ18: 表題７ | DR18: スーパーリ－グ 第１０回大会 Ｇブロック ２０１６ | DS18: 表題７ | DT18: スーパーリ－グ 第１０回大会 Ｇブロック ２０１６ | DU18: 表題７ | DV18: スーパーリ－グ 第１０回大会 Ｇブロック ２０１６ | DW18: 表題７ | DX18: スーパーリ－グ 第１０回大会 Ｇブロック ２０１６ | DY18: 表題７ | DZ18: スーパーリ－グ 第１０回大会 Ｇブロック ２０１６ | EA18: 表題７ | EB18: スーパーリ－グ 第１０回大会 Ｇブロック ２０１６ | EC18: 表題７ | ED18: スーパーリ－グ 第１０回大会 Ｇブロック ２０１６ | EE18: 表題７ | EF18: スーパーリ－グ 第１０回大会 Ｇブロック ２０１６ | EG18: 表題７ | EH18: スーパーリ－グ 第１０回大会 Ｇブロック ２０１６ | EI18: 表題７ | EJ18: スーパーリ－グ 第１０回大会 Ｇブロック ２０１６ | EK18: 表題７ | EL18: スーパーリ－グ 第１０回大会 Ｇブロック ２０１６ | EM18: 表題７ | EN18: スーパーリ－グ 第１０回大会 Ｇブロック ２０１６ | EO18: 表題７ | EP18: スーパーリ－グ 第１０回大会 Ｇブロック ２０１６ | EQ18: 表題７ | ER18: スーパーリ－グ 第１０回大会 Ｇブロック ２０１６ | ES18: 表題７ | ET18: スーパーリ－グ 第１０回大会 Ｇブロック ２０１６ | EU18: 表題７ | EV18: スーパーリ－グ 第１０回大会 Ｇブロック ２０１６ | EW18: 表題７ | EX18: スーパーリ－グ 第１０回大会 Ｇブロック ２０１６ | EY18: 表題７ | EZ18: スーパーリ－グ 第１０回大会 Ｇブロック ２０１６ | FA18: 表題７ | FB18: スーパーリ－グ 第１０回大会 Ｇブロック ２０１６ | FC18: 表題７ | FD18: スーパーリ－グ 第１０回大会 Ｇブロック ２０１６ | FE18: 表題７ | FF18: スーパーリ－グ 第１０回大会 Ｇブロック ２０１６ | FG18: 表題７ | FH18: スーパーリ－グ 第１０回大会 Ｇブロック ２０１６ | FI18: 表題７ | FJ18: スーパーリ－グ 第１０回大会 Ｇブロック ２０１６ | FK18: 表題７ | FL18: スーパーリ－グ 第１０回大会 Ｇブロック ２０１６ | FM18: 表題７ | FN18: スーパーリ－グ 第１０回大会 Ｇブロック ２０１６ | FO18: 表題７ | FP18: スーパーリ－グ 第１０回大会 Ｇブロック ２０１６ | FQ18: 表題７ | FR18: スーパーリ－グ 第１０回大会 Ｇブロック ２０１６ | FS18: 表題７ | FT18: スーパーリ－グ 第１０回大会 Ｇブロック ２０１６ | FU18: 表題７ | FV18: スーパーリ－グ 第１０回大会 Ｇブロック ２０１６ | FW18: 表題７ | FX18: スーパーリ－グ 第１０回大会 Ｇブロック ２０１６ | FY18: 表題７ | FZ18: スーパーリ－グ 第１０回大会 Ｇブロック ２０１６ | GA18: 表題７ | GB18: スーパーリ－グ 第１０回大会 Ｇブロック ２０１６ | GC18: 表題７ | GD18: スーパーリ－グ 第１０回大会 Ｇブロック ２０１６ | GE18: 表題７ | GF18: スーパーリ－グ 第１０回大会 Ｇブロック ２０１６ | GG18: 表題７ | GH18: スーパーリ－グ 第１０回大会 Ｇブロック ２０１６ | GI18: 表題７ | GJ18: スーパーリ－グ 第１０回大会 Ｇブロック ２０１６ | GK18: 表題７ | GL18: スーパーリ－グ 第１０回大会 Ｇブロック ２０１６ | GM18: 表題７ | GN18: スーパーリ－グ 第１０回大会 Ｇブロック ２０１６ | GO18: 表題７ | GP18: スーパーリ－グ 第１０回大会 Ｇブロック ２０１６ | GQ18: 表題７ | GR18: スーパーリ－グ 第１０回大会 Ｇブロック ２０１６ | GS18: 表題７ | GT18: スーパーリ－グ 第１０回大会 Ｇブロック ２０１６ | GU18: 表題７ | GV18: スーパーリ－グ 第１０回大会 Ｇブロック ２０１６ | GW18: 表題７ | GX18: スーパーリ－グ 第１０回大会 Ｇブロック ２０１６ | GY18: 表題７ | GZ18: スーパーリ－グ 第１０回大会 Ｇブロック ２０１６ | HA18: 表題７ | HB18: スーパーリ－グ 第１０回大会 Ｇブロック ２０１６ | HC18: 表題７ | HD18: スーパーリ－グ 第１０回大会 Ｇブロック ２０１６ | HE18: 表題７ | HF18: スーパーリ－グ 第１０回大会 Ｇブロック ２０１６ | HG18: 表題７ | HH18: スーパーリ－グ 第１０回大会 Ｇブロック ２０１６ | HI18: 表題７ | HJ18: スーパーリ－グ 第１０回大会 Ｇブロック ２０１６ | HK18: 表題７ | HL18: スーパーリ－グ 第１０回大会 Ｇブロック ２０１６ | HM18: 表題７ | HN18: スーパーリ－グ 第１０回大会 Ｇブロック ２０１６ | HO18: 表題７ | HP18: スーパーリ－グ 第１０回大会 Ｇブロック ２０１６ | HQ18: 表題７ | HR18: スーパーリ－グ 第１０回大会 Ｇブロック ２０１６ | HS18: 表題７ | HT18: スーパーリ－グ 第１０回大会 Ｇブロック ２０１６ | HU18: 表題７ | HV18: スーパーリ－グ 第１０回大会 Ｇブロック ２０１６ | HW18: 表題７ | HX18: スーパーリ－グ 第１０回大会 Ｇブロック ２０１６ | HY18: 表題７ | HZ18: スーパーリ－グ 第１０回大会 Ｇブロック ２０１６ | IA18: 表題７ | IB18: スーパーリ－グ 第１０回大会 Ｇブロック ２０１６ | IC18: 表題７ | ID18: スーパーリ－グ 第１０回大会 Ｇブロック ２０１６ | IE18: 表題７ | IF18: スーパーリ－グ 第１０回大会 Ｇブロック ２０１６ | IG18: 表題７ | IH18: スーパーリ－グ 第１０回大会 Ｇブロック ２０１６ | II18: 表題７ | IJ18: スーパーリ－グ 第１０回大会 Ｇブロック ２０１６ | IK18: 表題７ | IL18: スーパーリ－グ 第１０回大会 Ｇブロック ２０１６ | IM18: 表題７ | IN18: スーパーリ－グ 第１０回大会 Ｇブロック ２０１６ | IO18: 表題７ | IP18: スーパーリ－グ 第１０回大会 Ｇブロック ２０１６ | IQ18: 表題７ | IR18: スーパーリ－グ 第１０回大会 Ｇブロック ２０１６ | IS18: 表題７ | IT18: スーパーリ－グ 第１０回大会 Ｇブロック ２０１６ | IU18: 表題７ | IV18: スーパーリ－グ 第１０回大会 Ｇブロック ２０１６
A20: 表題８ | B20: スーパーリ－グ 第１５回大会 Ｈブロック ２０２１ | C20: 表題８ | D20: スーパーリ－グ 第１０回大会 Ｈブロック ２０１６ | E20: 表題８ | F20: スーパーリ－グ 第１０回大会 Ｈブロック ２０１６ | G20: 表題８ | H20: スーパーリ－グ 第１０回大会 Ｈブロック ２０１６ | I20: 表題８ | J20: スーパーリ－グ 第１０回大会 Ｈブロック ２０１６ | K20: 表題８ | L20: スーパーリ－グ 第１０回大会 Ｈブロック ２０１６ | M20: 表題８ | N20: スーパーリ－グ 第１０回大会 Ｈブロック ２０１６ | O20: 表題８ | P20: スーパーリ－グ 第１０回大会 Ｈブロック ２０１６ | Q20: 表題８ | R20: スーパーリ－グ 第１０回大会 Ｈブロック ２０１６ | S20: 表題８ | T20: スーパーリ－グ 第１０回大会 Ｈブロック ２０１６ | U20: 表題８ | V20: スーパーリ－グ 第１０回大会 Ｈブロック ２０１６ | W20: 表題８ | X20: スーパーリ－グ 第１０回大会 Ｈブロック ２０１６ | Y20: 表題８ | Z20: スーパーリ－グ 第１０回大会 Ｈブロック ２０１６ | AA20: 表題８ | AB20: スーパーリ－グ 第１０回大会 Ｈブロック ２０１６ | AC20: 表題８ | AD20: スーパーリ－グ 第１０回大会 Ｈブロック ２０１６ | AE20: 表題８ | AF20: スーパーリ－グ 第１０回大会 Ｈブロック ２０１６ | AG20: 表題８ | AH20: スーパーリ－グ 第１０回大会 Ｈブロック ２０１６ | AI20: 表題８ | AJ20: スーパーリ－グ 第１０回大会 Ｈブロック ２０１６ | AK20: 表題８ | AL20: スーパーリ－グ 第１０回大会 Ｈブロック ２０１６ | AM20: 表題８ | AN20: スーパーリ－グ 第１０回大会 Ｈブロック ２０１６ | AO20: 表題８ | AP20: スーパーリ－グ 第１０回大会 Ｈブロック ２０１６ | AQ20: 表題８ | AR20: スーパーリ－グ 第１０回大会 Ｈブロック ２０１６ | AS20: 表題８ | AT20: スーパーリ－グ 第１０回大会 Ｈブロック ２０１６ | AU20: 表題８ | AV20: スーパーリ－グ 第１０回大会 Ｈブロック ２０１６ | AW20: 表題８ | AX20: スーパーリ－グ 第１０回大会 Ｈブロック ２０１６ | AY20: 表題８ | AZ20: スーパーリ－グ 第１０回大会 Ｈブロック ２０１６ | BA20: 表題８ | BB20: スーパーリ－グ 第１０回大会 Ｈブロック ２０１６ | BC20: 表題８ | BD20: スーパーリ－グ 第１０回大会 Ｈブロック ２０１６ | BE20: 表題８ | BF20: スーパーリ－グ 第１０回大会 Ｈブロック ２０１６ | BG20: 表題８ | BH20: スーパーリ－グ 第１０回大会 Ｈブロック ２０１６ | BI20: 表題８ | BJ20: スーパーリ－グ 第１０回大会 Ｈブロック ２０１６ | BK20: 表題８ | BL20: スーパーリ－グ 第１０回大会 Ｈブロック ２０１６ | BM20: 表題８ | BN20: スーパーリ－グ 第１０回大会 Ｈブロック ２０１６ | BO20: 表題８ | BP20: スーパーリ－グ 第１０回大会 Ｈブロック ２０１６ | BQ20: 表題８ | BR20: スーパーリ－グ 第１０回大会 Ｈブロック ２０１６ | BS20: 表題８ | BT20: スーパーリ－グ 第１０回大会 Ｈブロック ２０１６ | BU20: 表題８ | BV20: スーパーリ－グ 第１０回大会 Ｈブロック ２０１６ | BW20: 表題８ | BX20: スーパーリ－グ 第１０回大会 Ｈブロック ２０１６ | BY20: 表題８ | BZ20: スーパーリ－グ 第１０回大会 Ｈブロック ２０１６ | CA20: 表題８ | CB20: スーパーリ－グ 第１０回大会 Ｈブロック ２０１６ | CC20: 表題８ | CD20: スーパーリ－グ 第１０回大会 Ｈブロック ２０１６ | CE20: 表題８ | CF20: スーパーリ－グ 第１０回大会 Ｈブロック ２０１６ | CG20: 表題８ | CH20: スーパーリ－グ 第１０回大会 Ｈブロック ２０１６ | CI20: 表題８ | CJ20: スーパーリ－グ 第１０回大会 Ｈブロック ２０１６ | CK20: 表題８ | CL20: スーパーリ－グ 第１０回大会 Ｈブロック ２０１６ | CM20: 表題８ | CN20: スーパーリ－グ 第１０回大会 Ｈブロック ２０１６ | CO20: 表題８ | CP20: スーパーリ－グ 第１０回大会 Ｈブロック ２０１６ | CQ20: 表題８ | CR20: スーパーリ－グ 第１０回大会 Ｈブロック ２０１６ | CS20: 表題８ | CT20: スーパーリ－グ 第１０回大会 Ｈブロック ２０１６ | CU20: 表題８ | CV20: スーパーリ－グ 第１０回大会 Ｈブロック ２０１６ | CW20: 表題８ | CX20: スーパーリ－グ 第１０回大会 Ｈブロック ２０１６ | CY20: 表題８ | CZ20: スーパーリ－グ 第１０回大会 Ｈブロック ２０１６ | DA20: 表題８ | DB20: スーパーリ－グ 第１０回大会 Ｈブロック ２０１６ | DC20: 表題８ | DD20: スーパーリ－グ 第１０回大会 Ｈブロック ２０１６ | DE20: 表題８ | DF20: スーパーリ－グ 第１０回大会 Ｈブロック ２０１６ | DG20: 表題８ | DH20: スーパーリ－グ 第１０回大会 Ｈブロック ２０１６ | DI20: 表題８ | DJ20: スーパーリ－グ 第１０回大会 Ｈブロック ２０１６ | DK20: 表題８ | DL20: スーパーリ－グ 第１０回大会 Ｈブロック ２０１６ | DM20: 表題８ | DN20: スーパーリ－グ 第１０回大会 Ｈブロック ２０１６ | DO20: 表題８ | DP20: スーパーリ－グ 第１０回大会 Ｈブロック ２０１６ | DQ20: 表題８ | DR20: スーパーリ－グ 第１０回大会 Ｈブロック ２０１６ | DS20: 表題８ | DT20: スーパーリ－グ 第１０回大会 Ｈブロック ２０１６ | DU20: 表題８ | DV20: スーパーリ－グ 第１０回大会 Ｈブロック ２０１６ | DW20: 表題８ | DX20: スーパーリ－グ 第１０回大会 Ｈブロック ２０１６ | DY20: 表題８ | DZ20: スーパーリ－グ 第１０回大会 Ｈブロック ２０１６ | EA20: 表題８ | EB20: スーパーリ－グ 第１０回大会 Ｈブロック ２０１６ | EC20: 表題８ | ED20: スーパーリ－グ 第１０回大会 Ｈブロック ２０１６ | EE20: 表題８ | EF20: スーパーリ－グ 第１０回大会 Ｈブロック ２０１６ | EG20: 表題８ | EH20: スーパーリ－グ 第１０回大会 Ｈブロック ２０１６ | EI20: 表題８ | EJ20: スーパーリ－グ 第１０回大会 Ｈブロック ２０１６ | EK20: 表題８ | EL20: スーパーリ－グ 第１０回大会 Ｈブロック ２０１６ | EM20: 表題８ | EN20: スーパーリ－グ 第１０回大会 Ｈブロック ２０１６ | EO20: 表題８ | EP20: スーパーリ－グ 第１０回大会 Ｈブロック ２０１６ | EQ20: 表題８ | ER20: スーパーリ－グ 第１０回大会 Ｈブロック ２０１６ | ES20: 表題８ | ET20: スーパーリ－グ 第１０回大会 Ｈブロック ２０１６ | EU20: 表題８ | EV20: スーパーリ－グ 第１０回大会 Ｈブロック ２０１６ | EW20: 表題８ | EX20: スーパーリ－グ 第１０回大会 Ｈブロック ２０１６ | EY20: 表題８ | EZ20: スーパーリ－グ 第１０回大会 Ｈブロック ２０１６ | FA20: 表題８ | FB20: スーパーリ－グ 第１０回大会 Ｈブロック ２０１６ | FC20: 表題８ | FD20: スーパーリ－グ 第１０回大会 Ｈブロック ２０１６ | FE20: 表題８ | FF20: スーパーリ－グ 第１０回大会 Ｈブロック ２０１６ | FG20: 表題８ | FH20: スーパーリ－グ 第１０回大会 Ｈブロック ２０１６ | FI20: 表題８ | FJ20: スーパーリ－グ 第１０回大会 Ｈブロック ２０１６ | FK20: 表題８ | FL20: スーパーリ－グ 第１０回大会 Ｈブロック ２０１６ | FM20: 表題８ | FN20: スーパーリ－グ 第１０回大会 Ｈブロック ２０１６ | FO20: 表題８ | FP20: スーパーリ－グ 第１０回大会 Ｈブロック ２０１６ | FQ20: 表題８ | FR20: スーパーリ－グ 第１０回大会 Ｈブロック ２０１６ | FS20: 表題８ | FT20: スーパーリ－グ 第１０回大会 Ｈブロック ２０１６ | FU20: 表題８ | FV20: スーパーリ－グ 第１０回大会 Ｈブロック ２０１６ | FW20: 表題８ | FX20: スーパーリ－グ 第１０回大会 Ｈブロック ２０１６ | FY20: 表題８ | FZ20: スーパーリ－グ 第１０回大会 Ｈブロック ２０１６ | GA20: 表題８ | GB20: スーパーリ－グ 第１０回大会 Ｈブロック ２０１６ | GC20: 表題８ | GD20: スーパーリ－グ 第１０回大会 Ｈブロック ２０１６ | GE20: 表題８ | GF20: スーパーリ－グ 第１０回大会 Ｈブロック ２０１６ | GG20: 表題８ | GH20: スーパーリ－グ 第１０回大会 Ｈブロック ２０１６ | GI20: 表題８ | GJ20: スーパーリ－グ 第１０回大会 Ｈブロック ２０１６ | GK20: 表題８ | GL20: スーパーリ－グ 第１０回大会 Ｈブロック ２０１６ | GM20: 表題８ | GN20: スーパーリ－グ 第１０回大会 Ｈブロック ２０１６ | GO20: 表題８ | GP20: スーパーリ－グ 第１０回大会 Ｈブロック ２０１６ | GQ20: 表題８ | GR20: スーパーリ－グ 第１０回大会 Ｈブロック ２０１６ | GS20: 表題８ | GT20: スーパーリ－グ 第１０回大会 Ｈブロック ２０１６ | GU20: 表題８ | GV20: スーパーリ－グ 第１０回大会 Ｈブロック ２０１６ | GW20: 表題８ | GX20: スーパーリ－グ 第１０回大会 Ｈブロック ２０１６ | GY20: 表題８ | GZ20: スーパーリ－グ 第１０回大会 Ｈブロック ２０１６ | HA20: 表題８ | HB20: スーパーリ－グ 第１０回大会 Ｈブロック ２０１６ | HC20: 表題８ | HD20: スーパーリ－グ 第１０回大会 Ｈブロック ２０１６ | HE20: 表題８ | HF20: スーパーリ－グ 第１０回大会 Ｈブロック ２０１６ | HG20: 表題８ | HH20: スーパーリ－グ 第１０回大会 Ｈブロック ２０１６ | HI20: 表題８ | HJ20: スーパーリ－グ 第１０回大会 Ｈブロック ２０１６ | HK20: 表題８ | HL20: スーパーリ－グ 第１０回大会 Ｈブロック ２０１６ | HM20: 表題８ | HN20: スーパーリ－グ 第１０回大会 Ｈブロック ２０１６ | HO20: 表題８ | HP20: スーパーリ－グ 第１０回大会 Ｈブロック ２０１６ | HQ20: 表題８ | HR20: スーパーリ－グ 第１０回大会 Ｈブロック ２０１６ | HS20: 表題８ | HT20: スーパーリ－グ 第１０回大会 Ｈブロック ２０１６ | HU20: 表題８ | HV20: スーパーリ－グ 第１０回大会 Ｈブロック ２０１６ | HW20: 表題８ | HX20: スーパーリ－グ 第１０回大会 Ｈブロック ２０１６ | HY20: 表題８ | HZ20: スーパーリ－グ 第１０回大会 Ｈブロック ２０１６ | IA20: 表題８ | IB20: スーパーリ－グ 第１０回大会 Ｈブロック ２０１６ | IC20: 表題８ | ID20: スーパーリ－グ 第１０回大会 Ｈブロック ２０１６ | IE20: 表題８ | IF20: スーパーリ－グ 第１０回大会 Ｈブロック ２０１６ | IG20: 表題８ | IH20: スーパーリ－グ 第１０回大会 Ｈブロック ２０１６ | II20: 表題８ | IJ20: スーパーリ－グ 第１０回大会 Ｈブロック ２０１６ | IK20: 表題８ | IL20: スーパーリ－グ 第１０回大会 Ｈブロック ２０１６ | IM20: 表題８ | IN20: スーパーリ－グ 第１０回大会 Ｈブロック ２０１６ | IO20: 表題８ | IP20: スーパーリ－グ 第１０回大会 Ｈブロック ２０１６ | IQ20: 表題８ | IR20: スーパーリ－グ 第１０回大会 Ｈブロック ２０１６ | IS20: 表題８ | IT20: スーパーリ－グ 第１０回大会 Ｈブロック ２０１６ | IU20: 表題８ | IV20: スーパーリ－グ 第１０回大会 Ｈブロック ２０１６
A22: 表題９ | B22: スーパーリ－グ 第１５回大会 Ｉブロック ２０２１ | C22: 表題９ | D22: スーパーリ－グ 第１０回大会 Ｉブロック ２０１６ | E22: 表題９ | F22: スーパーリ－グ 第１０回大会 Ｉブロック ２０１６ | G22: 表題９ | H22: スーパーリ－グ 第１０回大会 Ｉブロック ２０１６ | I22: 表題９ | J22: スーパーリ－グ 第１０回大会 Ｉブロック ２０１６ | K22: 表題９ | L22: スーパーリ－グ 第１０回大会 Ｉブロック ２０１６ | M22: 表題９ | N22: スーパーリ－グ 第１０回大会 Ｉブロック ２０１６ | O22: 表題９ | P22: スーパーリ－グ 第１０回大会 Ｉブロック ２０１６ | Q22: 表題９ | R22: スーパーリ－グ 第１０回大会 Ｉブロック ２０１６ | S22: 表題９ | T22: スーパーリ－グ 第１０回大会 Ｉブロック ２０１６ | U22: 表題９ | V22: スーパーリ－グ 第１０回大会 Ｉブロック ２０１６ | W22: 表題９ | X22: スーパーリ－グ 第１０回大会 Ｉブロック ２０１６ | Y22: 表題９ | Z22: スーパーリ－グ 第１０回大会 Ｉブロック ２０１６ | AA22: 表題９ | AB22: スーパーリ－グ 第１０回大会 Ｉブロック ２０１６ | AC22: 表題９ | AD22: スーパーリ－グ 第１０回大会 Ｉブロック ２０１６ | AE22: 表題９ | AF22: スーパーリ－グ 第１０回大会 Ｉブロック ２０１６ | AG22: 表題９ | AH22: スーパーリ－グ 第１０回大会 Ｉブロック ２０１６ | AI22: 表題９ | AJ22: スーパーリ－グ 第１０回大会 Ｉブロック ２０１６ | AK22: 表題９ | AL22: スーパーリ－グ 第１０回大会 Ｉブロック ２０１６ | AM22: 表題９ | AN22: スーパーリ－グ 第１０回大会 Ｉブロック ２０１６ | AO22: 表題９ | AP22: スーパーリ－グ 第１０回大会 Ｉブロック ２０１６ | AQ22: 表題９ | AR22: スーパーリ－グ 第１０回大会 Ｉブロック ２０１６ | AS22: 表題９ | AT22: スーパーリ－グ 第１０回大会 Ｉブロック ２０１６ | AU22: 表題９ | AV22: スーパーリ－グ 第１０回大会 Ｉブロック ２０１６ | AW22: 表題９ | AX22: スーパーリ－グ 第１０回大会 Ｉブロック ２０１６ | AY22: 表題９ | AZ22: スーパーリ－グ 第１０回大会 Ｉブロック ２０１６ | BA22: 表題９ | BB22: スーパーリ－グ 第１０回大会 Ｉブロック ２０１６ | BC22: 表題９ | BD22: スーパーリ－グ 第１０回大会 Ｉブロック ２０１６ | BE22: 表題９ | BF22: スーパーリ－グ 第１０回大会 Ｉブロック ２０１６ | BG22: 表題９ | BH22: スーパーリ－グ 第１０回大会 Ｉブロック ２０１６ | BI22: 表題９ | BJ22: スーパーリ－グ 第１０回大会 Ｉブロック ２０１６ | BK22: 表題９ | BL22: スーパーリ－グ 第１０回大会 Ｉブロック ２０１６ | BM22: 表題９ | BN22: スーパーリ－グ 第１０回大会 Ｉブロック ２０１６ | BO22: 表題９ | BP22: スーパーリ－グ 第１０回大会 Ｉブロック ２０１６ | BQ22: 表題９ | BR22: スーパーリ－グ 第１０回大会 Ｉブロック ２０１６ | BS22: 表題９ | BT22: スーパーリ－グ 第１０回大会 Ｉブロック ２０１６ | BU22: 表題９ | BV22: スーパーリ－グ 第１０回大会 Ｉブロック ２０１６ | BW22: 表題９ | BX22: スーパーリ－グ 第１０回大会 Ｉブロック ２０１６ | BY22: 表題９ | BZ22: スーパーリ－グ 第１０回大会 Ｉブロック ２０１６ | CA22: 表題９ | CB22: スーパーリ－グ 第１０回大会 Ｉブロック ２０１６ | CC22: 表題９ | CD22: スーパーリ－グ 第１０回大会 Ｉブロック ２０１６ | CE22: 表題９ | CF22: スーパーリ－グ 第１０回大会 Ｉブロック ２０１６ | CG22: 表題９ | CH22: スーパーリ－グ 第１０回大会 Ｉブロック ２０１６ | CI22: 表題９ | CJ22: スーパーリ－グ 第１０回大会 Ｉブロック ２０１６ | CK22: 表題９ | CL22: スーパーリ－グ 第１０回大会 Ｉブロック ２０１６ | CM22: 表題９ | CN22: スーパーリ－グ 第１０回大会 Ｉブロック ２０１６ | CO22: 表題９ | CP22: スーパーリ－グ 第１０回大会 Ｉブロック ２０１６ | CQ22: 表題９ | CR22: スーパーリ－グ 第１０回大会 Ｉブロック ２０１６ | CS22: 表題９ | CT22: スーパーリ－グ 第１０回大会 Ｉブロック ２０１６ | CU22: 表題９ | CV22: スーパーリ－グ 第１０回大会 Ｉブロック ２０１６ | CW22: 表題９ | CX22: スーパーリ－グ 第１０回大会 Ｉブロック ２０１６ | CY22: 表題９ | CZ22: スーパーリ－グ 第１０回大会 Ｉブロック ２０１６ | DA22: 表題９ | DB22: スーパーリ－グ 第１０回大会 Ｉブロック ２０１６ | DC22: 表題９ | DD22: スーパーリ－グ 第１０回大会 Ｉブロック ２０１６ | DE22: 表題９ | DF22: スーパーリ－グ 第１０回大会 Ｉブロック ２０１６ | DG22: 表題９ | DH22: スーパーリ－グ 第１０回大会 Ｉブロック ２０１６ | DI22: 表題９ | DJ22: スーパーリ－グ 第１０回大会 Ｉブロック ２０１６ | DK22: 表題９ | DL22: スーパーリ－グ 第１０回大会 Ｉブロック ２０１６ | DM22: 表題９ | DN22: スーパーリ－グ 第１０回大会 Ｉブロック ２０１６ | DO22: 表題９ | DP22: スーパーリ－グ 第１０回大会 Ｉブロック ２０１６ | DQ22: 表題９ | DR22: スーパーリ－グ 第１０回大会 Ｉブロック ２０１６ | DS22: 表題９ | DT22: スーパーリ－グ 第１０回大会 Ｉブロック ２０１６ | DU22: 表題９ | DV22: スーパーリ－グ 第１０回大会 Ｉブロック ２０１６ | DW22: 表題９ | DX22: スーパーリ－グ 第１０回大会 Ｉブロック ２０１６ | DY22: 表題９ | DZ22: スーパーリ－グ 第１０回大会 Ｉブロック ２０１６ | EA22: 表題９ | EB22: スーパーリ－グ 第１０回大会 Ｉブロック ２０１６ | EC22: 表題９ | ED22: スーパーリ－グ 第１０回大会 Ｉブロック ２０１６ | EE22: 表題９ | EF22: スーパーリ－グ 第１０回大会 Ｉブロック ２０１６ | EG22: 表題９ | EH22: スーパーリ－グ 第１０回大会 Ｉブロック ２０１６ | EI22: 表題９ | EJ22: スーパーリ－グ 第１０回大会 Ｉブロック ２０１６ | EK22: 表題９ | EL22: スーパーリ－グ 第１０回大会 Ｉブロック ２０１６ | EM22: 表題９ | EN22: スーパーリ－グ 第１０回大会 Ｉブロック ２０１６ | EO22: 表題９ | EP22: スーパーリ－グ 第１０回大会 Ｉブロック ２０１６ | EQ22: 表題９ | ER22: スーパーリ－グ 第１０回大会 Ｉブロック ２０１６ | ES22: 表題９ | ET22: スーパーリ－グ 第１０回大会 Ｉブロック ２０１６ | EU22: 表題９ | EV22: スーパーリ－グ 第１０回大会 Ｉブロック ２０１６ | EW22: 表題９ | EX22: スーパーリ－グ 第１０回大会 Ｉブロック ２０１６ | EY22: 表題９ | EZ22: スーパーリ－グ 第１０回大会 Ｉブロック ２０１６ | FA22: 表題９ | FB22: スーパーリ－グ 第１０回大会 Ｉブロック ２０１６ | FC22: 表題９ | FD22: スーパーリ－グ 第１０回大会 Ｉブロック ２０１６ | FE22: 表題９ | FF22: スーパーリ－グ 第１０回大会 Ｉブロック ２０１６ | FG22: 表題９ | FH22: スーパーリ－グ 第１０回大会 Ｉブロック ２０１６ | FI22: 表題９ | FJ22: スーパーリ－グ 第１０回大会 Ｉブロック ２０１６ | FK22: 表題９ | FL22: スーパーリ－グ 第１０回大会 Ｉブロック ２０１６ | FM22: 表題９ | FN22: スーパーリ－グ 第１０回大会 Ｉブロック ２０１６ | FO22: 表題９ | FP22: スーパーリ－グ 第１０回大会 Ｉブロック ２０１６ | FQ22: 表題９ | FR22: スーパーリ－グ 第１０回大会 Ｉブロック ２０１６ | FS22: 表題９ | FT22: スーパーリ－グ 第１０回大会 Ｉブロック ２０１６ | FU22: 表題９ | FV22: スーパーリ－グ 第１０回大会 Ｉブロック ２０１６ | FW22: 表題９ | FX22: スーパーリ－グ 第１０回大会 Ｉブロック ２０１６ | FY22: 表題９ | FZ22: スーパーリ－グ 第１０回大会 Ｉブロック ２０１６ | GA22: 表題９ | GB22: スーパーリ－グ 第１０回大会 Ｉブロック ２０１６ | GC22: 表題９ | GD22: スーパーリ－グ 第１０回大会 Ｉブロック ２０１６ | GE22: 表題９ | GF22: スーパーリ－グ 第１０回大会 Ｉブロック ２０１６ | GG22: 表題９ | GH22: スーパーリ－グ 第１０回大会 Ｉブロック ２０１６ | GI22: 表題９ | GJ22: スーパーリ－グ 第１０回大会 Ｉブロック ２０１６ | GK22: 表題９ | GL22: スーパーリ－グ 第１０回大会 Ｉブロック ２０１６ | GM22: 表題９ | GN22: スーパーリ－グ 第１０回大会 Ｉブロック ２０１６ | GO22: 表題９ | GP22: スーパーリ－グ 第１０回大会 Ｉブロック ２０１６ | GQ22: 表題９ | GR22: スーパーリ－グ 第１０回大会 Ｉブロック ２０１６ | GS22: 表題９ | GT22: スーパーリ－グ 第１０回大会 Ｉブロック ２０１６ | GU22: 表題９ | GV22: スーパーリ－グ 第１０回大会 Ｉブロック ２０１６ | GW22: 表題９ | GX22: スーパーリ－グ 第１０回大会 Ｉブロック ２０１６ | GY22: 表題９ | GZ22: スーパーリ－グ 第１０回大会 Ｉブロック ２０１６ | HA22: 表題９ | HB22: スーパーリ－グ 第１０回大会 Ｉブロック ２０１６ | HC22: 表題９ | HD22: スーパーリ－グ 第１０回大会 Ｉブロック ２０１６ | HE22: 表題９ | HF22: スーパーリ－グ 第１０回大会 Ｉブロック ２０１６ | HG22: 表題９ | HH22: スーパーリ－グ 第１０回大会 Ｉブロック ２０１６ | HI22: 表題９ | HJ22: スーパーリ－グ 第１０回大会 Ｉブロック ２０１６ | HK22: 表題９ | HL22: スーパーリ－グ 第１０回大会 Ｉブロック ２０１６ | HM22: 表題９ | HN22: スーパーリ－グ 第１０回大会 Ｉブロック ２０１６ | HO22: 表題９ | HP22: スーパーリ－グ 第１０回大会 Ｉブロック ２０１６ | HQ22: 表題９ | HR22: スーパーリ－グ 第１０回大会 Ｉブロック ２０１６ | HS22: 表題９ | HT22: スーパーリ－グ 第１０回大会 Ｉブロック ２０１６ | HU22: 表題９ | HV22: スーパーリ－グ 第１０回大会 Ｉブロック ２０１６ | HW22: 表題９ | HX22: スーパーリ－グ 第１０回大会 Ｉブロック ２０１６ | HY22: 表題９ | HZ22: スーパーリ－グ 第１０回大会 Ｉブロック ２０１６ | IA22: 表題９ | IB22: スーパーリ－グ 第１０回大会 Ｉブロック ２０１６ | IC22: 表題９ | ID22: スーパーリ－グ 第１０回大会 Ｉブロック ２０１６ | IE22: 表題９ | IF22: スーパーリ－グ 第１０回大会 Ｉブロック ２０１６ | IG22: 表題９ | IH22: スーパーリ－グ 第１０回大会 Ｉブロック ２０１６ | II22: 表題９ | IJ22: スーパーリ－グ 第１０回大会 Ｉブロック ２０１６ | IK22: 表題９ | IL22: スーパーリ－グ 第１０回大会 Ｉブロック ２０１６ | IM22: 表題９ | IN22: スーパーリ－グ 第１０回大会 Ｉブロック ２０１６ | IO22: 表題９ | IP22: スーパーリ－グ 第１０回大会 Ｉブロック ２０１６ | IQ22: 表題９ | IR22: スーパーリ－グ 第１０回大会 Ｉブロック ２０１６ | IS22: 表題９ | IT22: スーパーリ－グ 第１０回大会 Ｉブロック ２０１６ | IU22: 表題９ | IV22: スーパーリ－グ 第１０回大会 Ｉブロック ２０１６
A24: 表題１０ | B24: スーパーリ－グ 第１５回大会 Ｊブロック ２０２１ | C24: 表題１０ | D24: スーパーリ－グ 第１０回大会 Ｊブロック ２０１６ | E24: 表題１０ | F24: スーパーリ－グ 第１０回大会 Ｊブロック ２０１６ | G24: 表題１０ | H24: スーパーリ－グ 第１０回大会 Ｊブロック ２０１６ | I24: 表題１０ | J24: スーパーリ－グ 第１０回大会 Ｊブロック ２０１６ | K24: 表題１０ | L24: スーパーリ－グ 第１０回大会 Ｊブロック ２０１６ | M24: 表題１０ | N24: スーパーリ－グ 第１０回大会 Ｊブロック ２０１６ | O24: 表題１０ | P24: スーパーリ－グ 第１０回大会 Ｊブロック ２０１６ | Q24: 表題１０ | R24: スーパーリ－グ 第１０回大会 Ｊブロック ２０１６ | S24: 表題１０ | T24: スーパーリ－グ 第１０回大会 Ｊブロック ２０１６ | U24: 表題１０ | V24: スーパーリ－グ 第１０回大会 Ｊブロック ２０１６ | W24: 表題１０ | X24: スーパーリ－グ 第１０回大会 Ｊブロック ２０１６ | Y24: 表題１０ | Z24: スーパーリ－グ 第１０回大会 Ｊブロック ２０１６ | AA24: 表題１０ | AB24: スーパーリ－グ 第１０回大会 Ｊブロック ２０１６ | AC24: 表題１０ | AD24: スーパーリ－グ 第１０回大会 Ｊブロック ２０１６ | AE24: 表題１０ | AF24: スーパーリ－グ 第１０回大会 Ｊブロック ２０１６ | AG24: 表題１０ | AH24: スーパーリ－グ 第１０回大会 Ｊブロック ２０１６ | AI24: 表題１０ | AJ24: スーパーリ－グ 第１０回大会 Ｊブロック ２０１６ | AK24: 表題１０ | AL24: スーパーリ－グ 第１０回大会 Ｊブロック ２０１６ | AM24: 表題１０ | AN24: スーパーリ－グ 第１０回大会 Ｊブロック ２０１６ | AO24: 表題１０ | AP24: スーパーリ－グ 第１０回大会 Ｊブロック ２０１６ | AQ24: 表題１０ | AR24: スーパーリ－グ 第１０回大会 Ｊブロック ２０１６ | AS24: 表題１０ | AT24: スーパーリ－グ 第１０回大会 Ｊブロック ２０１６ | AU24: 表題１０ | AV24: スーパーリ－グ 第１０回大会 Ｊブロック ２０１６ | AW24: 表題１０ | AX24: スーパーリ－グ 第１０回大会 Ｊブロック ２０１６ | AY24: 表題１０ | AZ24: スーパーリ－グ 第１０回大会 Ｊブロック ２０１６ | BA24: 表題１０ | BB24: スーパーリ－グ 第１０回大会 Ｊブロック ２０１６ | BC24: 表題１０ | BD24: スーパーリ－グ 第１０回大会 Ｊブロック ２０１６ | BE24: 表題１０ | BF24: スーパーリ－グ 第１０回大会 Ｊブロック ２０１６ | BG24: 表題１０ | BH24: スーパーリ－グ 第１０回大会 Ｊブロック ２０１６ | BI24: 表題１０ | BJ24: スーパーリ－グ 第１０回大会 Ｊブロック ２０１６ | BK24: 表題１０ | BL24: スーパーリ－グ 第１０回大会 Ｊブロック ２０１６ | BM24: 表題１０ | BN24: スーパーリ－グ 第１０回大会 Ｊブロック ２０１６ | BO24: 表題１０ | BP24: スーパーリ－グ 第１０回大会 Ｊブロック ２０１６ | BQ24: 表題１０ | BR24: スーパーリ－グ 第１０回大会 Ｊブロック ２０１６ | BS24: 表題１０ | BT24: スーパーリ－グ 第１０回大会 Ｊブロック ２０１６ | BU24: 表題１０ | BV24: スーパーリ－グ 第１０回大会 Ｊブロック ２０１６ | BW24: 表題１０ | BX24: スーパーリ－グ 第１０回大会 Ｊブロック ２０１６ | BY24: 表題１０ | BZ24: スーパーリ－グ 第１０回大会 Ｊブロック ２０１６ | CA24: 表題１０ | CB24: スーパーリ－グ 第１０回大会 Ｊブロック ２０１６ | CC24: 表題１０ | CD24: スーパーリ－グ 第１０回大会 Ｊブロック ２０１６ | CE24: 表題１０ | CF24: スーパーリ－グ 第１０回大会 Ｊブロック ２０１６ | CG24: 表題１０ | CH24: スーパーリ－グ 第１０回大会 Ｊブロック ２０１６ | CI24: 表題１０ | CJ24: スーパーリ－グ 第１０回大会 Ｊブロック ２０１６ | CK24: 表題１０ | CL24: スーパーリ－グ 第１０回大会 Ｊブロック ２０１６ | CM24: 表題１０ | CN24: スーパーリ－グ 第１０回大会 Ｊブロック ２０１６ | CO24: 表題１０ | CP24: スーパーリ－グ 第１０回大会 Ｊブロック ２０１６ | CQ24: 表題１０ | CR24: スーパーリ－グ 第１０回大会 Ｊブロック ２０１６ | CS24: 表題１０ | CT24: スーパーリ－グ 第１０回大会 Ｊブロック ２０１６ | CU24: 表題１０ | CV24: スーパーリ－グ 第１０回大会 Ｊブロック ２０１６ | CW24: 表題１０ | CX24: スーパーリ－グ 第１０回大会 Ｊブロック ２０１６ | CY24: 表題１０ | CZ24: スーパーリ－グ 第１０回大会 Ｊブロック ２０１６ | DA24: 表題１０ | DB24: スーパーリ－グ 第１０回大会 Ｊブロック ２０１６ | DC24: 表題１０ | DD24: スーパーリ－グ 第１０回大会 Ｊブロック ２０１６ | DE24: 表題１０ | DF24: スーパーリ－グ 第１０回大会 Ｊブロック ２０１６ | DG24: 表題１０ | DH24: スーパーリ－グ 第１０回大会 Ｊブロック ２０１６ | DI24: 表題１０ | DJ24: スーパーリ－グ 第１０回大会 Ｊブロック ２０１６ | DK24: 表題１０ | DL24: スーパーリ－グ 第１０回大会 Ｊブロック ２０１６ | DM24: 表題１０ | DN24: スーパーリ－グ 第１０回大会 Ｊブロック ２０１６ | DO24: 表題１０ | DP24: スーパーリ－グ 第１０回大会 Ｊブロック ２０１６ | DQ24: 表題１０ | DR24: スーパーリ－グ 第１０回大会 Ｊブロック ２０１６ | DS24: 表題１０ | DT24: スーパーリ－グ 第１０回大会 Ｊブロック ２０１６ | DU24: 表題１０ | DV24: スーパーリ－グ 第１０回大会 Ｊブロック ２０１６ | DW24: 表題１０ | DX24: スーパーリ－グ 第１０回大会 Ｊブロック ２０１６ | DY24: 表題１０ | DZ24: スーパーリ－グ 第１０回大会 Ｊブロック ２０１６ | EA24: 表題１０ | EB24: スーパーリ－グ 第１０回大会 Ｊブロック ２０１６ | EC24: 表題１０ | ED24: スーパーリ－グ 第１０回大会 Ｊブロック ２０１６ | EE24: 表題１０ | EF24: スーパーリ－グ 第１０回大会 Ｊブロック ２０１６ | EG24: 表題１０ | EH24: スーパーリ－グ 第１０回大会 Ｊブロック ２０１６ | EI24: 表題１０ | EJ24: スーパーリ－グ 第１０回大会 Ｊブロック ２０１６ | EK24: 表題１０ | EL24: スーパーリ－グ 第１０回大会 Ｊブロック ２０１６ | EM24: 表題１０ | EN24: スーパーリ－グ 第１０回大会 Ｊブロック ２０１６ | EO24: 表題１０ | EP24: スーパーリ－グ 第１０回大会 Ｊブロック ２０１６ | EQ24: 表題１０ | ER24: スーパーリ－グ 第１０回大会 Ｊブロック ２０１６ | ES24: 表題１０ | ET24: スーパーリ－グ 第１０回大会 Ｊブロック ２０１６ | EU24: 表題１０ | EV24: スーパーリ－グ 第１０回大会 Ｊブロック ２０１６ | EW24: 表題１０ | EX24: スーパーリ－グ 第１０回大会 Ｊブロック ２０１６ | EY24: 表題１０ | EZ24: スーパーリ－グ 第１０回大会 Ｊブロック ２０１６ | FA24: 表題１０ | FB24: スーパーリ－グ 第１０回大会 Ｊブロック ２０１６ | FC24: 表題１０ | FD24: スーパーリ－グ 第１０回大会 Ｊブロック ２０１６ | FE24: 表題１０ | FF24: スーパーリ－グ 第１０回大会 Ｊブロック ２０１６ | FG24: 表題１０ | FH24: スーパーリ－グ 第１０回大会 Ｊブロック ２０１６ | FI24: 表題１０ | FJ24: スーパーリ－グ 第１０回大会 Ｊブロック ２０１６ | FK24: 表題１０ | FL24: スーパーリ－グ 第１０回大会 Ｊブロック ２０１６ | FM24: 表題１０ | FN24: スーパーリ－グ 第１０回大会 Ｊブロック ２０１６ | FO24: 表題１０ | FP24: スーパーリ－グ 第１０回大会 Ｊブロック ２０１６ | FQ24: 表題１０ | FR24: スーパーリ－グ 第１０回大会 Ｊブロック ２０１６ | FS24: 表題１０ | FT24: スーパーリ－グ 第１０回大会 Ｊブロック ２０１６ | FU24: 表題１０ | FV24: スーパーリ－グ 第１０回大会 Ｊブロック ２０１６ | FW24: 表題１０ | FX24: スーパーリ－グ 第１０回大会 Ｊブロック ２０１６ | FY24: 表題１０ | FZ24: スーパーリ－グ 第１０回大会 Ｊブロック ２０１６ | GA24: 表題１０ | GB24: スーパーリ－グ 第１０回大会 Ｊブロック ２０１６ | GC24: 表題１０ | GD24: スーパーリ－グ 第１０回大会 Ｊブロック ２０１６ | GE24: 表題１０ | GF24: スーパーリ－グ 第１０回大会 Ｊブロック ２０１６ | GG24: 表題１０ | GH24: スーパーリ－グ 第１０回大会 Ｊブロック ２０１６ | GI24: 表題１０ | GJ24: スーパーリ－グ 第１０回大会 Ｊブロック ２０１６ | GK24: 表題１０ | GL24: スーパーリ－グ 第１０回大会 Ｊブロック ２０１６ | GM24: 表題１０ | GN24: スーパーリ－グ 第１０回大会 Ｊブロック ２０１６ | GO24: 表題１０ | GP24: スーパーリ－グ 第１０回大会 Ｊブロック ２０１６ | GQ24: 表題１０ | GR24: スーパーリ－グ 第１０回大会 Ｊブロック ２０１６ | GS24: 表題１０ | GT24: スーパーリ－グ 第１０回大会 Ｊブロック ２０１６ | GU24: 表題１０ | GV24: スーパーリ－グ 第１０回大会 Ｊブロック ２０１６ | GW24: 表題１０ | GX24: スーパーリ－グ 第１０回大会 Ｊブロック ２０１６ | GY24: 表題１０ | GZ24: スーパーリ－グ 第１０回大会 Ｊブロック ２０１６ | HA24: 表題１０ | HB24: スーパーリ－グ 第１０回大会 Ｊブロック ２０１６ | HC24: 表題１０ | HD24: スーパーリ－グ 第１０回大会 Ｊブロック ２０１６ | HE24: 表題１０ | HF24: スーパーリ－グ 第１０回大会 Ｊブロック ２０１６ | HG24: 表題１０ | HH24: スーパーリ－グ 第１０回大会 Ｊブロック ２０１６ | HI24: 表題１０ | HJ24: スーパーリ－グ 第１０回大会 Ｊブロック ２０１６ | HK24: 表題１０ | HL24: スーパーリ－グ 第１０回大会 Ｊブロック ２０１６ | HM24: 表題１０ | HN24: スーパーリ－グ 第１０回大会 Ｊブロック ２０１６ | HO24: 表題１０ | HP24: スーパーリ－グ 第１０回大会 Ｊブロック ２０１６ | HQ24: 表題１０ | HR24: スーパーリ－グ 第１０回大会 Ｊブロック ２０１６ | HS24: 表題１０ | HT24: スーパーリ－グ 第１０回大会 Ｊブロック ２０１６ | HU24: 表題１０ | HV24: スーパーリ－グ 第１０回大会 Ｊブロック ２０１６ | HW24: 表題１０ | HX24: スーパーリ－グ 第１０回大会 Ｊブロック ２０１６ | HY24: 表題１０ | HZ24: スーパーリ－グ 第１０回大会 Ｊブロック ２０１６ | IA24: 表題１０ | IB24: スーパーリ－グ 第１０回大会 Ｊブロック ２０１６ | IC24: 表題１０ | ID24: スーパーリ－グ 第１０回大会 Ｊブロック ２０１６ | IE24: 表題１０ | IF24: スーパーリ－グ 第１０回大会 Ｊブロック ２０１６ | IG24: 表題１０ | IH24: スーパーリ－グ 第１０回大会 Ｊブロック ２０１６ | II24: 表題１０ | IJ24: スーパーリ－グ 第１０回大会 Ｊブロック ２０１６ | IK24: 表題１０ | IL24: スーパーリ－グ 第１０回大会 Ｊブロック ２０１６ | IM24: 表題１０ | IN24: スーパーリ－グ 第１０回大会 Ｊブロック ２０１６ | IO24: 表題１０ | IP24: スーパーリ－グ 第１０回大会 Ｊブロック ２０１６ | IQ24: 表題１０ | IR24: スーパーリ－グ 第１０回大会 Ｊブロック ２０１６ | IS24: 表題１０ | IT24: スーパーリ－グ 第１０回大会 Ｊブロック ２０１６ | IU24: 表題１０ | IV24: スーパーリ－グ 第１０回大会 Ｊブロック ２０１６
A26: 表題１１ | B26: スーパーリ－グ 第１５回大会 Ｋブロック ２０２１ | C26: 表題１１ | D26: スーパーリ－グ 第１０回大会 Ｋブロック ２０１６ | E26: 表題１１ | F26: スーパーリ－グ 第１０回大会 Ｋブロック ２０１６ | G26: 表題１１ | H26: スーパーリ－グ 第１０回大会 Ｋブロック ２０１６ | I26: 表題１１ | J26: スーパーリ－グ 第１０回大会 Ｋブロック ２０１６ | K26: 表題１１ | L26: スーパーリ－グ 第１０回大会 Ｋブロック ２０１６ | M26: 表題１１ | N26: スーパーリ－グ 第１０回大会 Ｋブロック ２０１６ | O26: 表題１１ | P26: スーパーリ－グ 第１０回大会 Ｋブロック ２０１６ | Q26: 表題１１ | R26: スーパーリ－グ 第１０回大会 Ｋブロック ２０１６ | S26: 表題１１ | T26: スーパーリ－グ 第１０回大会 Ｋブロック ２０１６ | U26: 表題１１ | V26: スーパーリ－グ 第１０回大会 Ｋブロック ２０１６ | W26: 表題１１ | X26: スーパーリ－グ 第１０回大会 Ｋブロック ２０１６ | Y26: 表題１１ | Z26: スーパーリ－グ 第１０回大会 Ｋブロック ２０１６ | AA26: 表題１１ | AB26: スーパーリ－グ 第１０回大会 Ｋブロック ２０１６ | AC26: 表題１１ | AD26: スーパーリ－グ 第１０回大会 Ｋブロック ２０１６ | AE26: 表題１１ | AF26: スーパーリ－グ 第１０回大会 Ｋブロック ２０１６ | AG26: 表題１１ | AH26: スーパーリ－グ 第１０回大会 Ｋブロック ２０１６ | AI26: 表題１１ | AJ26: スーパーリ－グ 第１０回大会 Ｋブロック ２０１６ | AK26: 表題１１ | AL26: スーパーリ－グ 第１０回大会 Ｋブロック ２０１６ | AM26: 表題１１ | AN26: スーパーリ－グ 第１０回大会 Ｋブロック ２０１６ | AO26: 表題１１ | AP26: スーパーリ－グ 第１０回大会 Ｋブロック ２０１６ | AQ26: 表題１１ | AR26: スーパーリ－グ 第１０回大会 Ｋブロック ２０１６ | AS26: 表題１１ | AT26: スーパーリ－グ 第１０回大会 Ｋブロック ２０１６ | AU26: 表題１１ | AV26: スーパーリ－グ 第１０回大会 Ｋブロック ２０１６ | AW26: 表題１１ | AX26: スーパーリ－グ 第１０回大会 Ｋブロック ２０１６ | AY26: 表題１１ | AZ26: スーパーリ－グ 第１０回大会 Ｋブロック ２０１６ | BA26: 表題１１ | BB26: スーパーリ－グ 第１０回大会 Ｋブロック ２０１６ | BC26: 表題１１ | BD26: スーパーリ－グ 第１０回大会 Ｋブロック ２０１６ | BE26: 表題１１ | BF26: スーパーリ－グ 第１０回大会 Ｋブロック ２０１６ | BG26: 表題１１ | BH26: スーパーリ－グ 第１０回大会 Ｋブロック ２０１６ | BI26: 表題１１ | BJ26: スーパーリ－グ 第１０回大会 Ｋブロック ２０１６ | BK26: 表題１１ | BL26: スーパーリ－グ 第１０回大会 Ｋブロック ２０１６ | BM26: 表題１１ | BN26: スーパーリ－グ 第１０回大会 Ｋブロック ２０１６ | BO26: 表題１１ | BP26: スーパーリ－グ 第１０回大会 Ｋブロック ２０１６ | BQ26: 表題１１ | BR26: スーパーリ－グ 第１０回大会 Ｋブロック ２０１６ | BS26: 表題１１ | BT26: スーパーリ－グ 第１０回大会 Ｋブロック ２０１６ | BU26: 表題１１ | BV26: スーパーリ－グ 第１０回大会 Ｋブロック ２０１６ | BW26: 表題１１ | BX26: スーパーリ－グ 第１０回大会 Ｋブロック ２０１６ | BY26: 表題１１ | BZ26: スーパーリ－グ 第１０回大会 Ｋブロック ２０１６ | CA26: 表題１１ | CB26: スーパーリ－グ 第１０回大会 Ｋブロック ２０１６ | CC26: 表題１１ | CD26: スーパーリ－グ 第１０回大会 Ｋブロック ２０１６ | CE26: 表題１１ | CF26: スーパーリ－グ 第１０回大会 Ｋブロック ２０１６ | CG26: 表題１１ | CH26: スーパーリ－グ 第１０回大会 Ｋブロック ２０１６ | CI26: 表題１１ | CJ26: スーパーリ－グ 第１０回大会 Ｋブロック ２０１６ | CK26: 表題１１ | CL26: スーパーリ－グ 第１０回大会 Ｋブロック ２０１６ | CM26: 表題１１ | CN26: スーパーリ－グ 第１０回大会 Ｋブロック ２０１６ | CO26: 表題１１ | CP26: スーパーリ－グ 第１０回大会 Ｋブロック ２０１６ | CQ26: 表題１１ | CR26: スーパーリ－グ 第１０回大会 Ｋブロック ２０１６ | CS26: 表題１１ | CT26: スーパーリ－グ 第１０回大会 Ｋブロック ２０１６ | CU26: 表題１１ | CV26: スーパーリ－グ 第１０回大会 Ｋブロック ２０１６ | CW26: 表題１１ | CX26: スーパーリ－グ 第１０回大会 Ｋブロック ２０１６ | CY26: 表題１１ | CZ26: スーパーリ－グ 第１０回大会 Ｋブロック ２０１６ | DA26: 表題１１ | DB26: スーパーリ－グ 第１０回大会 Ｋブロック ２０１６ | DC26: 表題１１ | DD26: スーパーリ－グ 第１０回大会 Ｋブロック ２０１６ | DE26: 表題１１ | DF26: スーパーリ－グ 第１０回大会 Ｋブロック ２０１６ | DG26: 表題１１ | DH26: スーパーリ－グ 第１０回大会 Ｋブロック ２０１６ | DI26: 表題１１ | DJ26: スーパーリ－グ 第１０回大会 Ｋブロック ２０１６ | DK26: 表題１１ | DL26: スーパーリ－グ 第１０回大会 Ｋブロック ２０１６ | DM26: 表題１１ | DN26: スーパーリ－グ 第１０回大会 Ｋブロック ２０１６ | DO26: 表題１１ | DP26: スーパーリ－グ 第１０回大会 Ｋブロック ２０１６ | DQ26: 表題１１ | DR26: スーパーリ－グ 第１０回大会 Ｋブロック ２０１６ | DS26: 表題１１ | DT26: スーパーリ－グ 第１０回大会 Ｋブロック ２０１６ | DU26: 表題１１ | DV26: スーパーリ－グ 第１０回大会 Ｋブロック ２０１６ | DW26: 表題１１ | DX26: スーパーリ－グ 第１０回大会 Ｋブロック ２０１６ | DY26: 表題１１ | DZ26: スーパーリ－グ 第１０回大会 Ｋブロック ２０１６ | EA26: 表題１１ | EB26: スーパーリ－グ 第１０回大会 Ｋブロック ２０１６ | EC26: 表題１１ | ED26: スーパーリ－グ 第１０回大会 Ｋブロック ２０１６ | EE26: 表題１１ | EF26: スーパーリ－グ 第１０回大会 Ｋブロック ２０１６ | EG26: 表題１１ | EH26: スーパーリ－グ 第１０回大会 Ｋブロック ２０１６ | EI26: 表題１１ | EJ26: スーパーリ－グ 第１０回大会 Ｋブロック ２０１６ | EK26: 表題１１ | EL26: スーパーリ－グ 第１０回大会 Ｋブロック ２０１６ | EM26: 表題１１ | EN26: スーパーリ－グ 第１０回大会 Ｋブロック ２０１６ | EO26: 表題１１ | EP26: スーパーリ－グ 第１０回大会 Ｋブロック ２０１６ | EQ26: 表題１１ | ER26: スーパーリ－グ 第１０回大会 Ｋブロック ２０１６ | ES26: 表題１１ | ET26: スーパーリ－グ 第１０回大会 Ｋブロック ２０１６ | EU26: 表題１１ | EV26: スーパーリ－グ 第１０回大会 Ｋブロック ２０１６ | EW26: 表題１１ | EX26: スーパーリ－グ 第１０回大会 Ｋブロック ２０１６ | EY26: 表題１１ | EZ26: スーパーリ－グ 第１０回大会 Ｋブロック ２０１６ | FA26: 表題１１ | FB26: スーパーリ－グ 第１０回大会 Ｋブロック ２０１６ | FC26: 表題１１ | FD26: スーパーリ－グ 第１０回大会 Ｋブロック ２０１６ | FE26: 表題１１ | FF26: スーパーリ－グ 第１０回大会 Ｋブロック ２０１６ | FG26: 表題１１ | FH26: スーパーリ－グ 第１０回大会 Ｋブロック ２０１６ | FI26: 表題１１ | FJ26: スーパーリ－グ 第１０回大会 Ｋブロック ２０１６ | FK26: 表題１１ | FL26: スーパーリ－グ 第１０回大会 Ｋブロック ２０１６ | FM26: 表題１１ | FN26: スーパーリ－グ 第１０回大会 Ｋブロック ２０１６ | FO26: 表題１１ | FP26: スーパーリ－グ 第１０回大会 Ｋブロック ２０１６ | FQ26: 表題１１ | FR26: スーパーリ－グ 第１０回大会 Ｋブロック ２０１６ | FS26: 表題１１ | FT26: スーパーリ－グ 第１０回大会 Ｋブロック ２０１６ | FU26: 表題１１ | FV26: スーパーリ－グ 第１０回大会 Ｋブロック ２０１６ | FW26: 表題１１ | FX26: スーパーリ－グ 第１０回大会 Ｋブロック ２０１６ | FY26: 表題１１ | FZ26: スーパーリ－グ 第１０回大会 Ｋブロック ２０１６ | GA26: 表題１１ | GB26: スーパーリ－グ 第１０回大会 Ｋブロック ２０１６ | GC26: 表題１１ | GD26: スーパーリ－グ 第１０回大会 Ｋブロック ２０１６ | GE26: 表題１１ | GF26: スーパーリ－グ 第１０回大会 Ｋブロック ２０１６ | GG26: 表題１１ | GH26: スーパーリ－グ 第１０回大会 Ｋブロック ２０１６ | GI26: 表題１１ | GJ26: スーパーリ－グ 第１０回大会 Ｋブロック ２０１６ | GK26: 表題１１ | GL26: スーパーリ－グ 第１０回大会 Ｋブロック ２０１６ | GM26: 表題１１ | GN26: スーパーリ－グ 第１０回大会 Ｋブロック ２０１６ | GO26: 表題１１ | GP26: スーパーリ－グ 第１０回大会 Ｋブロック ２０１６ | GQ26: 表題１１ | GR26: スーパーリ－グ 第１０回大会 Ｋブロック ２０１６ | GS26: 表題１１ | GT26: スーパーリ－グ 第１０回大会 Ｋブロック ２０１６ | GU26: 表題１１ | GV26: スーパーリ－グ 第１０回大会 Ｋブロック ２０１６ | GW26: 表題１１ | GX26: スーパーリ－グ 第１０回大会 Ｋブロック ２０１６ | GY26: 表題１１ | GZ26: スーパーリ－グ 第１０回大会 Ｋブロック ２０１６ | HA26: 表題１１ | HB26: スーパーリ－グ 第１０回大会 Ｋブロック ２０１６ | HC26: 表題１１ | HD26: スーパーリ－グ 第１０回大会 Ｋブロック ２０１６ | HE26: 表題１１ | HF26: スーパーリ－グ 第１０回大会 Ｋブロック ２０１６ | HG26: 表題１１ | HH26: スーパーリ－グ 第１０回大会 Ｋブロック ２０１６ | HI26: 表題１１ | HJ26: スーパーリ－グ 第１０回大会 Ｋブロック ２０１６ | HK26: 表題１１ | HL26: スーパーリ－グ 第１０回大会 Ｋブロック ２０１６ | HM26: 表題１１ | HN26: スーパーリ－グ 第１０回大会 Ｋブロック ２０１６ | HO26: 表題１１ | HP26: スーパーリ－グ 第１０回大会 Ｋブロック ２０１６ | HQ26: 表題１１ | HR26: スーパーリ－グ 第１０回大会 Ｋブロック ２０１６ | HS26: 表題１１ | HT26: スーパーリ－グ 第１０回大会 Ｋブロック ２０１６ | HU26: 表題１１ | HV26: スーパーリ－グ 第１０回大会 Ｋブロック ２０１６ | HW26: 表題１１ | HX26: スーパーリ－グ 第１０回大会 Ｋブロック ２０１６ | HY26: 表題１１ | HZ26: スーパーリ－グ 第１０回大会 Ｋブロック ２０１６ | IA26: 表題１１ | IB26: スーパーリ－グ 第１０回大会 Ｋブロック ２０１６ | IC26: 表題１１ | ID26: スーパーリ－グ 第１０回大会 Ｋブロック ２０１６ | IE26: 表題１１ | IF26: スーパーリ－グ 第１０回大会 Ｋブロック ２０１６ | IG26: 表題１１ | IH26: スーパーリ－グ 第１０回大会 Ｋブロック ２０１６ | II26: 表題１１ | IJ26: スーパーリ－グ 第１０回大会 Ｋブロック ２０１６ | IK26: 表題１１ | IL26: スーパーリ－グ 第１０回大会 Ｋブロック ２０１６ | IM26: 表題１１ | IN26: スーパーリ－グ 第１０回大会 Ｋブロック ２０１６ | IO26: 表題１１ | IP26: スーパーリ－グ 第１０回大会 Ｋブロック ２０１６ | IQ26: 表題１１ | IR26: スーパーリ－グ 第１０回大会 Ｋブロック ２０１６ | IS26: 表題１１ | IT26: スーパーリ－グ 第１０回大会 Ｋブロック ２０１６ | IU26: 表題１１ | IV26: スーパーリ－グ 第１０回大会 Ｋブロック ２０１６
A28: 表題１２ | B28: スーパーリ－グ 第１５回大会 Ｌブロック ２０２１ | C28: 表題１０ | D28: スーパーリ－グ 第１０回大会 Ｊブロック ２０１６ | E28: 表題１０ | F28: スーパーリ－グ 第１０回大会 Ｊブロック ２０１６ | G28: 表題１０ | H28: スーパーリ－グ 第１０回大会 Ｊブロック ２０１６ | I28: 表題１０ | J28: スーパーリ－グ 第１０回大会 Ｊブロック ２０１６ | K28: 表題１０ | L28: スーパーリ－グ 第１０回大会 Ｊブロック ２０１６ | M28: 表題１０ | N28: スーパーリ－グ 第１０回大会 Ｊブロック ２０１６ | O28: 表題１０ | P28: スーパーリ－グ 第１０回大会 Ｊブロック ２０１６ | Q28: 表題１０ | R28: スーパーリ－グ 第１０回大会 Ｊブロック ２０１６ | S28: 表題１０ | T28: スーパーリ－グ 第１０回大会 Ｊブロック ２０１６ | U28: 表題１０ | V28: スーパーリ－グ 第１０回大会 Ｊブロック ２０１６ | W28: 表題１０ | X28: スーパーリ－グ 第１０回大会 Ｊブロック ２０１６ | Y28: 表題１０ | Z28: スーパーリ－グ 第１０回大会 Ｊブロック ２０１６ | AA28: 表題１０ | AB28: スーパーリ－グ 第１０回大会 Ｊブロック ２０１６ | AC28: 表題１０ | AD28: スーパーリ－グ 第１０回大会 Ｊブロック ２０１６ | AE28: 表題１０ | AF28: スーパーリ－グ 第１０回大会 Ｊブロック ２０１６ | AG28: 表題１０ | AH28: スーパーリ－グ 第１０回大会 Ｊブロック ２０１６ | AI28: 表題１０ | AJ28: スーパーリ－グ 第１０回大会 Ｊブロック ２０１６ | AK28: 表題１０ | AL28: スーパーリ－グ 第１０回大会 Ｊブロック ２０１６ | AM28: 表題１０ | AN28: スーパーリ－グ 第１０回大会 Ｊブロック ２０１６ | AO28: 表題１０ | AP28: スーパーリ－グ 第１０回大会 Ｊブロック ２０１６ | AQ28: 表題１０ | AR28: スーパーリ－グ 第１０回大会 Ｊブロック ２０１６ | AS28: 表題１０ | AT28: スーパーリ－グ 第１０回大会 Ｊブロック ２０１６ | AU28: 表題１０ | AV28: スーパーリ－グ 第１０回大会 Ｊブロック ２０１６ | AW28: 表題１０ | AX28: スーパーリ－グ 第１０回大会 Ｊブロック ２０１６ | AY28: 表題１０ | AZ28: スーパーリ－グ 第１０回大会 Ｊブロック ２０１６ | BA28: 表題１０ | BB28: スーパーリ－グ 第１０回大会 Ｊブロック ２０１６ | BC28: 表題１０ | BD28: スーパーリ－グ 第１０回大会 Ｊブロック ２０１６ | BE28: 表題１０ | BF28: スーパーリ－グ 第１０回大会 Ｊブロック ２０１６ | BG28: 表題１０ | BH28: スーパーリ－グ 第１０回大会 Ｊブロック ２０１６ | BI28: 表題１０ | BJ28: スーパーリ－グ 第１０回大会 Ｊブロック ２０１６ | BK28: 表題１０ | BL28: スーパーリ－グ 第１０回大会 Ｊブロック ２０１６ | BM28: 表題１０ | BN28: スーパーリ－グ 第１０回大会 Ｊブロック ２０１６ | BO28: 表題１０ | BP28: スーパーリ－グ 第１０回大会 Ｊブロック ２０１６ | BQ28: 表題１０ | BR28: スーパーリ－グ 第１０回大会 Ｊブロック ２０１６ | BS28: 表題１０ | BT28: スーパーリ－グ 第１０回大会 Ｊブロック ２０１６ | BU28: 表題１０ | BV28: スーパーリ－グ 第１０回大会 Ｊブロック ２０１６ | BW28: 表題１０ | BX28: スーパーリ－グ 第１０回大会 Ｊブロック ２０１６ | BY28: 表題１０ | BZ28: スーパーリ－グ 第１０回大会 Ｊブロック ２０１６ | CA28: 表題１０ | CB28: スーパーリ－グ 第１０回大会 Ｊブロック ２０１６ | CC28: 表題１０ | CD28: スーパーリ－グ 第１０回大会 Ｊブロック ２０１６ | CE28: 表題１０ | CF28: スーパーリ－グ 第１０回大会 Ｊブロック ２０１６ | CG28: 表題１０ | CH28: スーパーリ－グ 第１０回大会 Ｊブロック ２０１６ | CI28: 表題１０ | CJ28: スーパーリ－グ 第１０回大会 Ｊブロック ２０１６ | CK28: 表題１０ | CL28: スーパーリ－グ 第１０回大会 Ｊブロック ２０１６ | CM28: 表題１０ | CN28: スーパーリ－グ 第１０回大会 Ｊブロック ２０１６ | CO28: 表題１０ | CP28: スーパーリ－グ 第１０回大会 Ｊブロック ２０１６ | CQ28: 表題１０ | CR28: スーパーリ－グ 第１０回大会 Ｊブロック ２０１６ | CS28: 表題１０ | CT28: スーパーリ－グ 第１０回大会 Ｊブロック ２０１６ | CU28: 表題１０ | CV28: スーパーリ－グ 第１０回大会 Ｊブロック ２０１６ | CW28: 表題１０ | CX28: スーパーリ－グ 第１０回大会 Ｊブロック ２０１６ | CY28: 表題１０ | CZ28: スーパーリ－グ 第１０回大会 Ｊブロック ２０１６ | DA28: 表題１０ | DB28: スーパーリ－グ 第１０回大会 Ｊブロック ２０１６ | DC28: 表題１０ | DD28: スーパーリ－グ 第１０回大会 Ｊブロック ２０１６ | DE28: 表題１０ | DF28: スーパーリ－グ 第１０回大会 Ｊブロック ２０１６ | DG28: 表題１０ | DH28: スーパーリ－グ 第１０回大会 Ｊブロック ２０１６ | DI28: 表題１０ | DJ28: スーパーリ－グ 第１０回大会 Ｊブロック ２０１６ | DK28: 表題１０ | DL28: スーパーリ－グ 第１０回大会 Ｊブロック ２０１６ | DM28: 表題１０ | DN28: スーパーリ－グ 第１０回大会 Ｊブロック ２０１６ | DO28: 表題１０ | DP28: スーパーリ－グ 第１０回大会 Ｊブロック ２０１６ | DQ28: 表題１０ | DR28: スーパーリ－グ 第１０回大会 Ｊブロック ２０１６ | DS28: 表題１０ | DT28: スーパーリ－グ 第１０回大会 Ｊブロック ２０１６ | DU28: 表題１０ | DV28: スーパーリ－グ 第１０回大会 Ｊブロック ２０１６ | DW28: 表題１０ | DX28: スーパーリ－グ 第１０回大会 Ｊブロック ２０１６ | DY28: 表題１０ | DZ28: スーパーリ－グ 第１０回大会 Ｊブロック ２０１６ | EA28: 表題１０ | EB28: スーパーリ－グ 第１０回大会 Ｊブロック ２０１６ | EC28: 表題１０ | ED28: スーパーリ－グ 第１０回大会 Ｊブロック ２０１６ | EE28: 表題１０ | EF28: スーパーリ－グ 第１０回大会 Ｊブロック ２０１６ | EG28: 表題１０ | EH28: スーパーリ－グ 第１０回大会 Ｊブロック ２０１６ | EI28: 表題１０ | EJ28: スーパーリ－グ 第１０回大会 Ｊブロック ２０１６ | EK28: 表題１０ | EL28: スーパーリ－グ 第１０回大会 Ｊブロック ２０１６ | EM28: 表題１０ | EN28: スーパーリ－グ 第１０回大会 Ｊブロック ２０１６ | EO28: 表題１０ | EP28: スーパーリ－グ 第１０回大会 Ｊブロック ２０１６ | EQ28: 表題１０ | ER28: スーパーリ－グ 第１０回大会 Ｊブロック ２０１６ | ES28: 表題１０ | ET28: スーパーリ－グ 第１０回大会 Ｊブロック ２０１６ | EU28: 表題１０ | EV28: スーパーリ－グ 第１０回大会 Ｊブロック ２０１６ | EW28: 表題１０ | EX28: スーパーリ－グ 第１０回大会 Ｊブロック ２０１６ | EY28: 表題１０ | EZ28: スーパーリ－グ 第１０回大会 Ｊブロック ２０１６ | FA28: 表題１０ | FB28: スーパーリ－グ 第１０回大会 Ｊブロック ２０１６ | FC28: 表題１０ | FD28: スーパーリ－グ 第１０回大会 Ｊブロック ２０１６ | FE28: 表題１０ | FF28: スーパーリ－グ 第１０回大会 Ｊブロック ２０１６ | FG28: 表題１０ | FH28: スーパーリ－グ 第１０回大会 Ｊブロック ２０１６ | FI28: 表題１０ | FJ28: スーパーリ－グ 第１０回大会 Ｊブロック ２０１６ | FK28: 表題１０ | FL28: スーパーリ－グ 第１０回大会 Ｊブロック ２０１６ | FM28: 表題１０ | FN28: スーパーリ－グ 第１０回大会 Ｊブロック ２０１６ | FO28: 表題１０ | FP28: スーパーリ－グ 第１０回大会 Ｊブロック ２０１６ | FQ28: 表題１０ | FR28: スーパーリ－グ 第１０回大会 Ｊブロック ２０１６ | FS28: 表題１０ | FT28: スーパーリ－グ 第１０回大会 Ｊブロック ２０１６ | FU28: 表題１０ | FV28: スーパーリ－グ 第１０回大会 Ｊブロック ２０１６ | FW28: 表題１０ | FX28: スーパーリ－グ 第１０回大会 Ｊブロック ２０１６ | FY28: 表題１０ | FZ28: スーパーリ－グ 第１０回大会 Ｊブロック ２０１６ | GA28: 表題１０ | GB28: スーパーリ－グ 第１０回大会 Ｊブロック ２０１６ | GC28: 表題１０ | GD28: スーパーリ－グ 第１０回大会 Ｊブロック ２０１６ | GE28: 表題１０ | GF28: スーパーリ－グ 第１０回大会 Ｊブロック ２０１６ | GG28: 表題１０ | GH28: スーパーリ－グ 第１０回大会 Ｊブロック ２０１６ | GI28: 表題１０ | GJ28: スーパーリ－グ 第１０回大会 Ｊブロック ２０１６ | GK28: 表題１０ | GL28: スーパーリ－グ 第１０回大会 Ｊブロック ２０１６ | GM28: 表題１０ | GN28: スーパーリ－グ 第１０回大会 Ｊブロック ２０１６ | GO28: 表題１０ | GP28: スーパーリ－グ 第１０回大会 Ｊブロック ２０１６ | GQ28: 表題１０ | GR28: スーパーリ－グ 第１０回大会 Ｊブロック ２０１６ | GS28: 表題１０ | GT28: スーパーリ－グ 第１０回大会 Ｊブロック ２０１６ | GU28: 表題１０ | GV28: スーパーリ－グ 第１０回大会 Ｊブロック ２０１６ | GW28: 表題１０ | GX28: スーパーリ－グ 第１０回大会 Ｊブロック ２０１６ | GY28: 表題１０ | GZ28: スーパーリ－グ 第１０回大会 Ｊブロック ２０１６ | HA28: 表題１０ | HB28: スーパーリ－グ 第１０回大会 Ｊブロック ２０１６ | HC28: 表題１０ | HD28: スーパーリ－グ 第１０回大会 Ｊブロック ２０１６ | HE28: 表題１０ | HF28: スーパーリ－グ 第１０回大会 Ｊブロック ２０１６ | HG28: 表題１０ | HH28: スーパーリ－グ 第１０回大会 Ｊブロック ２０１６ | HI28: 表題１０ | HJ28: スーパーリ－グ 第１０回大会 Ｊブロック ２０１６ | HK28: 表題１０ | HL28: スーパーリ－グ 第１０回大会 Ｊブロック ２０１６ | HM28: 表題１０ | HN28: スーパーリ－グ 第１０回大会 Ｊブロック ２０１６ | HO28: 表題１０ | HP28: スーパーリ－グ 第１０回大会 Ｊブロック ２０１６ | HQ28: 表題１０ | HR28: スーパーリ－グ 第１０回大会 Ｊブロック ２０１６ | HS28: 表題１０ | HT28: スーパーリ－グ 第１０回大会 Ｊブロック ２０１６ | HU28: 表題１０ | HV28: スーパーリ－グ 第１０回大会 Ｊブロック ２０１６ | HW28: 表題１０ | HX28: スーパーリ－グ 第１０回大会 Ｊブロック ２０１６ | HY28: 表題１０ | HZ28: スーパーリ－グ 第１０回大会 Ｊブロック ２０１６ | IA28: 表題１０ | IB28: スーパーリ－グ 第１０回大会 Ｊブロック ２０１６ | IC28: 表題１０ | ID28: スーパーリ－グ 第１０回大会 Ｊブロック ２０１６ | IE28: 表題１０ | IF28: スーパーリ－グ 第１０回大会 Ｊブロック ２０１６ | IG28: 表題１０ | IH28: スーパーリ－グ 第１０回大会 Ｊブロック ２０１６ | II28: 表題１０ | IJ28: スーパーリ－グ 第１０回大会 Ｊブロック ２０１６ | IK28: 表題１０ | IL28: スーパーリ－グ 第１０回大会 Ｊブロック ２０１６ | IM28: 表題１０ | IN28: スーパーリ－グ 第１０回大会 Ｊブロック ２０１６ | IO28: 表題１０ | IP28: スーパーリ－グ 第１０回大会 Ｊブロック ２０１６ | IQ28: 表題１０ | IR28: スーパーリ－グ 第１０回大会 Ｊブロック ２０１６ | IS28: 表題１０ | IT28: スーパーリ－グ 第１０回大会 Ｊブロック ２０１６ | IU28: 表題１０ | IV28: スーパーリ－グ 第１０回大会 Ｊブロック ２０１６
A30: 表題１３ | B30: スーパーリ－グ 第１５回大会 Ｍブロック ２０２１ | C30: 表題１１ | D30: スーパーリ－グ 第１０回大会 Ｋブロック ２０１６ | E30: 表題１１ | F30: スーパーリ－グ 第１０回大会 Ｋブロック ２０１６ | G30: 表題１１ | H30: スーパーリ－グ 第１０回大会 Ｋブロック ２０１６ | I30: 表題１１ | J30: スーパーリ－グ 第１０回大会 Ｋブロック ２０１６ | K30: 表題１１ | L30: スーパーリ－グ 第１０回大会 Ｋブロック ２０１６ | M30: 表題１１ | N30: スーパーリ－グ 第１０回大会 Ｋブロック ２０１６ | O30: 表題１１ | P30: スーパーリ－グ 第１０回大会 Ｋブロック ２０１６ | Q30: 表題１１ | R30: スーパーリ－グ 第１０回大会 Ｋブロック ２０１６ | S30: 表題１１ | T30: スーパーリ－グ 第１０回大会 Ｋブロック ２０１６ | U30: 表題１１ | V30: スーパーリ－グ 第１０回大会 Ｋブロック ２０１６ | W30: 表題１１ | X30: スーパーリ－グ 第１０回大会 Ｋブロック ２０１６ | Y30: 表題１１ | Z30: スーパーリ－グ 第１０回大会 Ｋブロック ２０１６ | AA30: 表題１１ | AB30: スーパーリ－グ 第１０回大会 Ｋブロック ２０１６ | AC30: 表題１１ | AD30: スーパーリ－グ 第１０回大会 Ｋブロック ２０１６ | AE30: 表題１１ | AF30: スーパーリ－グ 第１０回大会 Ｋブロック ２０１６ | AG30: 表題１１ | AH30: スーパーリ－グ 第１０回大会 Ｋブロック ２０１６ | AI30: 表題１１ | AJ30: スーパーリ－グ 第１０回大会 Ｋブロック ２０１６ | AK30: 表題１１ | AL30: スーパーリ－グ 第１０回大会 Ｋブロック ２０１６ | AM30: 表題１１ | AN30: スーパーリ－グ 第１０回大会 Ｋブロック ２０１６ | AO30: 表題１１ | AP30: スーパーリ－グ 第１０回大会 Ｋブロック ２０１６ | AQ30: 表題１１ | AR30: スーパーリ－グ 第１０回大会 Ｋブロック ２０１６ | AS30: 表題１１ | AT30: スーパーリ－グ 第１０回大会 Ｋブロック ２０１６ | AU30: 表題１１ | AV30: スーパーリ－グ 第１０回大会 Ｋブロック ２０１６ | AW30: 表題１１ | AX30: スーパーリ－グ 第１０回大会 Ｋブロック ２０１６ | AY30: 表題１１ | AZ30: スーパーリ－グ 第１０回大会 Ｋブロック ２０１６ | BA30: 表題１１ | BB30: スーパーリ－グ 第１０回大会 Ｋブロック ２０１６ | BC30: 表題１１ | BD30: スーパーリ－グ 第１０回大会 Ｋブロック ２０１６ | BE30: 表題１１ | BF30: スーパーリ－グ 第１０回大会 Ｋブロック ２０１６ | BG30: 表題１１ | BH30: スーパーリ－グ 第１０回大会 Ｋブロック ２０１６ | BI30: 表題１１ | BJ30: スーパーリ－グ 第１０回大会 Ｋブロック ２０１６ | BK30: 表題１１ | BL30: スーパーリ－グ 第１０回大会 Ｋブロック ２０１６ | BM30: 表題１１ | BN30: スーパーリ－グ 第１０回大会 Ｋブロック ２０１６ | BO30: 表題１１ | BP30: スーパーリ－グ 第１０回大会 Ｋブロック ２０１６ | BQ30: 表題１１ | BR30: スーパーリ－グ 第１０回大会 Ｋブロック ２０１６ | BS30: 表題１１ | BT30: スーパーリ－グ 第１０回大会 Ｋブロック ２０１６ | BU30: 表題１１ | BV30: スーパーリ－グ 第１０回大会 Ｋブロック ２０１６ | BW30: 表題１１ | BX30: スーパーリ－グ 第１０回大会 Ｋブロック ２０１６ | BY30: 表題１１ | BZ30: スーパーリ－グ 第１０回大会 Ｋブロック ２０１６ | CA30: 表題１１ | CB30: スーパーリ－グ 第１０回大会 Ｋブロック ２０１６ | CC30: 表題１１ | CD30: スーパーリ－グ 第１０回大会 Ｋブロック ２０１６ | CE30: 表題１１ | CF30: スーパーリ－グ 第１０回大会 Ｋブロック ２０１６ | CG30: 表題１１ | CH30: スーパーリ－グ 第１０回大会 Ｋブロック ２０１６ | CI30: 表題１１ | CJ30: スーパーリ－グ 第１０回大会 Ｋブロック ２０１６ | CK30: 表題１１ | CL30: スーパーリ－グ 第１０回大会 Ｋブロック ２０１６ | CM30: 表題１１ | CN30: スーパーリ－グ 第１０回大会 Ｋブロック ２０１６ | CO30: 表題１１ | CP30: スーパーリ－グ 第１０回大会 Ｋブロック ２０１６ | CQ30: 表題１１ | CR30: スーパーリ－グ 第１０回大会 Ｋブロック ２０１６ | CS30: 表題１１ | CT30: スーパーリ－グ 第１０回大会 Ｋブロック ２０１６ | CU30: 表題１１ | CV30: スーパーリ－グ 第１０回大会 Ｋブロック ２０１６ | CW30: 表題１１ | CX30: スーパーリ－グ 第１０回大会 Ｋブロック ２０１６ | CY30: 表題１１ | CZ30: スーパーリ－グ 第１０回大会 Ｋブロック ２０１６ | DA30: 表題１１ | DB30: スーパーリ－グ 第１０回大会 Ｋブロック ２０１６ | DC30: 表題１１ | DD30: スーパーリ－グ 第１０回大会 Ｋブロック ２０１６ | DE30: 表題１１ | DF30: スーパーリ－グ 第１０回大会 Ｋブロック ２０１６ | DG30: 表題１１ | DH30: スーパーリ－グ 第１０回大会 Ｋブロック ２０１６ | DI30: 表題１１ | DJ30: スーパーリ－グ 第１０回大会 Ｋブロック ２０１６ | DK30: 表題１１ | DL30: スーパーリ－グ 第１０回大会 Ｋブロック ２０１６ | DM30: 表題１１ | DN30: スーパーリ－グ 第１０回大会 Ｋブロック ２０１６ | DO30: 表題１１ | DP30: スーパーリ－グ 第１０回大会 Ｋブロック ２０１６ | DQ30: 表題１１ | DR30: スーパーリ－グ 第１０回大会 Ｋブロック ２０１６ | DS30: 表題１１ | DT30: スーパーリ－グ 第１０回大会 Ｋブロック ２０１６ | DU30: 表題１１ | DV30: スーパーリ－グ 第１０回大会 Ｋブロック ２０１６ | DW30: 表題１１ | DX30: スーパーリ－グ 第１０回大会 Ｋブロック ２０１６ | DY30: 表題１１ | DZ30: スーパーリ－グ 第１０回大会 Ｋブロック ２０１６ | EA30: 表題１１ | EB30: スーパーリ－グ 第１０回大会 Ｋブロック ２０１６ | EC30: 表題１１ | ED30: スーパーリ－グ 第１０回大会 Ｋブロック ２０１６ | EE30: 表題１１ | EF30: スーパーリ－グ 第１０回大会 Ｋブロック ２０１６ | EG30: 表題１１ | EH30: スーパーリ－グ 第１０回大会 Ｋブロック ２０１６ | EI30: 表題１１ | EJ30: スーパーリ－グ 第１０回大会 Ｋブロック ２０１６ | EK30: 表題１１ | EL30: スーパーリ－グ 第１０回大会 Ｋブロック ２０１６ | EM30: 表題１１ | EN30: スーパーリ－グ 第１０回大会 Ｋブロック ２０１６ | EO30: 表題１１ | EP30: スーパーリ－グ 第１０回大会 Ｋブロック ２０１６ | EQ30: 表題１１ | ER30: スーパーリ－グ 第１０回大会 Ｋブロック ２０１６ | ES30: 表題１１ | ET30: スーパーリ－グ 第１０回大会 Ｋブロック ２０１６ | EU30: 表題１１ | EV30: スーパーリ－グ 第１０回大会 Ｋブロック ２０１６ | EW30: 表題１１ | EX30: スーパーリ－グ 第１０回大会 Ｋブロック ２０１６ | EY30: 表題１１ | EZ30: スーパーリ－グ 第１０回大会 Ｋブロック ２０１６ | FA30: 表題１１ | FB30: スーパーリ－グ 第１０回大会 Ｋブロック ２０１６ | FC30: 表題１１ | FD30: スーパーリ－グ 第１０回大会 Ｋブロック ２０１６ | FE30: 表題１１ | FF30: スーパーリ－グ 第１０回大会 Ｋブロック ２０１６ | FG30: 表題１１ | FH30: スーパーリ－グ 第１０回大会 Ｋブロック ２０１６ | FI30: 表題１１ | FJ30: スーパーリ－グ 第１０回大会 Ｋブロック ２０１６ | FK30: 表題１１ | FL30: スーパーリ－グ 第１０回大会 Ｋブロック ２０１６ | FM30: 表題１１ | FN30: スーパーリ－グ 第１０回大会 Ｋブロック ２０１６ | FO30: 表題１１ | FP30: スーパーリ－グ 第１０回大会 Ｋブロック ２０１６ | FQ30: 表題１１ | FR30: スーパーリ－グ 第１０回大会 Ｋブロック ２０１６ | FS30: 表題１１ | FT30: スーパーリ－グ 第１０回大会 Ｋブロック ２０１６ | FU30: 表題１１ | FV30: スーパーリ－グ 第１０回大会 Ｋブロック ２０１６ | FW30: 表題１１ | FX30: スーパーリ－グ 第１０回大会 Ｋブロック ２０１６ | FY30: 表題１１ | FZ30: スーパーリ－グ 第１０回大会 Ｋブロック ２０１６ | GA30: 表題１１ | GB30: スーパーリ－グ 第１０回大会 Ｋブロック ２０１６ | GC30: 表題１１ | GD30: スーパーリ－グ 第１０回大会 Ｋブロック ２０１６ | GE30: 表題１１ | GF30: スーパーリ－グ 第１０回大会 Ｋブロック ２０１６ | GG30: 表題１１ | GH30: スーパーリ－グ 第１０回大会 Ｋブロック ２０１６ | GI30: 表題１１ | GJ30: スーパーリ－グ 第１０回大会 Ｋブロック ２０１６ | GK30: 表題１１ | GL30: スーパーリ－グ 第１０回大会 Ｋブロック ２０１６ | GM30: 表題１１ | GN30: スーパーリ－グ 第１０回大会 Ｋブロック ２０１６ | GO30: 表題１１ | GP30: スーパーリ－グ 第１０回大会 Ｋブロック ２０１６ | GQ30: 表題１１ | GR30: スーパーリ－グ 第１０回大会 Ｋブロック ２０１６ | GS30: 表題１１ | GT30: スーパーリ－グ 第１０回大会 Ｋブロック ２０１６ | GU30: 表題１１ | GV30: スーパーリ－グ 第１０回大会 Ｋブロック ２０１６ | GW30: 表題１１ | GX30: スーパーリ－グ 第１０回大会 Ｋブロック ２０１６ | GY30: 表題１１ | GZ30: スーパーリ－グ 第１０回大会 Ｋブロック ２０１６ | HA30: 表題１１ | HB30: スーパーリ－グ 第１０回大会 Ｋブロック ２０１６ | HC30: 表題１１ | HD30: スーパーリ－グ 第１０回大会 Ｋブロック ２０１６ | HE30: 表題１１ | HF30: スーパーリ－グ 第１０回大会 Ｋブロック ２０１６ | HG30: 表題１１ | HH30: スーパーリ－グ 第１０回大会 Ｋブロック ２０１６ | HI30: 表題１１ | HJ30: スーパーリ－グ 第１０回大会 Ｋブロック ２０１６ | HK30: 表題１１ | HL30: スーパーリ－グ 第１０回大会 Ｋブロック ２０１６ | HM30: 表題１１ | HN30: スーパーリ－グ 第１０回大会 Ｋブロック ２０１６ | HO30: 表題１１ | HP30: スーパーリ－グ 第１０回大会 Ｋブロック ２０１６ | HQ30: 表題１１ | HR30: スーパーリ－グ 第１０回大会 Ｋブロック ２０１６ | HS30: 表題１１ | HT30: スーパーリ－グ 第１０回大会 Ｋブロック ２０１６ | HU30: 表題１１ | HV30: スーパーリ－グ 第１０回大会 Ｋブロック ２０１６ | HW30: 表題１１ | HX30: スーパーリ－グ 第１０回大会 Ｋブロック ２０１６ | HY30: 表題１１ | HZ30: スーパーリ－グ 第１０回大会 Ｋブロック ２０１６ | IA30: 表題１１ | IB30: スーパーリ－グ 第１０回大会 Ｋブロック ２０１６ | IC30: 表題１１ | ID30: スーパーリ－グ 第１０回大会 Ｋブロック ２０１６ | IE30: 表題１１ | IF30: スーパーリ－グ 第１０回大会 Ｋブロック ２０１６ | IG30: 表題１１ | IH30: スーパーリ－グ 第１０回大会 Ｋブロック ２０１６ | II30: 表題１１ | IJ30: スーパーリ－グ 第１０回大会 Ｋブロック ２０１６ | IK30: 表題１１ | IL30: スーパーリ－グ 第１０回大会 Ｋブロック ２０１６ | IM30: 表題１１ | IN30: スーパーリ－グ 第１０回大会 Ｋブロック ２０１６ | IO30: 表題１１ | IP30: スーパーリ－グ 第１０回大会 Ｋブロック ２０１６ | IQ30: 表題１１ | IR30: スーパーリ－グ 第１０回大会 Ｋブロック ２０１６ | IS30: 表題１１ | IT30: スーパーリ－グ 第１０回大会 Ｋブロック ２０１６ | IU30: 表題１１ | IV30: スーパーリ－グ 第１０回大会 Ｋブロック ２０１６
A32: 表題１４ | B32: スーパーリ－グ 第１５回大会 Ｎブロック ２０２１ | C32: 表題１０ | D32: スーパーリ－グ 第１０回大会 Ｊブロック ２０１６ | E32: 表題１０ | F32: スーパーリ－グ 第１０回大会 Ｊブロック ２０１６ | G32: 表題１０ | H32: スーパーリ－グ 第１０回大会 Ｊブロック ２０１６ | I32: 表題１０ | J32: スーパーリ－グ 第１０回大会 Ｊブロック ２０１６ | K32: 表題１０ | L32: スーパーリ－グ 第１０回大会 Ｊブロック ２０１６ | M32: 表題１０ | N32: スーパーリ－グ 第１０回大会 Ｊブロック ２０１６ | O32: 表題１０ | P32: スーパーリ－グ 第１０回大会 Ｊブロック ２０１６ | Q32: 表題１０ | R32: スーパーリ－グ 第１０回大会 Ｊブロック ２０１６ | S32: 表題１０ | T32: スーパーリ－グ 第１０回大会 Ｊブロック ２０１６ | U32: 表題１０ | V32: スーパーリ－グ 第１０回大会 Ｊブロック ２０１６ | W32: 表題１０ | X32: スーパーリ－グ 第１０回大会 Ｊブロック ２０１６ | Y32: 表題１０ | Z32: スーパーリ－グ 第１０回大会 Ｊブロック ２０１６ | AA32: 表題１０ | AB32: スーパーリ－グ 第１０回大会 Ｊブロック ２０１６ | AC32: 表題１０ | AD32: スーパーリ－グ 第１０回大会 Ｊブロック ２０１６ | AE32: 表題１０ | AF32: スーパーリ－グ 第１０回大会 Ｊブロック ２０１６ | AG32: 表題１０ | AH32: スーパーリ－グ 第１０回大会 Ｊブロック ２０１６ | AI32: 表題１０ | AJ32: スーパーリ－グ 第１０回大会 Ｊブロック ２０１６ | AK32: 表題１０ | AL32: スーパーリ－グ 第１０回大会 Ｊブロック ２０１６ | AM32: 表題１０ | AN32: スーパーリ－グ 第１０回大会 Ｊブロック ２０１６ | AO32: 表題１０ | AP32: スーパーリ－グ 第１０回大会 Ｊブロック ２０１６ | AQ32: 表題１０ | AR32: スーパーリ－グ 第１０回大会 Ｊブロック ２０１６ | AS32: 表題１０ | AT32: スーパーリ－グ 第１０回大会 Ｊブロック ２０１６ | AU32: 表題１０ | AV32: スーパーリ－グ 第１０回大会 Ｊブロック ２０１６ | AW32: 表題１０ | AX32: スーパーリ－グ 第１０回大会 Ｊブロック ２０１６ | AY32: 表題１０ | AZ32: スーパーリ－グ 第１０回大会 Ｊブロック ２０１６ | BA32: 表題１０ | BB32: スーパーリ－グ 第１０回大会 Ｊブロック ２０１６ | BC32: 表題１０ | BD32: スーパーリ－グ 第１０回大会 Ｊブロック ２０１６ | BE32: 表題１０ | BF32: スーパーリ－グ 第１０回大会 Ｊブロック ２０１６ | BG32: 表題１０ | BH32: スーパーリ－グ 第１０回大会 Ｊブロック ２０１６ | BI32: 表題１０ | BJ32: スーパーリ－グ 第１０回大会 Ｊブロック ２０１６ | BK32: 表題１０ | BL32: スーパーリ－グ 第１０回大会 Ｊブロック ２０１６ | BM32: 表題１０ | BN32: スーパーリ－グ 第１０回大会 Ｊブロック ２０１６ | BO32: 表題１０ | BP32: スーパーリ－グ 第１０回大会 Ｊブロック ２０１６ | BQ32: 表題１０ | BR32: スーパーリ－グ 第１０回大会 Ｊブロック ２０１６ | BS32: 表題１０ | BT32: スーパーリ－グ 第１０回大会 Ｊブロック ２０１６ | BU32: 表題１０ | BV32: スーパーリ－グ 第１０回大会 Ｊブロック ２０１６ | BW32: 表題１０ | BX32: スーパーリ－グ 第１０回大会 Ｊブロック ２０１６ | BY32: 表題１０ | BZ32: スーパーリ－グ 第１０回大会 Ｊブロック ２０１６ | CA32: 表題１０ | CB32: スーパーリ－グ 第１０回大会 Ｊブロック ２０１６ | CC32: 表題１０ | CD32: スーパーリ－グ 第１０回大会 Ｊブロック ２０１６ | CE32: 表題１０ | CF32: スーパーリ－グ 第１０回大会 Ｊブロック ２０１６ | CG32: 表題１０ | CH32: スーパーリ－グ 第１０回大会 Ｊブロック ２０１６ | CI32: 表題１０ | CJ32: スーパーリ－グ 第１０回大会 Ｊブロック ２０１６ | CK32: 表題１０ | CL32: スーパーリ－グ 第１０回大会 Ｊブロック ２０１６ | CM32: 表題１０ | CN32: スーパーリ－グ 第１０回大会 Ｊブロック ２０１６ | CO32: 表題１０ | CP32: スーパーリ－グ 第１０回大会 Ｊブロック ２０１６ | CQ32: 表題１０ | CR32: スーパーリ－グ 第１０回大会 Ｊブロック ２０１６ | CS32: 表題１０ | CT32: スーパーリ－グ 第１０回大会 Ｊブロック ２０１６ | CU32: 表題１０ | CV32: スーパーリ－グ 第１０回大会 Ｊブロック ２０１６ | CW32: 表題１０ | CX32: スーパーリ－グ 第１０回大会 Ｊブロック ２０１６ | CY32: 表題１０ | CZ32: スーパーリ－グ 第１０回大会 Ｊブロック ２０１６ | DA32: 表題１０ | DB32: スーパーリ－グ 第１０回大会 Ｊブロック ２０１６ | DC32: 表題１０ | DD32: スーパーリ－グ 第１０回大会 Ｊブロック ２０１６ | DE32: 表題１０ | DF32: スーパーリ－グ 第１０回大会 Ｊブロック ２０１６ | DG32: 表題１０ | DH32: スーパーリ－グ 第１０回大会 Ｊブロック ２０１６ | DI32: 表題１０ | DJ32: スーパーリ－グ 第１０回大会 Ｊブロック ２０１６ | DK32: 表題１０ | DL32: スーパーリ－グ 第１０回大会 Ｊブロック ２０１６ | DM32: 表題１０ | DN32: スーパーリ－グ 第１０回大会 Ｊブロック ２０１６ | DO32: 表題１０ | DP32: スーパーリ－グ 第１０回大会 Ｊブロック ２０１６ | DQ32: 表題１０ | DR32: スーパーリ－グ 第１０回大会 Ｊブロック ２０１６ | DS32: 表題１０ | DT32: スーパーリ－グ 第１０回大会 Ｊブロック ２０１６ | DU32: 表題１０ | DV32: スーパーリ－グ 第１０回大会 Ｊブロック ２０１６ | DW32: 表題１０ | DX32: スーパーリ－グ 第１０回大会 Ｊブロック ２０１６ | DY32: 表題１０ | DZ32: スーパーリ－グ 第１０回大会 Ｊブロック ２０１６ | EA32: 表題１０ | EB32: スーパーリ－グ 第１０回大会 Ｊブロック ２０１６ | EC32: 表題１０ | ED32: スーパーリ－グ 第１０回大会 Ｊブロック ２０１６ | EE32: 表題１０ | EF32: スーパーリ－グ 第１０回大会 Ｊブロック ２０１６ | EG32: 表題１０ | EH32: スーパーリ－グ 第１０回大会 Ｊブロック ２０１６ | EI32: 表題１０ | EJ32: スーパーリ－グ 第１０回大会 Ｊブロック ２０１６ | EK32: 表題１０ | EL32: スーパーリ－グ 第１０回大会 Ｊブロック ２０１６ | EM32: 表題１０ | EN32: スーパーリ－グ 第１０回大会 Ｊブロック ２０１６ | EO32: 表題１０ | EP32: スーパーリ－グ 第１０回大会 Ｊブロック ２０１６ | EQ32: 表題１０ | ER32: スーパーリ－グ 第１０回大会 Ｊブロック ２０１６ | ES32: 表題１０ | ET32: スーパーリ－グ 第１０回大会 Ｊブロック ２０１６ | EU32: 表題１０ | EV32: スーパーリ－グ 第１０回大会 Ｊブロック ２０１６ | EW32: 表題１０ | EX32: スーパーリ－グ 第１０回大会 Ｊブロック ２０１６ | EY32: 表題１０ | EZ32: スーパーリ－グ 第１０回大会 Ｊブロック ２０１６ | FA32: 表題１０ | FB32: スーパーリ－グ 第１０回大会 Ｊブロック ２０１６ | FC32: 表題１０ | FD32: スーパーリ－グ 第１０回大会 Ｊブロック ２０１６ | FE32: 表題１０ | FF32: スーパーリ－グ 第１０回大会 Ｊブロック ２０１６ | FG32: 表題１０ | FH32: スーパーリ－グ 第１０回大会 Ｊブロック ２０１６ | FI32: 表題１０ | FJ32: スーパーリ－グ 第１０回大会 Ｊブロック ２０１６ | FK32: 表題１０ | FL32: スーパーリ－グ 第１０回大会 Ｊブロック ２０１６ | FM32: 表題１０ | FN32: スーパーリ－グ 第１０回大会 Ｊブロック ２０１６ | FO32: 表題１０ | FP32: スーパーリ－グ 第１０回大会 Ｊブロック ２０１６ | FQ32: 表題１０ | FR32: スーパーリ－グ 第１０回大会 Ｊブロック ２０１６ | FS32: 表題１０ | FT32: スーパーリ－グ 第１０回大会 Ｊブロック ２０１６ | FU32: 表題１０ | FV32: スーパーリ－グ 第１０回大会 Ｊブロック ２０１６ | FW32: 表題１０ | FX32: スーパーリ－グ 第１０回大会 Ｊブロック ２０１６ | FY32: 表題１０ | FZ32: スーパーリ－グ 第１０回大会 Ｊブロック ２０１６ | GA32: 表題１０ | GB32: スーパーリ－グ 第１０回大会 Ｊブロック ２０１６ | GC32: 表題１０ | GD32: スーパーリ－グ 第１０回大会 Ｊブロック ２０１６ | GE32: 表題１０ | GF32: スーパーリ－グ 第１０回大会 Ｊブロック ２０１６ | GG32: 表題１０ | GH32: スーパーリ－グ 第１０回大会 Ｊブロック ２０１６ | GI32: 表題１０ | GJ32: スーパーリ－グ 第１０回大会 Ｊブロック ２０１６ | GK32: 表題１０ | GL32: スーパーリ－グ 第１０回大会 Ｊブロック ２０１６ | GM32: 表題１０ | GN32: スーパーリ－グ 第１０回大会 Ｊブロック ２０１６ | GO32: 表題１０ | GP32: スーパーリ－グ 第１０回大会 Ｊブロック ２０１６ | GQ32: 表題１０ | GR32: スーパーリ－グ 第１０回大会 Ｊブロック ２０１６ | GS32: 表題１０ | GT32: スーパーリ－グ 第１０回大会 Ｊブロック ２０１６ | GU32: 表題１０ | GV32: スーパーリ－グ 第１０回大会 Ｊブロック ２０１６ | GW32: 表題１０ | GX32: スーパーリ－グ 第１０回大会 Ｊブロック ２０１６ | GY32: 表題１０ | GZ32: スーパーリ－グ 第１０回大会 Ｊブロック ２０１６ | HA32: 表題１０ | HB32: スーパーリ－グ 第１０回大会 Ｊブロック ２０１６ | HC32: 表題１０ | HD32: スーパーリ－グ 第１０回大会 Ｊブロック ２０１６ | HE32: 表題１０ | HF32: スーパーリ－グ 第１０回大会 Ｊブロック ２０１６ | HG32: 表題１０ | HH32: スーパーリ－グ 第１０回大会 Ｊブロック ２０１６ | HI32: 表題１０ | HJ32: スーパーリ－グ 第１０回大会 Ｊブロック ２０１６ | HK32: 表題１０ | HL32: スーパーリ－グ 第１０回大会 Ｊブロック ２０１６ | HM32: 表題１０ | HN32: スーパーリ－グ 第１０回大会 Ｊブロック ２０１６ | HO32: 表題１０ | HP32: スーパーリ－グ 第１０回大会 Ｊブロック ２０１６ | HQ32: 表題１０ | HR32: スーパーリ－グ 第１０回大会 Ｊブロック ２０１６ | HS32: 表題１０ | HT32: スーパーリ－グ 第１０回大会 Ｊブロック ２０１６ | HU32: 表題１０ | HV32: スーパーリ－グ 第１０回大会 Ｊブロック ２０１６ | HW32: 表題１０ | HX32: スーパーリ－グ 第１０回大会 Ｊブロック ２０１６ | HY32: 表題１０ | HZ32: スーパーリ－グ 第１０回大会 Ｊブロック ２０１６ | IA32: 表題１０ | IB32: スーパーリ－グ 第１０回大会 Ｊブロック ２０１６ | IC32: 表題１０ | ID32: スーパーリ－グ 第１０回大会 Ｊブロック ２０１６ | IE32: 表題１０ | IF32: スーパーリ－グ 第１０回大会 Ｊブロック ２０１６ | IG32: 表題１０ | IH32: スーパーリ－グ 第１０回大会 Ｊブロック ２０１６ | II32: 表題１０ | IJ32: スーパーリ－グ 第１０回大会 Ｊブロック ２０１６ | IK32: 表題１０ | IL32: スーパーリ－グ 第１０回大会 Ｊブロック ２０１６ | IM32: 表題１０ | IN32: スーパーリ－グ 第１０回大会 Ｊブロック ２０１６ | IO32: 表題１０ | IP32: スーパーリ－グ 第１０回大会 Ｊブロック ２０１６ | IQ32: 表題１０ | IR32: スーパーリ－グ 第１０回大会 Ｊブロック ２０１６ | IS32: 表題１０ | IT32: スーパーリ－グ 第１０回大会 Ｊブロック ２０１６ | IU32: 表題１０ | IV32: スーパーリ－グ 第１０回大会 Ｊブロック ２０１６

Sheet データ２
B1: Aブロック長
A2: 1 | B2: 有馬スワローズ
A4: 2 | B4: 城北メッツ
A6: 3 | B6: 東山エイターズ
A8: 4 | B8: 本村クラブ
A10: 5 | B10: 文京パワーズ
A12: 6 | B12: 亀戸合同
A14: 7 | B14: エンジェルス
B15: Bブロック長
A16: 8 | B16: 高島エイト
A18: 9 | B18: 番町エンジェルス
A20: 10 | B20: 桃五少年野球クラブ
A22: 11 | B22: 港南メッツ
A24: 12 | B24: 西千タイガース
A26: 13 | B26: 七北クラブ
A28: 14 | B28: 馬込ジャガーズ
B29: Cブロック長
A30: 15 | B30: 葛飾アニマルズ
A32: 16 | B32: マッハブレーブス
A34: 17 | B34: 久我山イーグルス
A36: 18 | B36: 高輪台ファイターズ
A38: 19 | B38: 新宿ドリーム
A40: 20 | B40: 大島タイガース
A42: 21 | B42: 東伊興シャインズ
B43: Dブロック長
A44: 22 | B44: レッドサンズ
A46: 23 | B46: リトルジャイアンツ
A48: 24 | B48: 目黒インパルス
A50: 25 | B50: 船橋フェニックス
A52: 26 | B52: 品川レインボーズ
A54: 27 | B54: 江東ファイターズ
A56: 28 | B56: ブラザースクラブ
B57: Eブロック長
A58: 29 | B58: ゼットタイガー
A60: 30 | B60: ジャパンキングス
A62: 31 | B62: 中央バンディーズ
A64: 32 | B64: ナインスターズ
A66: 33 | B66: 品川ブルーレーシング
A68: 34 | B68: 江東ジョーズ
A70: 35 | B70: 西伊興若潮ジュニア
B71: Fブロック長
A72: 36 | B72: 西田野球クラブ
A74: 37 | B74: 大向ベアーズ
A76: 38 | B76: ヤングホークス
A78: 39 | B78: 烏山ウイングス
A80: 40 | B80: 礫川
A82: 41 | B82: 東雲メッツ
A84: 42 | B84: ブラックキラーズ
B85: Gブロック長
A86: 43 | B86: 南千住ペガサス
A88: 44 | B88: 金町ジャイアンツ
A90: 45 | B90: 月島ライオンズ
A92: 46 | B92: 墨田スターズ
A94: 47 | B94: 御殿山ファイターズ
A96: 48 | B96: 越中島ブレーブス
A98: 49 | B98: 新田ファイヤーズ
B99: Hブロック長
A100: 50 | B100: 大島中央
A102: 51 | B102: 葛西ファイターズ
A104: 52 | B104: 高井戸東少年野球
A106: 53 | B106: 扇ターキーズ
A108: 54 | B108: 茗荷谷クラブ
A110: 55 | B110: サンジュニア
A112: 56 | B112: 竹仲
B113: Iブロック長
A114: 57 | B114: 山野レッドイーグルス
A116: 58 | B116: しらさぎ
A118: 59 | B118: 晴海アポローズ
A120: 60 | B120: 元芝ハヤブサ
A122: 61 | B122: 落一アポロ
A124: 62 | B124: ニュー愛宕
A126: 63 | B126: レッドファイヤーズ
B127: Jブロック長
A128: 64 | B128: 北原少年野球クラブ
A130: 65 | B130: 本一色イーグルス
A132: 66 | B132: 中央フェニックス
A134: 67 | B134: 高輪クラブ
A136: 68 | B136: 落合コメッツ
A138: 69 | B138: 駒込ベアーズ
A140: 70 | B140: 池雪ジュニアＳ
B141: Kブロック長
A142: 71 | B142: 八潮ドリームキッズ
A144: 72 | B144: 雷サンダース
A146: 73 | B146: 目黒ペガサス
A148: 74 | B148: オール麻布
A150: 75 | B150: 淀四ライオンズ
A152: 76 | B152: 東陽フェニックス
A154: 77 | B154: フレール
B155: Lブロック長
A156: 78 | B156: カバラホークス
A158: 79 | B158: 南篠崎ランチャーズ
A160: 80 | B160: 不動パイレーツ
A162: 81 | B162: 用賀ベアーズ
A164: 82 | B164: 旗の台クラブ
A166: 83 | B166: 元加賀
A168: 84 | B168: 荒川コンドル
B169: Mブロック長
A170: 85 | B170: 大雲寺スターズ
A172: 86 | B172: 麹町ドリームス
A174: 87 | B174: 勝どきDナインホープ
A176: 88 | B176: 麻布キッズ
A178: 89 | B178: 菊坂ファイヤーズ
A180: 90 | B180: 深川ジャイアンツ
A182: 91 | B182: トゥールスジュニア
B183: Nブロック長
A184: 92 | B184: ブルースカイズ
A186: 93 | B186: 渋谷レッドソックス
A188: 94 | B188: 日本橋ファイターズ
A190: 95 | B190: KCRジャッカル
A192: 96 | B192: いちがやチーターズ
A194: 97 | B194: 大塚スネイクス
A196: 98 | B196: 球友ジュニアーズ
